College_Name,Check_Number,Payee,Date,Amount,Funding_Source,Purpose
Jefferson State CC,420720,All-South Subcontractors Inc. ,10/2/2020,521.8,R&R Chilton Campus ,Maintenance & Repairs  - OOS
Jefferson State CC,420721,American Association Of Community College ,10/2/2020,11354,Unrestricted Shared Services,Memberships - PS
Jefferson State CC,420722,AmeriPride Services Inc. ,10/2/2020,34.98,Unrestricted Shelby Campus,Materials and Supplies - MS
Jefferson State CC,420723,CDW-Government Inc ,10/2/2020,387.03,DHR Childcare 2XX9-2XX0,Materials and Supplies - MS
Jefferson State CC,420723,CDW-Government Inc ,10/2/2020,3883.41,Unrestricted Jefferson Campus,Technology - non capitalized - MS
Jefferson State CC,420723,CDW-Government Inc ,10/2/2020,1619.64,Unrestricted Shared Services,Technology - non capitalized - MS
Jefferson State CC,420723,CDW-Government Inc ,10/2/2020,2791.25,Unrestricted Shelby Campus,Technology - non capitalized - MS
Jefferson State CC,420724,Central Paper Co Inc ,10/2/2020,121.44,Unrestricted Shelby Campus,Materials and Supplies - MS
Jefferson State CC,420725,Ebsco Subscription Services ,10/2/2020,9726,Unrestricted Shared Services,Subscriptions - OOS
Jefferson State CC,420726,Evans Meats Inc ,10/2/2020,545.73,Unrestricted Shelby Campus,Culinary Consumables
Jefferson State CC,420727,Galls ,10/2/2020,397.42,Unrestricted Shared Services,Materials and Supplies - MS
Jefferson State CC,420728,Hodge Mechanical Services LLC ,10/2/2020,4902.35,R&R Jefferson Campus ,Maintenance & Repairs  - OOS
Jefferson State CC,420728,Hodge Mechanical Services LLC ,10/2/2020,93378.16,R&R Shelby Campus ,Maintenance & Repairs  - OOS
Jefferson State CC,420729,Imperial Bag & Paper Co. LLC ,10/2/2020,172.62,Unrestricted Jefferson Campus,Materials and Supplies - MS
Jefferson State CC,420730,Marcus Service & Solutions LLC ,10/2/2020,570.4,R&R Chilton Campus ,Maintenance & Repairs  - OOS
Jefferson State CC,420730,Marcus Service & Solutions LLC ,10/2/2020,3948,R&R Shelby Campus ,Maintenance & Repairs  - OOS
Jefferson State CC,420731,Landscape Workshop Parent LLC ,10/2/2020,990,Unrestricted St. Clair Campus,Maintenance & Repairs  - OOS
Jefferson State CC,420733,Pearson Vue ,10/2/2020,1722,City of Bham Bold Program 19-20,Materials and Supplies - MS
Jefferson State CC,420734,Office Depot ,10/2/2020,534.97,AE-Federal Regular 2XX9-2XX0,Materials and Supplies - MS
Jefferson State CC,420734,Office Depot ,10/2/2020,534.57,Unrestricted Jefferson Campus,Materials and Supplies - MS
Jefferson State CC,420735,Office Depot ,10/2/2020,287.34,Unrestricted Shared Services,Materials and Supplies - MS
Jefferson State CC,420735,Office Depot ,10/2/2020,31.46,Unrestricted Shared Services,Printing and Binding - OOS
Jefferson State CC,420736,One Diversified LLC ,10/2/2020,13962.65,Unrestricted Jefferson Campus,Technology - non capitalized - MS
Jefferson State CC,420737,Owens Landscape Group LLC ,10/2/2020,1000,Unrestricted Chilton Campus,Maintenance & Repairs  - OOS
Jefferson State CC,420738,Publix Super Markets Inc ,10/2/2020,45.2,Unrestricted Shelby Campus,Culinary Consumables
Jefferson State CC,420739,Regional Produce Distributors LLC ,10/2/2020,296,Unrestricted Shelby Campus,Culinary Consumables
Jefferson State CC,420740,Safety Kleen Systems Inc ,10/2/2020,1350,R&R Jefferson Campus ,Materials and Supplies - MS
Jefferson State CC,420741,WEX Bank ,10/2/2020,197.97,Unrestricted Shared Services,Gasoline & Oil - Motor Veh - OOS
Jefferson State CC,420741,WEX Bank ,10/2/2020,105.85,Unrestricted Shelby Campus,Gasoline & Oil - Motor Veh - OOS
Jefferson State CC,420743,Jefferson State Community College ,10/5/2020,100000,Bank Fund,Depository Bank
Jefferson State CC,420748,Alabama Community College System ,10/8/2020,750,Unrestricted Shared Services,Memberships - PS
Jefferson State CC,420750,Armstrong Toneka,10/8/2020,90.83,Unrestricted Shared Services,Materials and Supplies - MS
Jefferson State CC,420750,Armstrong Toneka,10/8/2020,73.6,Unrestricted Shared Services,Mileage - IS
Jefferson State CC,420751,Avery III Edgar,10/8/2020,640,Unrestricted Jefferson Campus,Other Professional Fees - PS
Jefferson State CC,420752,Blackmon Archie,10/8/2020,41.4,AE-Federal Regular 2XX9-2XX0,Other Travel Expenses - IS
Jefferson State CC,420753,Blair David,10/8/2020,78.2,Unrestricted Shared Services,Mileage - IS
Jefferson State CC,420754,Blevins Chris,10/8/2020,280,Unrestricted Shelby Campus,Other Professional Fees - PS
Jefferson State CC,420755,Bobo David,10/8/2020,64.86,Unrestricted Shared Services,Mileage - IS
Jefferson State CC,420756,Bone Darrell,10/8/2020,153,Unrestricted Chilton Campus,Other Professional Fees - PS
Jefferson State CC,420757,Boyer Katherine,10/8/2020,238.39,Sigma Kappa Delta,Deposit Liabilities - AP
Jefferson State CC,420758,Bracken Michael,10/8/2020,833.33,Unrestricted Shared Services,Other Contractual Services - PS
Jefferson State CC,420759,Brown James,10/8/2020,950,Unrestricted Jefferson Campus,Materials and Supplies - MS
Jefferson State CC,420760,CDW-Government Inc ,10/8/2020,186.34,AE-Federal Regular 2XX9-2XX0,Materials and Supplies - MS
Jefferson State CC,420760,CDW-Government Inc ,10/8/2020,518.22,Unrestricted St. Clair Campus,Technology - non capitalized - MS
Jefferson State CC,420761,Central Paper Co Inc ,10/8/2020,51.01,Unrestricted Shelby Campus,Materials and Supplies - MS
Jefferson State CC,420762,CenturyTel of Alabama ,10/8/2020,209.19,Unrestricted St. Clair Campus,Landline Phones - UC
Jefferson State CC,420763,Chambers Lynn,10/8/2020,87.98,AE-Federal Regular 2XX9-2XX0,Other Travel Expenses - IS
Jefferson State CC,420765,City of Pell City ,10/8/2020,437.05,Unrestricted St. Clair Campus,Water & Sewer - UC
Jefferson State CC,420766,City of Pell City ,10/8/2020,69.07,Unrestricted St. Clair Campus,Landline Phones - UC
Jefferson State CC,420767,Clackley David,10/8/2020,630,Unrestricted Chilton Campus,Other Professional Fees - PS
Jefferson State CC,420768,Commission on Accreditation for Respiratory Care ,10/8/2020,2200,Unrestricted Shelby Campus,Accreditation Expense - PS
Jefferson State CC,420769,Coston General Contractors Inc. ,10/8/2020,19660.25,R&R Jefferson Campus ,Maintenance & Repairs  - OOS
Jefferson State CC,420770,Cougar Oil Inc. ,10/8/2020,9470.73,Unrestricted Jefferson Campus,Materials and Supplies - MS
Jefferson State CC,420771,Daniel Stephanie,10/8/2020,450,Unrestricted Shared Services,Other Contractual Services - PS
Jefferson State CC,420772,Dehart Michael,10/8/2020,160,Unrestricted Shelby Campus,Other Professional Fees - PS
Jefferson State CC,420773,Edwards James,10/8/2020,81,Unrestricted Chilton Campus,Other Professional Fees - PS
Jefferson State CC,420774,Ferrellgas ,10/8/2020,168.48,Unrestricted Shared Services,Gasoline & Oil - Motor Veh - OOS
Jefferson State CC,420775,Florence Jeffrey,10/8/2020,650,Unrestricted Shelby Campus,Other Professional Fees - PS
Jefferson State CC,420776,French Kimberly,10/8/2020,511.5,Unrestricted Jefferson Campus,Registration Fees- IS
Jefferson State CC,420777,Education to Go ,10/8/2020,182.16,Unrestricted Shared Services,Technology - non capitalized - MS
Jefferson State CC,420778,Harris Jason,10/8/2020,333,Unrestricted Chilton Campus,Other Professional Fees - PS
Jefferson State CC,420779,Hicks Stacy,10/8/2020,510,Unrestricted Jefferson Campus,Registration Fees- IS
Jefferson State CC,420780,Home Depot U.S.A. Inc ,10/8/2020,28247.55,R&R Jefferson Campus ,Maintenance & Repairs  - OOS
Jefferson State CC,420782,Janousek Mel,10/8/2020,370,Unrestricted Shelby Campus,Other Professional Fees - PS
Jefferson State CC,420783,Johnson Gerald,10/8/2020,666.67,Unrestricted Shared Services,Other Contractual Services - PS
Jefferson State CC,420784,Jones Monique,10/8/2020,100,Sigma Kappa Delta,Deposit Liabilities - AP
Jefferson State CC,420785,Landauer Inc ,10/8/2020,866.9,RAD Monitoring,Deposit Liabilities - AP
Jefferson State CC,420786,Lathan Associates Architects P.C. ,10/8/2020,2119.59,Unrestricted Shelby Campus,Buildings - CE
Jefferson State CC,420788,Lockmax LLC ,10/8/2020,950,R&R Jefferson Campus ,Maintenance & Repairs  - OOS
Jefferson State CC,420789,Mitchell Joseph,10/8/2020,67.61,Unrestricted Shared Services,Culinary Consumables
Jefferson State CC,420790,Mullins William,10/8/2020,100,Unrestricted Shelby Campus,Other Professional Fees - PS
Jefferson State CC,420791,NACADA: The Global Community for Academic Advising Inc. ,10/8/2020,875,Unrestricted Shared Services,Memberships - PS
Jefferson State CC,420792,National Junior College Athletic Association ,10/8/2020,3495,Unrestricted Shared Services,Memberships - PS
Jefferson State CC,420799,O'Neal Brenda,10/8/2020,550,Unrestricted Shared Services,Registration Fees- IS
Jefferson State CC,420800,Office Depot ,10/8/2020,48.29,AE-Federal Regular 2XX9-2XX0,Materials and Supplies - MS
Jefferson State CC,420800,Office Depot ,10/8/2020,2059.05,AE-State Regular 2XX9-2XX0,Materials and Supplies - MS
Jefferson State CC,420800,Office Depot ,10/8/2020,1249.75,CARES Act - GEERF Public Health,Materials and Supplies - MS
Jefferson State CC,420800,Office Depot ,10/8/2020,149.74,DHR Childcare 2XX9-2XX0,Materials and Supplies - MS
Jefferson State CC,420800,Office Depot ,10/8/2020,46.39,Unrestricted Jefferson Campus,Materials and Supplies - MS
Jefferson State CC,420800,Office Depot ,10/8/2020,418.74,Unrestricted Shelby Campus,Materials and Supplies - MS
Jefferson State CC,420801,One Diversified LLC ,10/8/2020,7767.68,Unrestricted St. Clair Campus,Technology - non capitalized - MS
Jefferson State CC,420802,Online Learning Consortium Inc ,10/8/2020,1530,Unrestricted Distance Ed,Memberships - PS
Jefferson State CC,420803,PEEHIP ,10/8/2020,800,Unrestricted Shared Services,Executive/Managerial Salaries - SW
Jefferson State CC,420803,PEEHIP ,10/8/2020,2773.33,Unrestricted Shared Services,Instructional Salaries - SW
Jefferson State CC,420803,PEEHIP ,10/8/2020,613.33,CAPTE OSY Occupation Skills,Professional Salaries - SW
Jefferson State CC,420803,PEEHIP ,10/8/2020,800,Unrestricted Shared Services,Professional Salaries - SW
Jefferson State CC,420803,PEEHIP ,10/8/2020,4373.33,Unrestricted Shared Services,Support Salaries - SW
Jefferson State CC,420804,Plumb-Tech Inc. ,10/8/2020,1127.7,R&R Shelby Campus ,Maintenance & Repairs  - OOS
Jefferson State CC,420805,Ralya Janice,10/8/2020,83.78,Unrestricted Shared Services,Other Travel Expenses - IS
Jefferson State CC,420805,Ralya Janice,10/8/2020,75,Unrestricted Shared Services,Registration Fees- IS
Jefferson State CC,420807,Rittenhouse ,10/8/2020,400,Unrestricted Shared Services,Technology - non capitalized - MS
Jefferson State CC,420808,RJ Young Company ,10/8/2020,140.71,Unrestricted Jefferson Campus,Printing and Binding - OOS
Jefferson State CC,420809,Scarbrough William,10/8/2020,198,Unrestricted Chilton Campus,Other Professional Fees - PS
Jefferson State CC,420810,Sherwin Williams Company ,10/8/2020,70.56,R&R Jefferson Campus ,Materials and Supplies - MS
Jefferson State CC,420811,Shirley Lindsey,10/8/2020,3225,Unrestricted Shared Services,Other Contractual Services - PS
Jefferson State CC,420812,Shuffett Wendy,10/8/2020,113.85,Unrestricted Shared Services,Mileage - IS
Jefferson State CC,420813,Smitherman Daniel,10/8/2020,225,Unrestricted Chilton Campus,Other Professional Fees - PS
Jefferson State CC,420814,Smitherman Joseph,10/8/2020,144,Unrestricted Chilton Campus,Other Professional Fees - PS
Jefferson State CC,420815,Southern Association Of Student Financial Aid Administrators ,10/8/2020,25,Unrestricted Shared Services,Registration Fees- IS
Jefferson State CC,420816,State of Alabama ,10/8/2020,12206,Unrestricted Shared Services,Insurance and Bonding - PS
Jefferson State CC,420817,State of Alabama ,10/8/2020,174261,Unrestricted Shared Services,Insurance and Bonding - PS
Jefferson State CC,420819,State of Alabama ,10/8/2020,6016.34,Field Engineering Training Grant,Accounts Payable-Accrual
Jefferson State CC,420820,Steven Watkins ,10/8/2020,1975.22,R&R Jefferson Campus ,Maintenance & Repairs  - OOS
Jefferson State CC,420821,The National Directory of Morticians Inc. ,10/8/2020,265,Unrestricted Shared Services,Materials and Supplies - MS
Jefferson State CC,420822,Thorne Teresa,10/8/2020,800,Sigma Kappa Delta,Deposit Liabilities - AP
Jefferson State CC,420823,Turner Venius,10/8/2020,511.5,Unrestricted Jefferson Campus,Registration Fees- IS
Jefferson State CC,420826,Walker Melisa,10/8/2020,511.5,Unrestricted Jefferson Campus,Registration Fees- IS
Jefferson State CC,420827,Wheeler Christopher,10/8/2020,755,Unrestricted Shelby Campus,Other Professional Fees - PS
Jefferson State CC,420828,White James,10/8/2020,240,Unrestricted Shared Services,Other Professional Fees - PS
Jefferson State CC,420957,ACT Inc ,10/14/2020,420,AE-State Regular 2XX9-2XX0,Materials and Supplies - MS
Jefferson State CC,420957,ACT Inc ,10/14/2020,160,Spcl Pops Ind Training 2XX9-2XX0,Materials and Supplies - MS
Jefferson State CC,420957,ACT Inc ,10/14/2020,778,Unrestricted Shared Services,Materials and Supplies - MS
Jefferson State CC,420958,Advance Alabama Media Llc ,10/14/2020,52.25,Unrestricted Shared Services,Advertising & Promotions - OOS
Jefferson State CC,420959,Alabama Power Company ,10/14/2020,587.83,Unrestricted Chilton Campus,Electricity - UC
Jefferson State CC,420959,Alabama Power Company ,10/14/2020,1365.53,Unrestricted Jefferson Campus,Electricity - UC
Jefferson State CC,420959,Alabama Power Company ,10/14/2020,1228.39,Unrestricted Shelby Campus,Electricity - UC
Jefferson State CC,420959,Alabama Power Company ,10/14/2020,256.12,Unrestricted St. Clair Campus,Electricity - UC
Jefferson State CC,420960,Apple Inc ,10/14/2020,1847.95,Unrestricted Shelby Campus,Technology - non capitalized - MS
Jefferson State CC,420961,AT&T Mobility National Accounts LLC ,10/14/2020,41.24,AE-Federal Regular 2XX9-2XX0,Wireless Phones - UC
Jefferson State CC,420962,AT&T Mobility National Accounts LLC ,10/14/2020,19.98,Unrestricted Shelby Campus,Other Contractual Services - PS
Jefferson State CC,420962,AT&T Mobility National Accounts LLC ,10/14/2020,226.56,DHR Childcare 2XX9-2XX0,Wireless Phones - UC
Jefferson State CC,420962,AT&T Mobility National Accounts LLC ,10/14/2020,235.45,Unrestricted Shared Services,Wireless Phones - UC
Jefferson State CC,420963,Bank of America ,10/14/2020,169.75,Unrestricted Shared Services,Technology - non capitalized - MS
Jefferson State CC,420964,Blue Ridge X-Ray Company Inc. ,10/14/2020,2438,Unrestricted Shelby Campus,Service Contracts on Equipment -OOS
Jefferson State CC,420965,CDW-Government Inc ,10/14/2020,1834.15,Unrestricted Jefferson Campus,Technology - non capitalized - MS
Jefferson State CC,420965,CDW-Government Inc ,10/14/2020,288.09,Unrestricted St. Clair Campus,Technology - non capitalized - MS
Jefferson State CC,420966,Fisher Scientific ,10/14/2020,88.65,Unrestricted Jefferson Campus,Materials and Supplies - MS
Jefferson State CC,420966,Fisher Scientific ,10/14/2020,792,Vocational Ed/CTE X9-X0,Materials and Supplies - MS
Jefferson State CC,420967,Follett Higher Education Group Inc. ,10/14/2020,40163.43,Bookstore - Shared Services,Accounts Payable-Accrual
Jefferson State CC,420968,Harland Technology Services ,10/14/2020,7357,Unrestricted Shared Services,Technology - non capitalized - MS
Jefferson State CC,420969,Kendall Electric Company ,10/14/2020,3325.08,Unrestricted Jefferson Campus,Materials and Supplies - MS
Jefferson State CC,420970,M-POWER Ministries ,10/14/2020,2840,Spcl Pops Ind Training 2XX9-2XX0,Other Contractual Services - PS
Jefferson State CC,420971,Means Advertising Inc ,10/14/2020,375,Unrestricted Shared Services,Advertising & Promotions - OOS
Jefferson State CC,420972,Office Depot ,10/14/2020,197.1,AE-Federal Regular 2XX9-2XX0,Materials and Supplies - MS
Jefferson State CC,420972,Office Depot ,10/14/2020,118,DHR Childcare 2XX9-2XX0,Materials and Supplies - MS
Jefferson State CC,420972,Office Depot ,10/14/2020,59.59,Unrestricted Jefferson Campus,Materials and Supplies - MS
Jefferson State CC,420972,Office Depot ,10/14/2020,99.98,Unrestricted Shared Services,Materials and Supplies - MS
Jefferson State CC,420972,Office Depot ,10/14/2020,356.74,Unrestricted St. Clair Campus,Materials and Supplies - MS
Jefferson State CC,420973,Oil Equipment Co. Inc. ,10/14/2020,11370.06,R&R Jefferson Campus ,Maintenance & Repairs  - OOS
Jefferson State CC,420974,Opportunity Systems Incorporating Independence LLC ,10/14/2020,1702.8,Unrestricted Shared Services,Other Contractual Services - PS
Jefferson State CC,420975,BFI Waste Services LLC ,10/14/2020,1733.83,Unrestricted Jefferson Campus,Waste Disposal - UC
Jefferson State CC,420975,BFI Waste Services LLC ,10/14/2020,79.23,Unrestricted St. Clair Campus,Waste Disposal - UC
Jefferson State CC,420976,RJ Young Company ,10/14/2020,1891.9,Unrestricted Shared Services,Printing and Binding - OOS
Jefferson State CC,420977,Servicewear Apparel Inc. ,10/14/2020,498.53,Unrestricted Shared Services,Materials and Supplies - MS
Jefferson State CC,420978,Spire ,10/14/2020,7511.87,Unrestricted Chilton Campus,Gas & Heating Fuel - UC
Jefferson State CC,420978,Spire ,10/14/2020,14020.88,Unrestricted Jefferson Campus,Gas & Heating Fuel - UC
Jefferson State CC,420978,Spire ,10/14/2020,6075.01,Unrestricted Shelby Campus,Gas & Heating Fuel - UC
Jefferson State CC,420978,Spire ,10/14/2020,32.62,Unrestricted St. Clair Campus,Gas & Heating Fuel - UC
Jefferson State CC,420979,Springer Equipment Company ,10/14/2020,174.89,R&R Shelby Campus ,Maintenance & Repairs  - OOS
Jefferson State CC,420980,Tri-County Turf Equipment ,10/14/2020,15.6,Unrestricted Jefferson Campus,Maintenance & Repairs  - OOS
Jefferson State CC,420981,W W Grainger Inc ,10/14/2020,1497.76,R&R Jefferson Campus ,Maintenance & Repairs  - OOS
Jefferson State CC,420982,Water Works & Sewer Board ,10/14/2020,15592.36,Unrestricted Jefferson Campus,Water & Sewer - UC
Jefferson State CC,147668,Abad Fortunato,10/15/2020,1101.54,Unrestricted Shared Services,Payroll
Jefferson State CC,147669,Allison Shari,10/15/2020,567.46,Unrestricted Shared Services,Payroll
Jefferson State CC,147670,Broome Kristen,10/15/2020,467.32,Unrestricted Shared Services,Payroll
Jefferson State CC,147671,Bynum Christopher,10/15/2020,692.64,Unrestricted Shared Services,Payroll
Jefferson State CC,147672,Chapman Chloe,10/15/2020,267.04,Unrestricted Shared Services,Payroll
Jefferson State CC,147673,Chen Ja Lin,10/15/2020,734.36,Unrestricted Shared Services,Payroll
Jefferson State CC,147674,Coleman Carolyn,10/15/2020,667.6,Unrestricted Shared Services,Payroll
Jefferson State CC,147675,Cummings Te'Ree,10/15/2020,100.14,Unrestricted Shared Services,Payroll
Jefferson State CC,147676,Cunningham Dana,10/15/2020,1268.44,Unrestricted Shared Services,Payroll
Jefferson State CC,147677,Duke Juanita,10/15/2020,1301.82,Unrestricted Shared Services,Payroll
Jefferson State CC,147678,Dykes Betty,10/15/2020,660,Unrestricted Shared Services,Payroll
Jefferson State CC,147679,Ellis April,10/15/2020,333.8,Unrestricted Shared Services,Payroll
Jefferson State CC,147680,Farris Lisa,10/15/2020,116.83,Unrestricted Shared Services,Payroll
Jefferson State CC,147681,Floyd Natalie,10/15/2020,116.83,Unrestricted Shared Services,Payroll
Jefferson State CC,147682,Fricker Heather,10/15/2020,534.08,Unrestricted Shared Services,Payroll
Jefferson State CC,147683,Gomez Joseph,10/15/2020,367.18,Unrestricted Shared Services,Payroll
Jefferson State CC,147684,Gonzalez Samantha,10/15/2020,400.56,Unrestricted Shared Services,Payroll
Jefferson State CC,147685,Gore Claudia,10/15/2020,1068.16,Unrestricted Shared Services,Payroll
Jefferson State CC,147686,Hacker Mary,10/15/2020,333.8,Unrestricted Shared Services,Payroll
Jefferson State CC,147687,Hall Daniel,10/15/2020,734.36,Unrestricted Shared Services,Payroll
Jefferson State CC,147688,Hallmark Brenda,10/15/2020,1001.4,Unrestricted Shared Services,Payroll
Jefferson State CC,147689,Hart Melody,10/15/2020,216.97,Unrestricted Shared Services,Payroll
Jefferson State CC,147690,Haynes Christal,10/15/2020,867.88,Unrestricted Shared Services,Payroll
Jefferson State CC,147691,King Sandra,10/15/2020,100.14,Unrestricted Shared Services,Payroll
Jefferson State CC,147692,Liddle Anna,10/15/2020,450.63,Unrestricted Shared Services,Payroll
Jefferson State CC,147693,Lovorn Matthew,10/15/2020,534.08,Unrestricted Shared Services,Payroll
Jefferson State CC,147694,Mahaffey Alexis,10/15/2020,534.08,Unrestricted Shared Services,Payroll
Jefferson State CC,147695,Mathis Jada,10/15/2020,216.97,Unrestricted Shared Services,Payroll
Jefferson State CC,147696,McKinney Ashley,10/15/2020,534.08,Unrestricted Shared Services,Payroll
Jefferson State CC,147697,Metcalf Angela,10/15/2020,667.6,Unrestricted Shared Services,Payroll
Jefferson State CC,147698,Milam Toshia,10/15/2020,1268.44,Unrestricted Shared Services,Payroll
Jefferson State CC,147699,Miller Shaleen,10/15/2020,534.08,Unrestricted Shared Services,Payroll
Jefferson State CC,147700,Morgan Zachary,10/15/2020,734.36,Unrestricted Shared Services,Payroll
Jefferson State CC,147701,Norman Audrey,10/15/2020,33.38,Unrestricted Shared Services,Payroll
Jefferson State CC,147702,Odom Donna,10/15/2020,267.04,Unrestricted Shared Services,Payroll
Jefferson State CC,147703,Ramsey Casey,10/15/2020,1268.44,Unrestricted Shared Services,Payroll
Jefferson State CC,147704,Saemaldaher Melanie,10/15/2020,801.12,Unrestricted Shared Services,Payroll
Jefferson State CC,147705,Sasser Carol,10/15/2020,1669,Unrestricted Shared Services,Payroll
Jefferson State CC,147706,Seckinger Kyle,10/15/2020,667.6,Unrestricted Shared Services,Payroll
Jefferson State CC,147707,Sledge Sherman,10/15/2020,333.8,Unrestricted Shared Services,Payroll
Jefferson State CC,147708,Smith Christopher,10/15/2020,534.08,Unrestricted Shared Services,Payroll
Jefferson State CC,147709,Smith Kandice,10/15/2020,660,Unrestricted Shared Services,Payroll
Jefferson State CC,147710,Snipes Britney,10/15/2020,1001.4,Unrestricted Shared Services,Payroll
Jefferson State CC,147711,Stapleton Emily,10/15/2020,901.26,Unrestricted Shared Services,Payroll
Jefferson State CC,147712,Tilt Alex,10/15/2020,484.01,Unrestricted Shared Services,Payroll
Jefferson State CC,147713,Trawick Brandi,10/15/2020,1268.44,Unrestricted Shared Services,Payroll
Jefferson State CC,147714,Tubbs Carrie,10/15/2020,667.6,Unrestricted Shared Services,Payroll
Jefferson State CC,147715,Weeks Laura,10/15/2020,934.64,Unrestricted Shared Services,Payroll
Jefferson State CC,147716,York Morgan,10/15/2020,333.8,Unrestricted Shared Services,Payroll
Jefferson State CC,147717,Hyde Natalie,10/15/2020,1452,Unrestricted Shared Services,Payroll
Jefferson State CC,147718,Yates Lanette,10/15/2020,264,Unrestricted Shared Services,Payroll
Jefferson State CC,147719,Fach Colin,10/15/2020,1034.36,Unrestricted Shared Services,Payroll
Jefferson State CC,147720,Harvey Richard,10/15/2020,1347.86,Unrestricted Shared Services,Payroll
Jefferson State CC,147721,Haywood James,10/15/2020,789.38,Unrestricted Shared Services,Payroll
Jefferson State CC,147722,McDonnell Kyle,10/15/2020,1525.21,Unrestricted Shared Services,Payroll
Jefferson State CC,147723,Panepento Matthew,10/15/2020,1034.36,Unrestricted Shared Services,Payroll
Jefferson State CC,147724,Ward William,10/15/2020,1034.36,Unrestricted Shared Services,Payroll
Jefferson State CC,147725,Brantley Karlie,10/15/2020,1168.3,Unrestricted Shared Services,Payroll
Jefferson State CC,147726,Chesser Jennifer,10/15/2020,950,Unrestricted Shared Services,Payroll
Jefferson State CC,147727,Johnson-King Sharina,10/15/2020,950,Unrestricted Shared Services,Payroll
Jefferson State CC,147728,Smith Lisa,10/15/2020,875,Unrestricted Shared Services,Payroll
Jefferson State CC,147729,Stephens Sheila,10/15/2020,1027.52,Unrestricted Shared Services,Payroll
Jefferson State CC,147730,Agee Teisha,10/15/2020,1075,CAPTE OSY Occupation Skills,Payroll
Jefferson State CC,147731,Anderson LaToya,10/15/2020,528.5,AE-State Regular 2XX9-2XX0,Payroll
Jefferson State CC,147732,Arrowsmith Janice,10/15/2020,930.16,AE-Federal Regular 2XX9-2XX0,Payroll
Jefferson State CC,147733,Badio Jessical,10/15/2020,761.04,AE-Federal Regular 2XX9-2XX0,Payroll
Jefferson State CC,147734,Barnett Laura,10/15/2020,930.16,AE-State Regular 2XX9-2XX0,Payroll
Jefferson State CC,147735,Blackmon Archie,10/15/2020,887.88,AE-Federal Regular 2XX9-2XX0,Payroll
Jefferson State CC,147736,Blair Michael,10/15/2020,803.32,AE-State Regular 2XX9-2XX0,Payroll
Jefferson State CC,147737,Brown Edith,10/15/2020,655.34,AE - State Inst'l 2XX9-2XX0,Payroll
Jefferson State CC,147738,Callins Lillian,10/15/2020,380.52,AE-Federal Regular 2XX9-2XX0,Payroll
Jefferson State CC,147739,Coleman Henry,10/15/2020,909.02,AE-Federal Regular 2XX9-2XX0,Payroll
Jefferson State CC,147740,Cook Kimberly,10/15/2020,803.32,AE-State Regular 2XX9-2XX0,Payroll
Jefferson State CC,147741,Davis Jeffrey,10/15/2020,990.36,AE-State Regular 2XX9-2XX0,Payroll
Jefferson State CC,147742,Derrick Mona,10/15/2020,761.04,AE-Federal IEL/CE 2XX9-2XX0,Payroll
Jefferson State CC,147743,Eichhorn Rhonda,10/15/2020,739.9,AE-State Regular 2XX9-2XX0,Payroll
Jefferson State CC,147744,Hawkins Felita,10/15/2020,792,AE-State Regular 2XX9-2XX0,Payroll
Jefferson State CC,147745,Holland Rebecca,10/15/2020,190.26,AE-Federal Regular 2XX9-2XX0,Payroll
Jefferson State CC,147746,Jones Desamane,10/15/2020,600.75,CAPTE OSY Occupation Skills,Payroll
Jefferson State CC,147747,Latham Shane,10/15/2020,909.02,AE-Federal Regular 2XX9-2XX0,Payroll
Jefferson State CC,147748,Malone Valencia,10/15/2020,401.66,Payroll Clearing Fund,Payroll
Jefferson State CC,147749,Markovitz Yevonne,10/15/2020,295.96,Payroll Clearing Fund,Payroll
Jefferson State CC,147750,Merritt Adrienne,10/15/2020,670.8,AE-Federal Regular 2XX9-2XX0,Payroll
Jefferson State CC,147751,Miner Rebecca,10/15/2020,761.04,AE-State Regular 2XX9-2XX0,Payroll
Jefferson State CC,147752,Montgomery Helen,10/15/2020,137.41,AE-State Regular 2XX9-2XX0,Payroll
Jefferson State CC,147753,Moore Cynthia,10/15/2020,348.81,AE-State Regular 2XX9-2XX0,Payroll
Jefferson State CC,147754,Morgan Mary,10/15/2020,561.6,AE - State Inst'l 2XX9-2XX0,Payroll
Jefferson State CC,147755,Oberneder Connie,10/15/2020,792,AE-State Regular 2XX9-2XX0,Payroll
Jefferson State CC,147756,Parris Cathrine,10/15/2020,909.02,AE-Federal Regular 2XX9-2XX0,Payroll
Jefferson State CC,147757,Pearson Regina,10/15/2020,686.4,AE-State Regular 2XX9-2XX0,Payroll
Jefferson State CC,147758,Rea Patricia,10/15/2020,761.04,AE - State Inst'l 2XX9-2XX0,Payroll
Jefferson State CC,147759,Riggins Resha,10/15/2020,465.08,AE-State Regular 2XX9-2XX0,Payroll
Jefferson State CC,147760,Rudd Julia,10/15/2020,782.18,AE-State Regular 2XX9-2XX0,Payroll
Jefferson State CC,147761,Sanders Anthony Michael,10/15/2020,792.75,AE-Federal Regular 2XX9-2XX0,Payroll
Jefferson State CC,147762,Scott Angela,10/15/2020,507.36,AE-Federal Regular 2XX9-2XX0,Payroll
Jefferson State CC,147763,Sheikh Linda,10/15/2020,591.92,AE-State Regular 2XX9-2XX0,Payroll
Jefferson State CC,147764,Skalac Robyn,10/15/2020,443.94,AE-State Regular 2XX9-2XX0,Payroll
Jefferson State CC,147765,Snider Charles,10/15/2020,970.79,AE-State Regular 2XX9-2XX0,Payroll
Jefferson State CC,147766,Spraberry Mollie,10/15/2020,440.16,AE-State Regular 2XX9-2XX0,Payroll
Jefferson State CC,147767,Tucker Savannah,10/15/2020,87.75,CAPTE OSY Occupation Skills,Payroll
Jefferson State CC,147768,Tucker Selesta,10/15/2020,856.17,AE-State Regular 2XX9-2XX0,Payroll
Jefferson State CC,147769,Vinson John,10/15/2020,909.02,AE-State Regular 2XX9-2XX0,Payroll
Jefferson State CC,147770,Vinson Phyllis,10/15/2020,803.32,AE-State Regular 2XX9-2XX0,Payroll
Jefferson State CC,147771,Wiginton Beverly,10/15/2020,909.02,AE-State Regular 2XX9-2XX0,Payroll
Jefferson State CC,147772,Wood Gayle,10/15/2020,422.8,AE-State Regular 2XX9-2XX0,Payroll
Jefferson State CC,147773,Breaux Carolyn,10/15/2020,669.94,Unrestricted Shared Services,Payroll
Jefferson State CC,147774,Foster Richard,10/15/2020,626.08,Unrestricted Shared Services,Payroll
Jefferson State CC,147775,Frank Theresa,10/15/2020,611.52,Unrestricted Shared Services,Payroll
Jefferson State CC,147776,Lee Felicia,10/15/2020,596.96,Unrestricted Shared Services,Payroll
Jefferson State CC,147777,Smith Victoria,10/15/2020,669.94,Unrestricted Shared Services,Payroll
Jefferson State CC,147778,Charping Ronda,10/15/2020,1108.64,Unrestricted Shared Services,Payroll
Jefferson State CC,147779,Armstrong Adell,10/15/2020,675,Unrestricted Shared Services,Payroll
Jefferson State CC,147780,Addington Jennifer,10/15/2020,1580.8,Unrestricted Shared Services,Payroll
Jefferson State CC,147781,Barnwell Jordan,10/15/2020,416,Unrestricted Shared Services,Payroll
Jefferson State CC,147782,Bishop Patrick,10/15/2020,457.6,Unrestricted Shared Services,Payroll
Jefferson State CC,147783,Chappel Delena,10/15/2020,582.4,Unrestricted Shared Services,Payroll
Jefferson State CC,147784,Flanagan Soneaqua,10/15/2020,728,Unrestricted Shared Services,Payroll
Jefferson State CC,147785,Graves Candise,10/15/2020,291.2,Unrestricted Shared Services,Payroll
Jefferson State CC,147786,Hollingsworth Donna,10/15/2020,634.4,Unrestricted Shared Services,Payroll
Jefferson State CC,147787,Kamp Linda,10/15/2020,644.8,Unrestricted Shared Services,Payroll
Jefferson State CC,147788,Kimbrough LeoNardra,10/15/2020,480,Unrestricted Shared Services,Payroll
Jefferson State CC,147789,McLain Christine,10/15/2020,1292.2,Women's Fund Opport in Healthcare,Payroll
Jefferson State CC,147790,Mills Justin,10/15/2020,998.4,Unrestricted Shared Services,Payroll
Jefferson State CC,147791,Parker Lakisha,10/15/2020,1019.2,Unrestricted Shared Services,Payroll
Jefferson State CC,147792,Parsons Charles,10/15/2020,249.6,Unrestricted Shared Services,Payroll
Jefferson State CC,147793,Payne Angela,10/15/2020,1551.9,Unrestricted Shared Services,Payroll
Jefferson State CC,147794,Pleasant Nikesha,10/15/2020,332.8,Unrestricted Shared Services,Payroll
Jefferson State CC,147795,Roan Carl,10/15/2020,291.2,Field Engineering Training 2020-068,Payroll
Jefferson State CC,147796,Russell Stephanie,10/15/2020,83.2,Unrestricted Shared Services,Payroll
Jefferson State CC,147797,Suttle Debra,10/15/2020,852.8,Unrestricted Shared Services,Payroll
Jefferson State CC,147798,Swift Mitzi,10/15/2020,353.6,Unrestricted Shared Services,Payroll
Jefferson State CC,147799,Taylor Pandra,10/15/2020,70,City of Bham Bold Program 19-20,Payroll
Jefferson State CC,147800,Thomas Linda,10/15/2020,1539.2,Unrestricted Shared Services,Payroll
Jefferson State CC,147801,Willis Erica,10/15/2020,499.2,Unrestricted Shared Services,Payroll
Jefferson State CC,147802,Busby Yvette,10/15/2020,1105,Unrestricted Shared Services,Payroll
Jefferson State CC,147803,Jones Lesia,10/15/2020,570,Unrestricted Shared Services,Payroll
Jefferson State CC,147804,Glover Anita,10/15/2020,582.08,Unrestricted Shared Services,Payroll
Jefferson State CC,147805,Moore Kimberly,10/15/2020,813.56,Unrestricted Shared Services,Payroll
Jefferson State CC,147806,Stewart Janice,10/15/2020,662.2,Unrestricted Shared Services,Payroll
Jefferson State CC,147807,Amerson-Dobbs Jessica,10/15/2020,441,Unrestricted Shared Services,Payroll
Jefferson State CC,147808,Cannon Kimberly,10/15/2020,483,Unrestricted Shared Services,Payroll
Jefferson State CC,147809,Grayson Shirley,10/15/2020,399,Unrestricted Shared Services,Payroll
Jefferson State CC,147810,Moore Shanine,10/15/2020,669.94,Unrestricted Shared Services,Payroll
Jefferson State CC,147811,Niswander Carly,10/15/2020,304.5,Unrestricted Shared Services,Payroll
Jefferson State CC,147812,Payne Adrian,10/15/2020,441,Unrestricted Shared Services,Payroll
Jefferson State CC,147813,Wood Kelly,10/15/2020,430.5,Unrestricted Shared Services,Payroll
Jefferson State CC,147814,Liddle Elizabeth,10/15/2020,510,Unrestricted Shared Services,Payroll
Jefferson State CC,147815,Wilson Candace,10/15/2020,399,Unrestricted Shared Services,Payroll
Jefferson State CC,147816,Adams Taylor,10/15/2020,451.5,Unrestricted Shared Services,Payroll
Jefferson State CC,147817,Adams Tracy,10/15/2020,390,Unrestricted Shared Services,Payroll
Jefferson State CC,147818,Anderson Davida,10/15/2020,441,Unrestricted Shared Services,Payroll
Jefferson State CC,147819,Blankenship Jamie,10/15/2020,504,Unrestricted Shared Services,Payroll
Jefferson State CC,147820,Brown Carol,10/15/2020,341.25,Unrestricted Shared Services,Payroll
Jefferson State CC,147821,Carlee Jerrica,10/15/2020,675,Unrestricted Shared Services,Payroll
Jefferson State CC,147822,Carruba Lorrie,10/15/2020,451.5,Unrestricted Shared Services,Payroll
Jefferson State CC,147823,Castleberry James,10/15/2020,399,Unrestricted Shared Services,Payroll
Jefferson State CC,147824,Daniels Nautyca,10/15/2020,535.5,Unrestricted Shared Services,Payroll
Jefferson State CC,147825,Dunning William,10/15/2020,451.5,Unrestricted Shared Services,Payroll
Jefferson State CC,147826,Franklin Gillian,10/15/2020,409.5,Unrestricted Shared Services,Payroll
Jefferson State CC,147827,Gordon Mattie,10/15/2020,199.5,Unrestricted Shared Services,Payroll
Jefferson State CC,147828,Hicks Candace,10/15/2020,556.25,Unrestricted Shared Services,Payroll
Jefferson State CC,147829,Jones Meldryn,10/15/2020,399,Unrestricted Shared Services,Payroll
Jefferson State CC,147830,Kirkland Olivia,10/15/2020,660,Unrestricted Shared Services,Payroll
Jefferson State CC,147831,McCoy Ovukeriena,10/15/2020,345,Unrestricted Shared Services,Payroll
Jefferson State CC,147832,Owens Jaycee,10/15/2020,493.5,Unrestricted Shared Services,Payroll
Jefferson State CC,147833,Putnam Patricia,10/15/2020,1216,Unrestricted Shared Services,Payroll
Jefferson State CC,147834,Rheaume Stephanie,10/15/2020,504,Unrestricted Shared Services,Payroll
Jefferson State CC,147835,Smith Khalilah,10/15/2020,615,Unrestricted Shared Services,Payroll
Jefferson State CC,147836,White Sandra,10/15/2020,462,Unrestricted Shared Services,Payroll
Jefferson State CC,147837,Williams Wanda,10/15/2020,592.5,Unrestricted Shared Services,Payroll
Jefferson State CC,147838,Wilson Courtney,10/15/2020,467.25,Unrestricted Shared Services,Payroll
Jefferson State CC,147839,Zandi Nader,10/15/2020,1248,Unrestricted Shared Services,Payroll
Jefferson State CC,147840,Adams Floyce,10/15/2020,675,Unrestricted Shared Services,Payroll
Jefferson State CC,147841,Ali Donna,10/15/2020,660,Unrestricted Shared Services,Payroll
Jefferson State CC,147842,Hampton Jacqueline,10/15/2020,934.5,Unrestricted Shared Services,Payroll
Jefferson State CC,147843,McRae Kenneth,10/15/2020,909.02,AE-Federal Regular 2XX9-2XX0,Payroll
Jefferson State CC,147844,Robinson Mattie,10/15/2020,570,Unrestricted Shared Services,Payroll
Jefferson State CC,147845,Brown-Ward Maurita,10/15/2020,336,Unrestricted Shared Services,Payroll
Jefferson State CC,147846,Cole Dana,10/15/2020,52.5,Unrestricted Shared Services,Payroll
Jefferson State CC,147847,Crim Margaret,10/15/2020,665.6,Unrestricted Shared Services,Payroll
Jefferson State CC,147848,Kirk Willodean,10/15/2020,420,Unrestricted Shared Services,Payroll
Jefferson State CC,147849,Lewis Stephanie,10/15/2020,399,Unrestricted Shared Services,Payroll
Jefferson State CC,147850,Prevo Deborah,10/15/2020,600,Unrestricted Shared Services,Payroll
Jefferson State CC,147851,Gillham Martha,10/15/2020,575,Unrestricted Shared Services,Payroll
Jefferson State CC,147852,Burton Kenneth,10/15/2020,675,Unrestricted Shared Services,Payroll
Jefferson State CC,147853,Chandler James,10/15/2020,420,Unrestricted Shared Services,Payroll
Jefferson State CC,147854,Cornner Thaddeus,10/15/2020,712.5,Unrestricted Shared Services,Payroll
Jefferson State CC,147855,Crowe Jeffrey,10/15/2020,405,Unrestricted Shared Services,Payroll
Jefferson State CC,147856,Gibbs John,10/15/2020,420,Unrestricted Shared Services,Payroll
Jefferson State CC,147857,Harrell John,10/15/2020,273,Unrestricted Shared Services,Payroll
Jefferson State CC,147858,Hicks Alan,10/15/2020,150,Unrestricted Shared Services,Payroll
Jefferson State CC,147859,Johnson Polly,10/15/2020,600,Unrestricted Shared Services,Payroll
Jefferson State CC,147860,Lovelace Michael,10/15/2020,570,Unrestricted Shared Services,Payroll
Jefferson State CC,147861,Nelson James,10/15/2020,336,Unrestricted Shared Services,Payroll
Jefferson State CC,147862,Powrzanas Rodney,10/15/2020,390,Unrestricted Shared Services,Payroll
Jefferson State CC,147863,Shobe Phillip,10/15/2020,855,Unrestricted Shared Services,Payroll
Jefferson State CC,147864,Turner Yolanda,10/15/2020,336,Unrestricted Shared Services,Payroll
Jefferson State CC,147865,Partain Mark,10/15/2020,760,Unrestricted Shelby Campus,Payroll
Jefferson State CC,147866,Steele Pamela,10/15/2020,475,Unrestricted Shared Services,Payroll
Jefferson State CC,147867,Crotwell Edward,10/15/2020,1112.8,Unrestricted Shared Services,Payroll
Jefferson State CC,147868,Graves Austin,10/15/2020,451.5,Unrestricted Shared Services,Payroll
Jefferson State CC,147869,King Linda,10/15/2020,456.75,Unrestricted Shared Services,Payroll
Jefferson State CC,147870,Palmore Myra,10/15/2020,378,Unrestricted Shared Services,Payroll
Jefferson State CC,147871,Starnes Jane,10/15/2020,2449.63,Unrestricted Shared Services,Payroll
Jefferson State CC,147872,Self Bonnie,10/15/2020,2408.58,Unrestricted Shared Services,Payroll
Jefferson State CC,147873,Harris Seena,10/15/2020,2119.92,Unrestricted Shared Services,Payroll
Jefferson State CC,147874,Wallace Preston,10/15/2020,2586,Unrestricted Shared Services,Payroll
Jefferson State CC,147875,Ray Beth,10/15/2020,1788.98,Unrestricted Shared Services,Payroll
Jefferson State CC,147876,Poe Ami,10/15/2020,1298.46,Unrestricted Shared Services,Payroll
Jefferson State CC,147877,Deason Vicki,10/15/2020,1376.79,Unrestricted Distance Ed,Payroll
Jefferson State CC,147878,McLendon Rita,10/15/2020,2037.38,Unrestricted Shared Services,Payroll
Jefferson State CC,147879,Cox Melanie,10/15/2020,2037.38,Unrestricted Shared Services,Payroll
Jefferson State CC,147880,DeLoach Merissa,10/15/2020,1542.54,Unrestricted Shared Services,Payroll
Jefferson State CC,147881,Jackson Debra,10/15/2020,2037.38,Unrestricted Shared Services,Payroll
Jefferson State CC,147882,Lewis Cara,10/15/2020,1129.92,Unrestricted Shared Services,Payroll
Jefferson State CC,147883,Braswell Gail,10/15/2020,1666.13,Unrestricted Shared Services,Payroll
Jefferson State CC,147884,Archer Teresa,10/15/2020,2202.46,Unrestricted Shared Services,Payroll
Jefferson State CC,147885,Hopkins Seantel,10/15/2020,1748.46,Unrestricted Shared Services,Payroll
Jefferson State CC,147886,Cheeks Tammara,10/15/2020,1294.88,CAPTE OSY Occupation Skills,Payroll
Jefferson State CC,147887,Geralds Jacqueline,10/15/2020,2202.46,AE-State Regular 2XX0-2XX1,Payroll
Jefferson State CC,147888,Hawkins Chelsie,10/15/2020,1088.71,DHR Childcare 2XX0-2XX1,Payroll
Jefferson State CC,147889,Finch Tamara,10/15/2020,1336.33,Unrestricted Shared Services,Payroll
Jefferson State CC,147890,Carr Kathi,10/15/2020,2369.28,Unrestricted Shared Services,Payroll
Jefferson State CC,147891,Coker Pamela,10/15/2020,1418.71,Unrestricted Shared Services,Payroll
Jefferson State CC,147892,Keenum Lisa,10/15/2020,2408.58,Unrestricted Shared Services,Payroll
Jefferson State CC,147893,Cruso Lisa,10/15/2020,2037.38,Unrestricted Shared Services,Payroll
Jefferson State CC,147894,Stockley Ginger,10/15/2020,2037.38,Unrestricted Shared Services,Payroll
Jefferson State CC,147895,Cooper Ginger,10/15/2020,2037.38,Unrestricted Shared Services,Payroll
Jefferson State CC,147896,Grady Octavia,10/15/2020,1501.25,Unrestricted Shared Services,Payroll
Jefferson State CC,147897,Naramore Anna,10/15/2020,1707.58,Unrestricted Shared Services,Payroll
Jefferson State CC,147898,Pugh Sandra,10/15/2020,2491.08,Unrestricted Shared Services,Payroll
Jefferson State CC,147899,Pickens Elizabeth,10/15/2020,2119.92,Unrestricted Shared Services,Payroll
Jefferson State CC,147900,Hughes Tina,10/15/2020,2202.46,Unrestricted Shared Services,Payroll
Jefferson State CC,147901,Turner Jeanie,10/15/2020,2202.46,Unrestricted Shared Services,Payroll
Jefferson State CC,147902,Thomas Donna,10/15/2020,2119.92,Unrestricted Shared Services,Payroll
Jefferson State CC,147903,Boackle Emil,10/15/2020,1707.58,Unrestricted Shared Services,Payroll
Jefferson State CC,147904,Burney Roscelia,10/15/2020,2119.92,Unrestricted Shared Services,Payroll
Jefferson State CC,147905,Carpenter Valencia,10/15/2020,1707.58,Unrestricted Shared Services,Payroll
Jefferson State CC,147906,Collins Angela,10/15/2020,2119.92,Unrestricted Shared Services,Payroll
Jefferson State CC,147907,Duncan Leconyea,10/15/2020,1707.58,Unrestricted Shared Services,Payroll
Jefferson State CC,147908,Fennell Tapeka,10/15/2020,1995.83,Unrestricted Shared Services,Payroll
Jefferson State CC,147909,Foster Deborah,10/15/2020,1294.88,Unrestricted Shared Services,Payroll
Jefferson State CC,147910,Fraser Thompson Stacye,10/15/2020,2408.58,Unrestricted Shared Services,Payroll
Jefferson State CC,147911,Howard Amber,10/15/2020,1171.21,Unrestricted Shared Services,Payroll
Jefferson State CC,147912,Jones Juanita,10/15/2020,1707.58,Unrestricted Shared Services,Payroll
Jefferson State CC,147913,Kelley Pamela,10/15/2020,1336.13,Unrestricted Shared Services,Payroll
Jefferson State CC,147914,Minter Shondrika,10/15/2020,1171.21,Unrestricted Shared Services,Payroll
Jefferson State CC,147915,Pippens Amberetta,10/15/2020,1831.17,Unrestricted Shared Services,Payroll
Jefferson State CC,147916,Silor Virginia,10/15/2020,2532.38,Unrestricted Shared Services,Payroll
Jefferson State CC,147917,Sipe James,10/15/2020,1460,Unrestricted Shared Services,Payroll
Jefferson State CC,147918,Smith Heather,10/15/2020,2037.38,Unrestricted Shared Services,Payroll
Jefferson State CC,147919,Stevens Qianna,10/15/2020,1789.75,Unrestricted Shared Services,Payroll
Jefferson State CC,147920,Urbahns Laura,10/15/2020,2119.92,Unrestricted Shared Services,Payroll
Jefferson State CC,147921,Williams Sonja,10/15/2020,1954.83,Unrestricted Shared Services,Payroll
Jefferson State CC,147922,Chambers Lynn,10/15/2020,1831.04,AE-Federal Regular 2XX0-2XX1,Payroll
Jefferson State CC,147923,Anderson Laurel,10/15/2020,1336.13,Unrestricted Shared Services,Payroll
Jefferson State CC,147924,Smith Lareatha,10/15/2020,2326,Unrestricted Shared Services,Payroll
Jefferson State CC,147925,Clark Natalya,10/15/2020,1831.17,Unrestricted Shared Services,Payroll
Jefferson State CC,147926,Cobb Rose,10/15/2020,2037.13,Unrestricted Shared Services,Payroll
Jefferson State CC,147927,Dunning Freddie,10/15/2020,2408.58,Unrestricted Shared Services,Payroll
Jefferson State CC,147928,Ezell Laura,10/15/2020,1666.13,Unrestricted Shared Services,Payroll
Jefferson State CC,147929,McAdory Tracy,10/15/2020,1996.29,Unrestricted Shared Services,Payroll
Jefferson State CC,147930,Reach Brett,10/15/2020,2449.63,Unrestricted Shared Services,Payroll
Jefferson State CC,147931,Barranger Lauren,10/15/2020,1171.33,Unrestricted Shared Services,Payroll
Jefferson State CC,147932,Cimalore Beverly,10/15/2020,2243.5,Unrestricted Shared Services,Payroll
Jefferson State CC,147933,Crotwell David,10/15/2020,1625.04,Unrestricted Shared Services,Payroll
Jefferson State CC,147934,Culver Cynthia,10/15/2020,2533.64,Unrestricted Shared Services,Payroll
Jefferson State CC,147935,Fisher Debra,10/15/2020,2107.08,Unrestricted Shared Services,Payroll
Jefferson State CC,147936,Guizar Hector,10/15/2020,1418.71,Unrestricted Shared Services,Payroll
Jefferson State CC,147937,Hagood Anita,10/15/2020,1294.88,Unrestricted Shared Services,Payroll
Jefferson State CC,147938,Holman Beatrice,10/15/2020,1294.88,Unrestricted Shared Services,Payroll
Jefferson State CC,147939,Miller Stephanie,10/15/2020,1518.7,Unrestricted Shared Services,Payroll
Jefferson State CC,147940,Patterson William,10/15/2020,1583.75,Unrestricted Shared Services,Payroll
Jefferson State CC,147941,Pollard Deborah,10/15/2020,2431.78,Unrestricted Shared Services,Payroll
Jefferson State CC,147942,Richey Marty,10/15/2020,2243.5,Unrestricted Shared Services,Payroll
Jefferson State CC,147943,Stewart Aaron,10/15/2020,1047.58,Unrestricted Shared Services,Payroll
Jefferson State CC,147944,Wilson Colton,10/15/2020,1831.04,Unrestricted Shared Services,Payroll
Jefferson State CC,147945,Chamblin Juanita,10/15/2020,2243.5,Unrestricted Shared Services,Payroll
Jefferson State CC,147946,Key Karen,10/15/2020,2408.58,Unrestricted Shared Services,Payroll
Jefferson State CC,147947,Sutton Edreama,10/15/2020,2968.29,Unrestricted Shared Services,Payroll
Jefferson State CC,147948,Hamilton-Williams Margaret,10/15/2020,1625.04,Unrestricted Shared Services,Payroll
Jefferson State CC,147949,Kimble Lisa,10/15/2020,2202.25,Unrestricted Shared Services,Payroll
Jefferson State CC,147950,Cooper Jay,10/15/2020,1129.92,Unrestricted Shared Services,Payroll
Jefferson State CC,147951,Barnett C,10/15/2020,2037.38,Unrestricted Shared Services,Payroll
Jefferson State CC,147952,Borden Leslie,10/15/2020,1374.05,Unrestricted Shared Services,Payroll
Jefferson State CC,147953,Carson William,10/15/2020,1707.58,Unrestricted Shared Services,Payroll
Jefferson State CC,147954,Green Vincent,10/15/2020,1666.13,Unrestricted Shared Services,Payroll
Jefferson State CC,147955,Harris Michael,10/15/2020,1789.88,Unrestricted Shared Services,Payroll
Jefferson State CC,147956,James Selena,10/15/2020,1501.25,Unrestricted Shared Services,Payroll
Jefferson State CC,147957,McDonald Thomas,10/15/2020,2037.38,Unrestricted Shared Services,Payroll
Jefferson State CC,147958,Nathan Charlie,10/15/2020,1418.88,Unrestricted Shared Services,Payroll
Jefferson State CC,147959,Rogers Rodney,10/15/2020,1625.04,Unrestricted Shared Services,Payroll
Jefferson State CC,147960,Solomon R,10/15/2020,1996.13,Unrestricted Shared Services,Payroll
Jefferson State CC,147961,Tidmore Cecil,10/15/2020,1790.13,Unrestricted Shared Services,Payroll
Jefferson State CC,147962,Toney Clifford,10/15/2020,2285,Unrestricted Shared Services,Payroll
Jefferson State CC,147963,Sullivan Terri,10/15/2020,2119.92,Unrestricted Shared Services,Payroll
Jefferson State CC,147964,Brown Kenneth,10/15/2020,1137.63,Unrestricted Shared Services,Payroll
Jefferson State CC,147965,Cunningham Velma,10/15/2020,1583.96,Unrestricted Shared Services,Payroll
Jefferson State CC,147966,Eason Haley,10/15/2020,1130.08,Unrestricted Shared Services,Payroll
Jefferson State CC,147967,Martin Jerry,10/15/2020,1579.33,Unrestricted Shared Services,Payroll
Jefferson State CC,147968,Payne Russell,10/15/2020,2487.02,Unrestricted Shared Services,Payroll
Jefferson State CC,147969,Pendleton Carolyn,10/15/2020,973.08,Unrestricted Shared Services,Payroll
Jefferson State CC,147970,Purvis Larose,10/15/2020,1583.96,Unrestricted Shared Services,Payroll
Jefferson State CC,147971,Sanders Bernard,10/15/2020,1913.96,Unrestricted Shared Services,Payroll
Jefferson State CC,147972,Steele Kelvin,10/15/2020,1501.38,Unrestricted Shared Services,Payroll
Jefferson State CC,147973,Wilson Dave,10/15/2020,2202.46,Unrestricted Shared Services,Payroll
Jefferson State CC,147974,Brown Mavis,10/15/2020,1130.08,Unrestricted Shared Services,Payroll
Jefferson State CC,147975,Cooper-Cox Robbie,10/15/2020,1295,Unrestricted Shared Services,Payroll
Jefferson State CC,147976,Duchock Anita,10/15/2020,1336.33,Unrestricted Shared Services,Payroll
Jefferson State CC,147977,Johnson Gayle,10/15/2020,802.63,Unrestricted Shared Services,Payroll
Jefferson State CC,147978,Lattimore Rosetta,10/15/2020,823.5,Unrestricted Shared Services,Payroll
Jefferson State CC,147979,Mathis Brenda,10/15/2020,1501.38,Unrestricted Shared Services,Payroll
Jefferson State CC,147980,Vann Rowella,10/15/2020,1047.58,Unrestricted Shared Services,Payroll
Jefferson State CC,147981,Washington Destin,10/15/2020,1501.38,Unrestricted Shared Services,Payroll
Jefferson State CC,147982,Ellison Jonathan,10/15/2020,1088.83,Unrestricted Shared Services,Payroll
Jefferson State CC,147983,Freeman Robine,10/15/2020,1790.13,Unrestricted Shared Services,Payroll
Jefferson State CC,147984,Kimbrell Skyler,10/15/2020,1088.83,Unrestricted Shared Services,Payroll
Jefferson State CC,147985,Wynn Michael,10/15/2020,1336.33,Unrestricted Shared Services,Payroll
Jefferson State CC,147986,Pettry Sherry,10/15/2020,2202.46,Unrestricted Shared Services,Payroll
Jefferson State CC,562477,Hill Yvette,10/15/2020,133.52,Unrestricted Shared Services,Payroll
Jefferson State CC,562478,Cooper Diamond Tadashia,10/15/2020,475,Unrestricted Shared Services,Payroll
Jefferson State CC,562479,Johnson Robert,10/15/2020,900,Unrestricted Shared Services,Payroll
Jefferson State CC,562480,Roberts Barbara,10/15/2020,380.52,AE-State Regular 2XX9-2XX0,Payroll
Jefferson State CC,562481,Sweatt Helen,10/15/2020,655.34,AE-State Regular 2XX9-2XX0,Payroll
Jefferson State CC,562482,Young Katherine,10/15/2020,211.4,AE-State Regular 2XX9-2XX0,Payroll
Jefferson State CC,562483,Begnaud Phillip,10/15/2020,1216,Unrestricted Shared Services,Payroll
Jefferson State CC,562484,O'Hern David,10/15/2020,645,Unrestricted Shared Services,Payroll
Jefferson State CC,562485,Morgan Rickey,10/15/2020,425.25,Unrestricted Shared Services,Payroll
Jefferson State CC,562486,Channel Raymond,10/15/2020,510,Unrestricted Shared Services,Payroll
Jefferson State CC,562487,Johnson Marvin,10/15/2020,540,Unrestricted Shared Services,Payroll
Jefferson State CC,562488,Karluk Dakota,10/15/2020,441,Unrestricted Shared Services,Payroll
Jefferson State CC,562508,Swann Christopher,10/15/2020,2037.38,Unrestricted Shared Services,Payroll
Jefferson State CC,562510,Liddle Christiana,10/15/2020,1201.9,Unrestricted Shared Services,Payroll
Jefferson State CC,421017,Calhoun Community College ,10/16/2020,480,Unrestricted Shared Services,Registration Fees- IS
Jefferson State CC,421018,Agent's Choice Drug and Background Screening Inc. ,10/19/2020,3000,Dual Enrollment  Sch. 2XX9-2XX0,Other Professional Fees - PS
Jefferson State CC,421019,Donohoo Chevrolet LLC ,10/19/2020,23447.05,Unrestricted Jefferson Campus,Transportation Equip $5K-$25K - CE
Jefferson State CC,421020,Fisher Scientific ,10/19/2020,3181.95,Unrestricted Jefferson Campus,Materials and Supplies - MS
Jefferson State CC,421020,Fisher Scientific ,10/19/2020,2548.16,Unrestricted Shelby Campus,Materials and Supplies - MS
Jefferson State CC,421021,Fisher Scientific ,10/19/2020,33.15,Unrestricted St. Clair Campus,Materials and Supplies - MS
Jefferson State CC,421022,Hodge Mechanical Services LLC ,10/19/2020,13486.08,R&R Jefferson Campus ,Maintenance & Repairs  - OOS
Jefferson State CC,421023,Home Depot U.S.A. Inc ,10/19/2020,17.5,R&R Jefferson Campus ,Maintenance & Repairs  - OOS
Jefferson State CC,421024,Home Depot U.S.A. Inc. ,10/19/2020,1321.17,Dual Enrollment  Sch. 2XX9-2XX0,Materials and Supplies - MS
Jefferson State CC,421025,Postmaster ,10/19/2020,5359.13,Unrestricted Shared Services,Postage - OOS
Jefferson State CC,421026,Southern Pipe & Supply Co Inc ,10/19/2020,330.41,R&R Jefferson Campus ,Maintenance & Repairs  - OOS
Jefferson State CC,421027,American Electronic Supply Co Inc ,10/20/2020,1081,Unrestricted Shared Services,Technology - non capitalized - MS
Jefferson State CC,421028,Center Point Fire District ,10/20/2020,25,Unrestricted Shared Services,Water & Sewer - UC
Jefferson State CC,421029,Donohoo Chevrolet LLC ,10/20/2020,23447.05,Unrestricted Jefferson Campus,Transportation Equip $5K-$25K - CE
Jefferson State CC,421030,Fisher Scientific ,10/20/2020,710.4,Unrestricted Jefferson Campus,Materials and Supplies - MS
Jefferson State CC,421031,Palmerdale Fire District ,10/20/2020,59.86,Unrestricted Shared Services,Water & Sewer - UC
Jefferson State CC,421032,Alabama Power Company ,10/22/2020,70.89,Unrestricted Chilton Campus,Electricity - UC
Jefferson State CC,421033,Alabama Power Company ,10/22/2020,2895.17,Unrestricted Chilton Campus,Electricity - UC
Jefferson State CC,421034,Alabama Power Company ,10/22/2020,13753.21,Unrestricted Chilton Campus,Electricity - UC
Jefferson State CC,421035,Alabama Power Company ,10/22/2020,1675.68,Unrestricted Chilton Campus,Electricity - UC
Jefferson State CC,421036,Alabama Power Company ,10/22/2020,26574.44,Unrestricted Jefferson Campus,Electricity - UC
Jefferson State CC,421037,Alabama Power Company ,10/22/2020,934.14,Unrestricted St. Clair Campus,Electricity - UC
Jefferson State CC,421038,Alabama Power Company ,10/22/2020,14654.94,Unrestricted Shelby Campus,Electricity - UC
Jefferson State CC,421039,Alabama Power Company ,10/22/2020,3024.7,Unrestricted Jefferson Campus,Electricity - UC
Jefferson State CC,421040,Alcohol and Drug Abuse Council Inc. ,10/22/2020,877.2,Unrestricted Shared Services,Other Professional Fees - PS
Jefferson State CC,421041,American Electronic Supply Co Inc ,10/22/2020,16947,Unrestricted Shared Services,Technology - non capitalized - MS
Jefferson State CC,421042,AT&T ,10/22/2020,53.15,Unrestricted Shelby Campus,Water & Sewer - UC
Jefferson State CC,421043,AT&T ,10/22/2020,4484.16,Unrestricted Jefferson Campus,Wireless Phones - UC
Jefferson State CC,421044,Avery III Edgar,10/22/2020,640,Unrestricted Jefferson Campus,Other Professional Fees - PS
Jefferson State CC,421046,Bolton Christie,10/22/2020,32.2,Unrestricted Shelby Campus,Mileage - IS
Jefferson State CC,421048,Call Jacob,10/22/2020,133.63,Unrestricted Shared Services,Mileage - IS
Jefferson State CC,421049,Capital X-Ray Inc. ,10/22/2020,633,Unrestricted Shelby Campus,Maintenance & Repairs  - OOS
Jefferson State CC,421050,CDW-Government Inc ,10/22/2020,288.75,Unrestricted Shared Services,Technology - non capitalized - MS
Jefferson State CC,421051,Chamberlain Cassandra,10/22/2020,54.28,Unrestricted Shared Services,Mileage - IS
Jefferson State CC,421051,Chamberlain Cassandra,10/22/2020,11,Unrestricted Shared Services,Other Travel Expenses - IS
Jefferson State CC,421052,Council for Professional Recognition ,10/22/2020,500,DHR Childcare 2XX0-2XX1,Other Professional Fees - PS
Jefferson State CC,421053,Dawkins Stephen,10/22/2020,51.63,Unrestricted Shared Services,Mileage - IS
Jefferson State CC,421054,Golf Coaches Association of America ,10/22/2020,145,Unrestricted Shared Services,Memberships - PS
Jefferson State CC,421055,Golfstat Inc. ,10/22/2020,215,Unrestricted Shared Services,Other Professional Fees - PS
Jefferson State CC,421056,High School Esports League INC. ,10/22/2020,1500,Unrestricted Shared Services,Memberships - PS
Jefferson State CC,421057,Hill Candance,10/22/2020,178.83,Unrestricted Jefferson Campus,Mileage - IS
Jefferson State CC,421057,Hill Candance,10/22/2020,4,Unrestricted Jefferson Campus,Other Travel Expenses - IS
Jefferson State CC,421058,Hodge Mechanical Services LLC ,10/22/2020,10668.03,R&R Shelby Campus ,Maintenance & Repairs  - OOS
Jefferson State CC,421059,Holmes Elizabeth,10/22/2020,32.43,Unrestricted Shared Services,Mileage - IS
Jefferson State CC,421060,Landauer Inc ,10/22/2020,1319.6,RAD Monitoring,Deposit Liabilities - AP
Jefferson State CC,421062,Marcus Service & Solutions LLC ,10/22/2020,694.88,R&R Shelby Campus ,Maintenance & Repairs  - OOS
Jefferson State CC,421064,Mitchell Michael,10/22/2020,86.25,Unrestricted Shared Services,Mileage - IS
Jefferson State CC,421065,Office Depot ,10/22/2020,169.51,CAPTE OSY Occupation Skills,Materials and Supplies - MS
Jefferson State CC,421065,Office Depot ,10/22/2020,1773.7,Unrestricted Jefferson Campus,Materials and Supplies - MS
Jefferson State CC,421065,Office Depot ,10/22/2020,366.28,Unrestricted Shared Services,Materials and Supplies - MS
Jefferson State CC,421065,Office Depot ,10/22/2020,144.75,Unrestricted Shelby Campus,Materials and Supplies - MS
Jefferson State CC,421065,Office Depot ,10/22/2020,418.46,Unrestricted St. Clair Campus,Materials and Supplies - MS
Jefferson State CC,421065,Office Depot ,10/22/2020,36.34,Unrestricted Jefferson Campus,Technology - non capitalized - MS
Jefferson State CC,421066,Scott James,10/22/2020,586.5,Unrestricted Shared Services,Mileage - IS
Jefferson State CC,421067,Shelby County Board of Education ,10/22/2020,500,Unrestricted Shared Services,Advertising & Promotions - OOS
Jefferson State CC,421068,Shuffett Wendy,10/22/2020,120.75,Unrestricted Shared Services,Mileage - IS
Jefferson State CC,421069,Shuffett Wendy,10/22/2020,75.9,Unrestricted Shared Services,Mileage - IS
Jefferson State CC,421070,Southern Assoc of Colleges & Schools Commission on Colleges ,10/22/2020,250,Unrestricted Shared Services,Professional Development - PS
Jefferson State CC,421071,Southern Association for Institutional Research ,10/22/2020,100,Unrestricted Shared Services,Professional Development - PS
Jefferson State CC,421072,Spence Tracy,10/22/2020,13.8,Unrestricted Shelby Campus,Mileage - IS
Jefferson State CC,421075,United Parcel Service Inc ,10/22/2020,80.44,Unrestricted Shared Services,Freight - OOS
Jefferson State CC,421076,University of Alabama at Birmingham ,10/22/2020,4800,Unrestricted Shelby Campus,Other Contractual Services - PS
Jefferson State CC,421077,W W Grainger Inc ,10/22/2020,2826.48,Unrestricted Shelby Campus,Equipment - non capitalized - MS
Jefferson State CC,421077,W W Grainger Inc ,10/22/2020,280.15,R&R Jefferson Campus ,Maintenance & Repairs  - OOS
Jefferson State CC,421078,Water Works & Sewer Board ,10/22/2020,2365.51,Unrestricted Shelby Campus,Water & Sewer - UC
Jefferson State CC,421079,Whittle Christopher,10/22/2020,261,Unrestricted Chilton Campus,Other Professional Fees - PS
Jefferson State CC,421080,Wiley Jeffrey,10/22/2020,362.25,Unrestricted Jefferson Campus,Mileage - IS
Jefferson State CC,421081,Williams Sonja,10/22/2020,52.78,Unrestricted Shared Services,Mileage - IS
Jefferson State CC,421091,Hurst Hunter,10/22/2020,306,Unrestricted Chilton Campus,Other Professional Fees - PS
Jefferson State CC,421092,American Academy Holdings LLC ,10/26/2020,1094.24,AE-State Regular 2XX9-2XX0,Materials and Supplies - MS
Jefferson State CC,421093,Office Depot ,10/26/2020,39.68,DHR Childcare 2XX9-2XX0,Materials and Supplies - MS
Jefferson State CC,421094,ACCS Deans of Student Affairs Association ,10/29/2020,275,Unrestricted Shared Services,Memberships - PS
Jefferson State CC,421095,Alabama Plant Wholesalers LLC ,10/29/2020,1347.45,Unrestricted Jefferson Campus,Materials and Supplies - MS
Jefferson State CC,421096,Alabama Power Company ,10/29/2020,8213.97,Unrestricted Jefferson Campus,Electricity - UC
Jefferson State CC,421096,Alabama Power Company ,10/29/2020,13966.45,Unrestricted Shelby Campus,Electricity - UC
Jefferson State CC,421096,Alabama Power Company ,10/29/2020,7271.55,Unrestricted St. Clair Campus,Electricity - UC
Jefferson State CC,421097,Alabama Power Company ,10/29/2020,1157.41,Unrestricted Shelby Campus,Electricity - UC
Jefferson State CC,421098,Alabama Power Company ,10/29/2020,3500.97,Unrestricted Shelby Campus,Electricity - UC
Jefferson State CC,421099,AT&T ,10/29/2020,68.22,Unrestricted Shelby Campus,Landline Phones - UC
Jefferson State CC,421100,AT&T ,10/29/2020,882.85,Unrestricted Chilton Campus,Landline Phones - UC
Jefferson State CC,421100,AT&T ,10/29/2020,882.85,Unrestricted Jefferson Campus,Landline Phones - UC
Jefferson State CC,421100,AT&T ,10/29/2020,882.85,Unrestricted Shelby Campus,Landline Phones - UC
Jefferson State CC,421101,AT&T ,10/29/2020,497.97,Unrestricted Chilton Campus,Landline Phones - UC
Jefferson State CC,421101,AT&T ,10/29/2020,995.9,Unrestricted Jefferson Campus,Landline Phones - UC
Jefferson State CC,421101,AT&T ,10/29/2020,497.97,Unrestricted Shelby Campus,Landline Phones - UC
Jefferson State CC,421102,AT&T ,10/29/2020,1568.37,Unrestricted St. Clair Campus,Landline Phones - UC
Jefferson State CC,421103,B & D Electric Motors Inc ,10/29/2020,870,R&R Jefferson Campus ,Maintenance & Repairs  - OOS
Jefferson State CC,421104,Berney Office Solutions LLC ,10/29/2020,4301.5,Unrestricted Shared Services,Printing and Binding - OOS
Jefferson State CC,421105,Blevins Chris,10/29/2020,280,Unrestricted Shelby Campus,Other Professional Fees - PS
Jefferson State CC,421106,Bob McCloskey Insurance ,10/29/2020,2551,Unrestricted Shared Services,Insurance and Bonding - PS
Jefferson State CC,421107,Bone Darrell,10/29/2020,306,Unrestricted Chilton Campus,Other Professional Fees - PS
Jefferson State CC,421108,CDW-Government Inc ,10/29/2020,2747.78,Unrestricted Jefferson Campus,Improvements - Other - CE
Jefferson State CC,421109,City of Clanton ,10/29/2020,11.96,Unrestricted Chilton Campus,Water & Sewer - UC
Jefferson State CC,421110,City of Clanton ,10/29/2020,18.46,Unrestricted Chilton Campus,Water & Sewer - UC
Jefferson State CC,421111,City of Clanton ,10/29/2020,450.36,Unrestricted Chilton Campus,Water & Sewer - UC
Jefferson State CC,421112,Clackley David,10/29/2020,549,Unrestricted Chilton Campus,Other Professional Fees - PS
Jefferson State CC,421113,Coston General Contractors Inc. ,10/29/2020,33313.05,R&R Jefferson Campus ,Maintenance & Repairs  - OOS
Jefferson State CC,421114,Council for Professional Recognition ,10/29/2020,10050,DHR Childcare 2XX9-2XX0,Other Professional Fees - PS
Jefferson State CC,421115,Credentials Solutions LLC ,10/29/2020,894.61,Unrestricted Shared Services,Technology - non capitalized - MS
Jefferson State CC,421116,Decola Anthony,10/29/2020,1030.82,R&R Chilton Campus ,Maintenance & Repairs  - OOS
Jefferson State CC,421117,Denny Elevator Inspections Inc. ,10/29/2020,1440,R&R Chilton Campus ,Maintenance & Repairs  - OOS
Jefferson State CC,421118,Diversified Elevator Service & Equipment Company Inc. ,10/29/2020,2165,R&R Jefferson Campus ,Maintenance & Repairs  - OOS
Jefferson State CC,421119,Ewing Irrigation Products Inc ,10/29/2020,418.42,Unrestricted Jefferson Campus,Maintenance & Repairs  - OOS
Jefferson State CC,421120,Falls Facility Services Inc. ,10/29/2020,1694,Unrestricted Jefferson Campus,Maintenance & Repairs  - OOS
Jefferson State CC,421121,Florence Jeffrey,10/29/2020,500,Unrestricted Shelby Campus,Other Professional Fees - PS
Jefferson State CC,421123,Greater Pell City Chamber of Commerce INC ,10/29/2020,55,Unrestricted Shared Services,Memberships - PS
Jefferson State CC,421124,Gulf States Distributors ,10/29/2020,52.2,Unrestricted Shared Services,Materials and Supplies - MS
Jefferson State CC,421125,Hand Arendall Harrison Sale LLC ,10/29/2020,67.5,Unrestricted Shared Services,Legal Services - PS
Jefferson State CC,421126,Harris Jason,10/29/2020,270,Unrestricted Chilton Campus,Other Professional Fees - PS
Jefferson State CC,421127,Home Depot U.S.A. Inc. ,10/29/2020,464.58,R&R Jefferson Campus ,Maintenance & Repairs  - OOS
Jefferson State CC,421127,Home Depot U.S.A. Inc. ,10/29/2020,142.92,R&R Shelby Campus ,Maintenance & Repairs  - OOS
Jefferson State CC,421127,Home Depot U.S.A. Inc. ,10/29/2020,119.28,Dual Enrollment  Sch. 2XX9-2XX0,Materials and Supplies - MS
Jefferson State CC,421127,Home Depot U.S.A. Inc. ,10/29/2020,164.83,Unrestricted Shared Services,Materials and Supplies - MS
Jefferson State CC,421127,Home Depot U.S.A. Inc. ,10/29/2020,239.84,Vocational Ed/CTE X9-X0,Materials and Supplies - MS
Jefferson State CC,421129,Hurst Hunter,10/29/2020,477,Unrestricted Chilton Campus,Other Professional Fees - PS
Jefferson State CC,421130,Informatics Holdings Inc. ,10/29/2020,3725,Unrestricted Shared Services,Technology - non capitalized - MS
Jefferson State CC,421131,International Concepts LLC ,10/29/2020,4000,Unrestricted Chilton Campus,Maintenance & Repairs  - OOS
Jefferson State CC,421131,International Concepts LLC ,10/29/2020,2800,Unrestricted St. Clair Campus,Maintenance & Repairs  - OOS
Jefferson State CC,421132,Janousek Mel,10/29/2020,640,Unrestricted Shelby Campus,Other Professional Fees - PS
Jefferson State CC,421135,Mullins William,10/29/2020,180,Unrestricted Shelby Campus,Other Professional Fees - PS
Jefferson State CC,421136,NAFSA ,10/29/2020,305,Unrestricted Shared Services,Materials and Supplies - MS
Jefferson State CC,421137,Nebraska Health Care Association ,10/29/2020,673.09,Unrestricted Jefferson Campus,Materials and Supplies - MS
Jefferson State CC,421138,Plexamedia Inc. ,10/29/2020,588,DHR Childcare 2XX0-2XX1,Advertising & Promotions - OOS
Jefferson State CC,421138,Plexamedia Inc. ,10/29/2020,1068,Unrestricted Shared Services,Technology - non capitalized - MS
Jefferson State CC,421139,Plumb-Tech Inc. ,10/29/2020,300,R&R Jefferson Campus ,Maintenance & Repairs  - OOS
Jefferson State CC,421140,BFI Waste Services LLC ,10/29/2020,50,Unrestricted Jefferson Campus,Waste Disposal - UC
Jefferson State CC,421140,BFI Waste Services LLC ,10/29/2020,604.93,Unrestricted Shelby Campus,Waste Disposal - UC
Jefferson State CC,421141,Scarbrough William,10/29/2020,396,Unrestricted Chilton Campus,Other Professional Fees - PS
Jefferson State CC,421142,Sherwin Williams Company ,10/29/2020,651.29,R&R Jefferson Campus ,Materials and Supplies - MS
Jefferson State CC,421143,Smitherman Daniel,10/29/2020,162,Unrestricted Chilton Campus,Other Professional Fees - PS
Jefferson State CC,421144,Snead State Community College ,10/29/2020,500,Unrestricted Shared Services,Registration Fees- IS
Jefferson State CC,421145,Southwest Water Company ,10/29/2020,1630.8,Unrestricted Shelby Campus,Water & Sewer - UC
Jefferson State CC,421146,State of Alabama ,10/29/2020,48.5,Unrestricted Shared Services,Other Professional Fees - PS
Jefferson State CC,421147,State of Alabama ,10/29/2020,540,Unrestricted Shared Services,Technology - non capitalized - MS
Jefferson State CC,421148,State of Alabama ,10/29/2020,4000,Unrestricted Distance Ed,Technology - non capitalized - MS
Jefferson State CC,421149,The HON Company ,10/29/2020,16944.52,Unrestricted Shared Services,Materials and Supplies - MS
Jefferson State CC,421150,The University of Alabama ,10/29/2020,600,Unrestricted Jefferson Campus,Professional Development - PS
Jefferson State CC,421151,VIRCO Inc ,10/29/2020,9534.78,The Comm Found of Greater Bham,Materials and Supplies - MS
Jefferson State CC,421152,W W Grainger Inc ,10/29/2020,525,R&R Jefferson Campus ,Maintenance & Repairs  - OOS
Jefferson State CC,421152,W W Grainger Inc ,10/29/2020,1547.61,Unrestricted Jefferson Campus,Materials and Supplies - MS
Jefferson State CC,421152,W W Grainger Inc ,10/29/2020,1843.4,Unrestricted Shared Services,Materials and Supplies - MS
Jefferson State CC,421153,Water Works & Sewer Board ,10/29/2020,300.22,Unrestricted Jefferson Campus,Water & Sewer - UC
Jefferson State CC,421153,Water Works & Sewer Board ,10/29/2020,217.02,Unrestricted Shelby Campus,Water & Sewer - UC
Jefferson State CC,421154,Wayne Davis Construction LLC ,10/29/2020,192476,Unrestricted Shelby Campus,Buildings - CE
Jefferson State CC,421155,Wheeler Christopher,10/29/2020,445,Unrestricted Shelby Campus,Other Professional Fees - PS
Jefferson State CC,421156,White James,10/29/2020,320,Unrestricted Jefferson Campus,Other Professional Fees - PS
Jefferson State CC,421157,Whittle Christopher,10/29/2020,243,Unrestricted Chilton Campus,Other Professional Fees - PS
Jefferson State CC,421158,Williams Wanda,10/29/2020,59.88,DHR Childcare 2XX0-2XX1,Materials and Supplies - MS
Jefferson State CC,421159,Williford Orman Construction LLC ,10/29/2020,13828.57,R&R Jefferson Campus ,Buildings - CE
Jefferson State CC,421160,Wittichen Supply Company Inc. ,10/29/2020,775.96,R&R Jefferson Campus ,Maintenance & Repairs  - OOS
Jefferson State CC,147987,Starnes Jane,10/30/2020,2449.63,Unrestricted Shared Services,Payroll
Jefferson State CC,147988,Self Bonnie,10/30/2020,2408.58,Unrestricted Shared Services,Payroll
Jefferson State CC,147989,Harris Seena,10/30/2020,2119.92,Unrestricted Shared Services,Payroll
Jefferson State CC,147990,Wallace Preston,10/30/2020,2586,Unrestricted Shared Services,Payroll
Jefferson State CC,147991,Ray Beth,10/30/2020,1831.04,Unrestricted Shared Services,Payroll
Jefferson State CC,147992,Poe Ami,10/30/2020,1298.46,Unrestricted Shared Services,Payroll
Jefferson State CC,147993,Deason Vicki,10/30/2020,1376.79,Unrestricted Distance Ed,Payroll
Jefferson State CC,147994,McLendon Rita,10/30/2020,2037.38,Unrestricted Shared Services,Payroll
Jefferson State CC,147995,Cox Melanie,10/30/2020,2037.38,Unrestricted Shared Services,Payroll
Jefferson State CC,147996,DeLoach Merissa,10/30/2020,1542.54,Unrestricted Shared Services,Payroll
Jefferson State CC,147997,Jackson Debra,10/30/2020,2037.38,Unrestricted Shared Services,Payroll
Jefferson State CC,147998,Lewis Cara,10/30/2020,1129.92,Unrestricted Shared Services,Payroll
Jefferson State CC,147999,Braswell Gail,10/30/2020,1666.13,Unrestricted Shared Services,Payroll
Jefferson State CC,148000,Archer Teresa,10/30/2020,2202.46,Unrestricted Shared Services,Payroll
Jefferson State CC,148001,Hopkins Seantel,10/30/2020,1748.46,Unrestricted Shared Services,Payroll
Jefferson State CC,148002,Cheeks Tammara,10/30/2020,1294.88,CAPTE OSY Occupation Skills,Payroll
Jefferson State CC,148003,Geralds Jacqueline,10/30/2020,2202.46,AE-State Regular 2XX0-2XX1,Payroll
Jefferson State CC,148004,Hawkins Chelsie,10/30/2020,1088.71,DHR Childcare 2XX0-2XX1,Payroll
Jefferson State CC,148005,Finch Tamara,10/30/2020,1336.33,Unrestricted Shared Services,Payroll
Jefferson State CC,148006,Carr Kathi,10/30/2020,2225.49,Unrestricted Shared Services,Payroll
Jefferson State CC,148007,Coker Pamela,10/30/2020,1418.71,Unrestricted Shared Services,Payroll
Jefferson State CC,148008,Keenum Lisa,10/30/2020,2408.58,Unrestricted Shared Services,Payroll
Jefferson State CC,148009,Cruso Lisa,10/30/2020,2037.38,Unrestricted Shared Services,Payroll
Jefferson State CC,148010,Stockley Ginger,10/30/2020,2037.38,Unrestricted Shared Services,Payroll
Jefferson State CC,148011,Cooper Ginger,10/30/2020,2037.38,Unrestricted Shared Services,Payroll
Jefferson State CC,148012,Grady Octavia,10/30/2020,1501.25,Unrestricted Shared Services,Payroll
Jefferson State CC,148013,Naramore Anna,10/30/2020,1707.58,Unrestricted Shared Services,Payroll
Jefferson State CC,148014,Pugh Sandra,10/30/2020,2491.08,Unrestricted Shared Services,Payroll
Jefferson State CC,148015,Pickens Elizabeth,10/30/2020,2119.92,Unrestricted Shared Services,Payroll
Jefferson State CC,148016,Hughes Tina,10/30/2020,2202.46,Unrestricted Shared Services,Payroll
Jefferson State CC,148017,Turner Jeanie,10/30/2020,2202.46,Unrestricted Shared Services,Payroll
Jefferson State CC,148018,Thomas Donna,10/30/2020,2119.92,Unrestricted Shared Services,Payroll
Jefferson State CC,148019,Boackle Emil,10/30/2020,1707.58,Unrestricted Shared Services,Payroll
Jefferson State CC,148020,Burney Roscelia,10/30/2020,2119.92,Unrestricted Shared Services,Payroll
Jefferson State CC,148021,Carpenter Valencia,10/30/2020,1707.58,Unrestricted Shared Services,Payroll
Jefferson State CC,148022,Collins Angela,10/30/2020,2119.92,Unrestricted Shared Services,Payroll
Jefferson State CC,148023,Duncan Leconyea,10/30/2020,1707.58,Unrestricted Shared Services,Payroll
Jefferson State CC,148024,Fennell Tapeka,10/30/2020,1995.83,Unrestricted Shared Services,Payroll
Jefferson State CC,148025,Foster Deborah,10/30/2020,1294.88,Unrestricted Shared Services,Payroll
Jefferson State CC,148026,Fraser Thompson Stacye,10/30/2020,2408.58,Unrestricted Shared Services,Payroll
Jefferson State CC,148027,Howard Amber,10/30/2020,1171.21,Unrestricted Shared Services,Payroll
Jefferson State CC,148028,Jones Juanita,10/30/2020,1707.58,Unrestricted Shared Services,Payroll
Jefferson State CC,148029,Kelley Pamela,10/30/2020,1336.13,Unrestricted Shared Services,Payroll
Jefferson State CC,148030,Minter Shondrika,10/30/2020,1171.21,Unrestricted Shared Services,Payroll
Jefferson State CC,148031,Pippens Amberetta,10/30/2020,1831.17,Unrestricted Shared Services,Payroll
Jefferson State CC,148032,Silor Virginia,10/30/2020,2532.38,Unrestricted Shared Services,Payroll
Jefferson State CC,148033,Sipe James,10/30/2020,1460,Unrestricted Shared Services,Payroll
Jefferson State CC,148034,Smith Heather,10/30/2020,2037.38,Unrestricted Shared Services,Payroll
Jefferson State CC,148035,Stevens Qianna,10/30/2020,1867.19,Unrestricted Shared Services,Payroll
Jefferson State CC,148036,Urbahns Laura,10/30/2020,2119.92,Unrestricted Shared Services,Payroll
Jefferson State CC,148037,Williams Sonja,10/30/2020,1954.83,Unrestricted Shared Services,Payroll
Jefferson State CC,148038,Chambers Lynn,10/30/2020,1831.04,AE-Federal Regular 2XX0-2XX1,Payroll
Jefferson State CC,148039,Anderson Laurel,10/30/2020,1336.13,Unrestricted Shared Services,Payroll
Jefferson State CC,148040,Smith Lareatha,10/30/2020,2326,Unrestricted Shared Services,Payroll
Jefferson State CC,148041,Clark Natalya,10/30/2020,1831.17,Unrestricted Shared Services,Payroll
Jefferson State CC,148042,Cobb Rose,10/30/2020,2037.13,Unrestricted Shared Services,Payroll
Jefferson State CC,148043,Dunning Freddie,10/30/2020,2408.58,Unrestricted Shared Services,Payroll
Jefferson State CC,148044,Ezell Laura,10/30/2020,1666.13,Unrestricted Shared Services,Payroll
Jefferson State CC,148045,McAdory Tracy,10/30/2020,1996.29,Unrestricted Shared Services,Payroll
Jefferson State CC,148046,Reach Brett,10/30/2020,2449.63,Unrestricted Shared Services,Payroll
Jefferson State CC,148048,Cimalore Beverly,10/30/2020,2398.81,Unrestricted Shared Services,Payroll
Jefferson State CC,148049,Crotwell David,10/30/2020,1625.04,Unrestricted Shared Services,Payroll
Jefferson State CC,148050,Culver Cynthia,10/30/2020,2575.32,Unrestricted Shared Services,Payroll
Jefferson State CC,148051,Fisher Debra,10/30/2020,2022.49,Unrestricted Shared Services,Payroll
Jefferson State CC,148052,Guizar Hector,10/30/2020,1418.71,Unrestricted Shared Services,Payroll
Jefferson State CC,148053,Hagood Anita,10/30/2020,1294.88,Unrestricted Shared Services,Payroll
Jefferson State CC,148054,Holman Beatrice,10/30/2020,1294.88,Unrestricted Shared Services,Payroll
Jefferson State CC,148055,Miller Stephanie,10/30/2020,1984.64,Unrestricted Shared Services,Payroll
Jefferson State CC,148056,Patterson William,10/30/2020,1583.75,Unrestricted Shared Services,Payroll
Jefferson State CC,148057,Pollard Deborah,10/30/2020,2119.92,Unrestricted Shared Services,Payroll
Jefferson State CC,148058,Richey Marty,10/30/2020,2243.5,Unrestricted Shared Services,Payroll
Jefferson State CC,148059,Stewart Aaron,10/30/2020,1047.58,Unrestricted Shared Services,Payroll
Jefferson State CC,148060,Wilson Colton,10/30/2020,1831.04,Unrestricted Shared Services,Payroll
Jefferson State CC,148061,Chamblin Juanita,10/30/2020,2243.5,Unrestricted Shared Services,Payroll
Jefferson State CC,148062,Key Karen,10/30/2020,2408.58,Unrestricted Shared Services,Payroll
Jefferson State CC,148063,Sutton Edreama,10/30/2020,2812.98,Unrestricted Shared Services,Payroll
Jefferson State CC,148064,Hamilton-Williams Margaret,10/30/2020,1625.04,Unrestricted Shared Services,Payroll
Jefferson State CC,148065,Kimble Lisa,10/30/2020,2202.25,Unrestricted Shared Services,Payroll
Jefferson State CC,148066,Cooper Jay,10/30/2020,1129.92,Unrestricted Shared Services,Payroll
Jefferson State CC,148067,Barnett C,10/30/2020,2037.38,Unrestricted Shared Services,Payroll
Jefferson State CC,148068,Borden Leslie,10/30/2020,1171.33,Unrestricted Shared Services,Payroll
Jefferson State CC,148069,Carson William,10/30/2020,1707.58,Unrestricted Shared Services,Payroll
Jefferson State CC,148070,Green Vincent,10/30/2020,1666.13,Unrestricted Shared Services,Payroll
Jefferson State CC,148071,Harris Michael,10/30/2020,1789.88,Unrestricted Shared Services,Payroll
Jefferson State CC,148072,James Selena,10/30/2020,1501.25,Unrestricted Shared Services,Payroll
Jefferson State CC,148073,McDonald Thomas,10/30/2020,2037.38,Unrestricted Shared Services,Payroll
Jefferson State CC,148074,Nathan Charlie,10/30/2020,1418.88,Unrestricted Shared Services,Payroll
Jefferson State CC,148075,Rogers Rodney,10/30/2020,1625.04,Unrestricted Shared Services,Payroll
Jefferson State CC,148076,Solomon R,10/30/2020,1996.13,Unrestricted Shared Services,Payroll
Jefferson State CC,148077,Tidmore Cecil,10/30/2020,1790.13,Unrestricted Shared Services,Payroll
Jefferson State CC,148078,Toney Clifford,10/30/2020,2285,Unrestricted Shared Services,Payroll
Jefferson State CC,148079,Sullivan Terri,10/30/2020,2119.92,Unrestricted Shared Services,Payroll
Jefferson State CC,148080,Brown Kenneth,10/30/2020,1137.63,Unrestricted Shared Services,Payroll
Jefferson State CC,148081,Cunningham Velma,10/30/2020,1583.96,Unrestricted Shared Services,Payroll
Jefferson State CC,148082,Martin Jerry,10/30/2020,1423.43,Unrestricted Shared Services,Payroll
Jefferson State CC,148083,Payne Russell,10/30/2020,2326,Unrestricted Shared Services,Payroll
Jefferson State CC,148084,Pendleton Carolyn,10/30/2020,973.08,Unrestricted Shared Services,Payroll
Jefferson State CC,148085,Purvis Larose,10/30/2020,1583.96,Unrestricted Shared Services,Payroll
Jefferson State CC,148086,Sanders Bernard,10/30/2020,1913.96,Unrestricted Shared Services,Payroll
Jefferson State CC,148087,Steele Kelvin,10/30/2020,1501.38,Unrestricted Shared Services,Payroll
Jefferson State CC,148088,Wilson Dave,10/30/2020,2202.46,Unrestricted Shared Services,Payroll
Jefferson State CC,148089,Brown Mavis,10/30/2020,1130.08,Unrestricted Shared Services,Payroll
Jefferson State CC,148090,Cooper-Cox Robbie,10/30/2020,1295,Unrestricted Shared Services,Payroll
Jefferson State CC,148091,Duchock Anita,10/30/2020,1336.33,Unrestricted Shared Services,Payroll
Jefferson State CC,148092,Johnson Gayle,10/30/2020,802.63,Unrestricted Shared Services,Payroll
Jefferson State CC,148093,Lattimore Rosetta,10/30/2020,1021.87,Unrestricted Shared Services,Payroll
Jefferson State CC,148094,Mathis Brenda,10/30/2020,1501.38,Unrestricted Shared Services,Payroll
Jefferson State CC,148095,Vann Rowella,10/30/2020,1047.58,Unrestricted Shared Services,Payroll
Jefferson State CC,148096,Washington Destin,10/30/2020,1501.38,Unrestricted Shared Services,Payroll
Jefferson State CC,148097,Ellison Jonathan,10/30/2020,1088.83,Unrestricted Shared Services,Payroll
Jefferson State CC,148098,Freeman Robine,10/30/2020,1790.13,Unrestricted Shared Services,Payroll
Jefferson State CC,148099,Kimbrell Skyler,10/30/2020,1088.83,Unrestricted Shared Services,Payroll
Jefferson State CC,148100,Wynn Michael,10/30/2020,1336.33,Unrestricted Shared Services,Payroll
Jefferson State CC,148101,Pettry Sherry,10/30/2020,2202.46,Unrestricted Shared Services,Payroll
Jefferson State CC,148102,Abad Fortunato,10/30/2020,801.12,Unrestricted Shared Services,Payroll
Jefferson State CC,148103,Barnes Charlette,10/30/2020,267.04,Unrestricted Shared Services,Payroll
Jefferson State CC,148104,Broome Kristen,10/30/2020,867.88,Unrestricted Shared Services,Payroll
Jefferson State CC,148105,Bynum Christopher,10/30/2020,300.42,Unrestricted Shared Services,Payroll
Jefferson State CC,148106,Campbell Mae,10/30/2020,1268.44,Unrestricted Shared Services,Payroll
Jefferson State CC,148107,Chapman Chloe,10/30/2020,534.08,Unrestricted Shared Services,Payroll
Jefferson State CC,148108,Coleman Carolyn,10/30/2020,801.12,Unrestricted Shared Services,Payroll
Jefferson State CC,148109,Cook Ladedrice,10/30/2020,634.22,Unrestricted Shared Services,Payroll
Jefferson State CC,148110,Cunningham Dana,10/30/2020,1268.44,Unrestricted Shared Services,Payroll
Jefferson State CC,148111,Duke Juanita,10/30/2020,867.88,Unrestricted Shared Services,Payroll
Jefferson State CC,148112,Dykes Betty,10/30/2020,570,Unrestricted Shared Services,Payroll
Jefferson State CC,148113,Ellis April,10/30/2020,1001.4,Unrestricted Shared Services,Payroll
Jefferson State CC,148114,Fricker Heather,10/30/2020,333.8,Unrestricted Shared Services,Payroll
Jefferson State CC,148115,Gomez Joseph,10/30/2020,951.33,Unrestricted Shared Services,Payroll
Jefferson State CC,148116,Gonzalez Samantha,10/30/2020,801.12,Unrestricted Shared Services,Payroll
Jefferson State CC,148117,Hacker Mary,10/30/2020,100.14,Unrestricted Shared Services,Payroll
Jefferson State CC,148118,Hall Daniel,10/30/2020,801.12,Unrestricted Shared Services,Payroll
Jefferson State CC,148119,Hallmark Brenda,10/30/2020,634.22,Unrestricted Shared Services,Payroll
Jefferson State CC,148120,Hart Melody,10/30/2020,1235.06,Unrestricted Shared Services,Payroll
Jefferson State CC,148121,Liddle Anna,10/30/2020,100.14,Unrestricted Shared Services,Payroll
Jefferson State CC,148122,Lovorn Matthew,10/30/2020,166.9,Unrestricted Shared Services,Payroll
Jefferson State CC,148123,Mahaffey Alexis,10/30/2020,1335.2,Unrestricted Shared Services,Payroll
Jefferson State CC,148124,McEntire Ann,10/30/2020,166.9,Unrestricted Shared Services,Payroll
Jefferson State CC,148125,McKinney Ashley,10/30/2020,150.21,Unrestricted Shared Services,Payroll
Jefferson State CC,148126,Metcalf Angela,10/30/2020,333.8,Unrestricted Shared Services,Payroll
Jefferson State CC,148127,Milam Toshia,10/30/2020,1902.66,Unrestricted Shared Services,Payroll
Jefferson State CC,148128,Miller Shaleen,10/30/2020,534.08,Unrestricted Shared Services,Payroll
Jefferson State CC,148129,Morgan Zachary,10/30/2020,734.36,Unrestricted Shared Services,Payroll
Jefferson State CC,148130,Odom Donna,10/30/2020,534.08,Unrestricted Shared Services,Payroll
Jefferson State CC,148131,Pair Edward,10/30/2020,400.56,Unrestricted Shared Services,Payroll
Jefferson State CC,148132,Ramsey Casey,10/30/2020,1268.44,Unrestricted Shared Services,Payroll
Jefferson State CC,148133,Saemaldaher Melanie,10/30/2020,667.6,Unrestricted Shared Services,Payroll
Jefferson State CC,148134,Sasser Carol,10/30/2020,1268.44,Unrestricted Shared Services,Payroll
Jefferson State CC,148135,Seckinger Kyle,10/30/2020,667.6,Unrestricted Shared Services,Payroll
Jefferson State CC,148136,Self Allison,10/30/2020,1268.44,Unrestricted Shared Services,Payroll
Jefferson State CC,148137,Sledge Sherman,10/30/2020,400.56,Unrestricted Shared Services,Payroll
Jefferson State CC,148138,Smith Christopher,10/30/2020,534.08,Unrestricted Shared Services,Payroll
Jefferson State CC,148139,Smith Kandice,10/30/2020,637.5,Unrestricted Shared Services,Payroll
Jefferson State CC,148140,Snipes Britney,10/30/2020,1001.4,Unrestricted Shared Services,Payroll
Jefferson State CC,148141,Tilt Alex,10/30/2020,884.57,Unrestricted Shared Services,Payroll
Jefferson State CC,148142,Tisdale Kristi,10/30/2020,450.63,Unrestricted Shared Services,Payroll
Jefferson State CC,148143,Trawick Brandi,10/30/2020,634.22,Unrestricted Shared Services,Payroll
Jefferson State CC,148144,Tubbs Carrie,10/30/2020,534.08,Unrestricted Shared Services,Payroll
Jefferson State CC,148145,Watson Shirley,10/30/2020,968.02,Unrestricted Shared Services,Payroll
Jefferson State CC,148146,Weeks Laura,10/30/2020,867.88,Unrestricted Shared Services,Payroll
Jefferson State CC,148147,York Morgan,10/30/2020,600.84,Unrestricted Shared Services,Payroll
Jefferson State CC,148148,Hyde Natalie,10/30/2020,1188,Unrestricted Shared Services,Payroll
Jefferson State CC,148149,Yates Lanette,10/30/2020,264,Unrestricted Shared Services,Payroll
Jefferson State CC,148150,Fach Colin,10/30/2020,1034.36,Unrestricted Shared Services,Payroll
Jefferson State CC,148151,Harvey Richard,10/30/2020,1418.8,Unrestricted Shared Services,Payroll
Jefferson State CC,148152,Haywood James,10/30/2020,680.5,Unrestricted Shared Services,Payroll
Jefferson State CC,148153,Johnson Matthew,10/30/2020,408.3,Unrestricted Shared Services,Payroll
Jefferson State CC,148154,Johnson Trenton,10/30/2020,707.72,Unrestricted Shared Services,Payroll
Jefferson State CC,148155,McDonnell Kyle,10/30/2020,1525.21,Unrestricted Shared Services,Payroll
Jefferson State CC,148156,Nabors Stephen,10/30/2020,381.08,Unrestricted Shared Services,Payroll
Jefferson State CC,148157,Panepento Matthew,10/30/2020,1034.36,Unrestricted Shared Services,Payroll
Jefferson State CC,148158,Ward William,10/30/2020,1034.36,Unrestricted Shared Services,Payroll
Jefferson State CC,148159,Brantley Karlie,10/30/2020,1143.27,Unrestricted Shared Services,Payroll
Jefferson State CC,148160,Chesser Jennifer,10/30/2020,950,Unrestricted Shared Services,Payroll
Jefferson State CC,148161,Smith Lisa,10/30/2020,950,Unrestricted Shared Services,Payroll
Jefferson State CC,148162,Stephens Sheila,10/30/2020,1027.52,Unrestricted Shared Services,Payroll
Jefferson State CC,148163,Agee Teisha,10/30/2020,1050,CAPTE OSY Occupation Skills,Payroll
Jefferson State CC,148164,Anderson LaToya,10/30/2020,465.08,AE-State Regular 2XX0-2XX1,Payroll
Jefferson State CC,148165,Arrowsmith Janice,10/30/2020,803.32,AE-Federal Regular 2XX0-2XX1,Payroll
Jefferson State CC,148166,Badio Jessical,10/30/2020,856.17,AE-Federal Regular 2XX0-2XX1,Payroll
Jefferson State CC,148167,Barnett Laura,10/30/2020,866.74,AE-State Regular 2XX0-2XX1,Payroll
Jefferson State CC,148168,Blackmon Archie,10/30/2020,803.32,AE-Federal Regular 2XX0-2XX1,Payroll
Jefferson State CC,148169,Brown Edith,10/30/2020,549.64,AE - State Inst'l 2XX0-2XX1,Payroll
Jefferson State CC,148170,Callins Lillian,10/30/2020,475.65,AE-Federal Regular 2XX0-2XX1,Payroll
Jefferson State CC,148171,Coleman Henry,10/30/2020,803.32,AE-Federal Regular 2XX0-2XX1,Payroll
Jefferson State CC,148172,Cook Kimberly,10/30/2020,803.32,AE-State Regular 2XX0-2XX1,Payroll
Jefferson State CC,148173,Davis Jeffrey,10/30/2020,990.36,AE-State Regular 2XX0-2XX1,Payroll
Jefferson State CC,148174,Derrick Mona,10/30/2020,771.61,AE-Federal IEL/CE 2XX0-2XX1,Payroll
Jefferson State CC,148175,Eichhorn Rhonda,10/30/2020,422.8,AE-State Regular 2XX0-2XX1,Payroll
Jefferson State CC,148176,Hawkins Felita,10/30/2020,792,AE-State Regular 2XX0-2XX1,Payroll
Jefferson State CC,148177,Jones Desamane,10/30/2020,594,CAPTE OSY Occupation Skills,Payroll
Jefferson State CC,148178,Latham Shane,10/30/2020,887.88,AE-Federal Regular 2XX0-2XX1,Payroll
Jefferson State CC,148179,Markovitz Yevonne,10/30/2020,845.6,AE-State Regular 2XX0-2XX1,Payroll
Jefferson State CC,148180,Merritt Adrienne,10/30/2020,655.2,AE-Federal Regular 2XX0-2XX1,Payroll
Jefferson State CC,148181,Miner Rebecca,10/30/2020,739.9,AE-State Regular 2XX0-2XX1,Payroll
Jefferson State CC,148182,Montgomery Helen,10/30/2020,105.7,AE-State Regular 2XX0-2XX1,Payroll
Jefferson State CC,148183,Moore Cynthia,10/30/2020,475.65,AE-State Regular 2XX0-2XX1,Payroll
Jefferson State CC,148184,Morgan Mary,10/30/2020,561.6,AE - State Inst'l 2XX0-2XX1,Payroll
Jefferson State CC,148185,Oberneder Connie,10/30/2020,594,AE-State Regular 2XX0-2XX1,Payroll
Jefferson State CC,148186,Pearson Regina,10/30/2020,686.4,AE-State Regular 2XX0-2XX1,Payroll
Jefferson State CC,148187,Rea Patricia,10/30/2020,761.04,AE - State Inst'l 2XX0-2XX1,Payroll
Jefferson State CC,148188,Riggins Resha,10/30/2020,422.8,AE-State Regular 2XX0-2XX1,Payroll
Jefferson State CC,148189,Rudd Julia,10/30/2020,782.18,AE-State Regular 2XX0-2XX1,Payroll
Jefferson State CC,148190,Scott Angela,10/30/2020,380.52,AE-Federal Regular 2XX0-2XX1,Payroll
Jefferson State CC,148191,Sheffield Virginia,10/30/2020,187.2,AE-State Regular 2XX0-2XX1,Payroll
Jefferson State CC,148192,Sheikh Linda,10/30/2020,327.67,AE-State Regular 2XX0-2XX1,Payroll
Jefferson State CC,148193,Skalac Robyn,10/30/2020,380.52,AE-State Regular 2XX0-2XX1,Payroll
Jefferson State CC,148194,Snider Charles,10/30/2020,647.19,AE-State Regular 2XX0-2XX1,Payroll
Jefferson State CC,148195,Spraberry Mollie,10/30/2020,687.75,AE-State Regular 2XX0-2XX1,Payroll
Jefferson State CC,148196,Tucker Savannah,10/30/2020,600.75,CAPTE OSY Occupation Skills,Payroll
Jefferson State CC,148197,Tucker Selesta,10/30/2020,761.04,AE-State Regular 2XX0-2XX1,Payroll
Jefferson State CC,148198,Vinson John,10/30/2020,887.88,AE-State Regular 2XX0-2XX1,Payroll
Jefferson State CC,148199,Vinson Phyllis,10/30/2020,803.32,AE-State Regular 2XX0-2XX1,Payroll
Jefferson State CC,148200,Wiginton Beverly,10/30/2020,887.88,AE-State Regular 2XX0-2XX1,Payroll
Jefferson State CC,148201,Wood Gayle,10/30/2020,613.06,AE-State Regular 2XX0-2XX1,Payroll
Jefferson State CC,148202,Breaux Carolyn,10/30/2020,654.36,Unrestricted Shared Services,Payroll
Jefferson State CC,148203,Foster Richard,10/30/2020,611.52,Unrestricted Shared Services,Payroll
Jefferson State CC,148204,Frank Theresa,10/30/2020,611.52,Unrestricted Shared Services,Payroll
Jefferson State CC,148205,Lee Felicia,10/30/2020,509.6,Unrestricted Shared Services,Payroll
Jefferson State CC,148206,Smith Victoria,10/30/2020,654.36,Unrestricted Shared Services,Payroll
Jefferson State CC,148207,Charping Ronda,10/30/2020,1135.68,Unrestricted Shared Services,Payroll
Jefferson State CC,148208,Armstrong Adell,10/30/2020,570,Unrestricted Shared Services,Payroll
Jefferson State CC,148209,Addington Jennifer,10/30/2020,1580.8,Unrestricted Shared Services,Payroll
Jefferson State CC,148210,Barnwell Jordan,10/30/2020,249.6,Unrestricted Shared Services,Payroll
Jefferson State CC,148211,Bishop Patrick,10/30/2020,707.2,Unrestricted Shared Services,Payroll
Jefferson State CC,148212,Chappel Delena,10/30/2020,956.8,Unrestricted Shared Services,Payroll
Jefferson State CC,148213,Crump Kimberly,10/30/2020,790.4,Unrestricted Shared Services,Payroll
Jefferson State CC,148214,Flanagan Soneaqua,10/30/2020,811.2,Unrestricted Shared Services,Payroll
Jefferson State CC,148215,Graves Candise,10/30/2020,249.6,Unrestricted Shared Services,Payroll
Jefferson State CC,148216,Kamp Linda,10/30/2020,582.4,Unrestricted Shared Services,Payroll
Jefferson State CC,148217,Kimbrough LeoNardra,10/30/2020,360,Unrestricted Shared Services,Payroll
Jefferson State CC,148218,Lewis Mynina,10/30/2020,385.63,Unrestricted Shared Services,Payroll
Jefferson State CC,148219,McLain Christine,10/30/2020,1747.2,Women's Fund Opport in Healthcare,Payroll
Jefferson State CC,148220,Mills Justin,10/30/2020,998.4,Unrestricted Shared Services,Payroll
Jefferson State CC,148221,Moore Caitlin,10/30/2020,374.4,Unrestricted Shared Services,Payroll
Jefferson State CC,148222,Parker Lakisha,10/30/2020,728,Unrestricted Shared Services,Payroll
Jefferson State CC,148223,Parsons Charles,10/30/2020,124.8,Unrestricted Shared Services,Payroll
Jefferson State CC,148224,Payne Angela,10/30/2020,1330,Unrestricted Shared Services,Payroll
Jefferson State CC,148225,Pleasant Nikesha,10/30/2020,998.4,Unrestricted Shared Services,Payroll
Jefferson State CC,148226,Purdy Zane,10/30/2020,166.4,Unrestricted Shared Services,Payroll
Jefferson State CC,148227,Roan Carl,10/30/2020,291.2,Field Engineering Training 2020-068,Payroll
Jefferson State CC,148228,Russell Stephanie,10/30/2020,644.8,Unrestricted Shared Services,Payroll
Jefferson State CC,148229,Suttle Debra,10/30/2020,1206.4,Unrestricted Shared Services,Payroll
Jefferson State CC,148230,Swift Mitzi,10/30/2020,291.2,Unrestricted Shared Services,Payroll
Jefferson State CC,148231,Taylor Pandra,10/30/2020,140,City of Bham Bold Program 19-20,Payroll
Jefferson State CC,148232,Thomas Linda,10/30/2020,1747.2,Unrestricted Shared Services,Payroll
Jefferson State CC,148233,Washington Ellise,10/30/2020,499.2,Unrestricted Shared Services,Payroll
Jefferson State CC,148234,Willis Erica,10/30/2020,624,Unrestricted Shared Services,Payroll
Jefferson State CC,148235,Winborn Jennifer,10/30/2020,499.2,Unrestricted Shared Services,Payroll
Jefferson State CC,148236,Busby Yvette,10/30/2020,988,Unrestricted Shared Services,Payroll
Jefferson State CC,148237,Jones Lesia,10/30/2020,570,Unrestricted Shared Services,Payroll
Jefferson State CC,148238,Glover Anita,10/30/2020,582.08,Unrestricted Shared Services,Payroll
Jefferson State CC,148239,Moore Kimberly,10/30/2020,794.64,Unrestricted Shared Services,Payroll
Jefferson State CC,148240,Stewart Janice,10/30/2020,690.58,Unrestricted Shared Services,Payroll
Jefferson State CC,148241,Amerson-Dobbs Jessica,10/30/2020,441,Unrestricted Shared Services,Payroll
Jefferson State CC,148242,Cannon Kimberly,10/30/2020,456.75,Unrestricted Shared Services,Payroll
Jefferson State CC,148243,Grayson Shirley,10/30/2020,441,Unrestricted Shared Services,Payroll
Jefferson State CC,148244,Niswander Carly,10/30/2020,267.75,Unrestricted Shared Services,Payroll
Jefferson State CC,148245,Payne Adrian,10/30/2020,441,Unrestricted Shared Services,Payroll
Jefferson State CC,148246,Wood Kelly,10/30/2020,399,Unrestricted Shared Services,Payroll
Jefferson State CC,148247,Liddle Elizabeth,10/30/2020,690,Unrestricted Shared Services,Payroll
Jefferson State CC,148248,Wilson Candace,10/30/2020,472.5,Unrestricted Shared Services,Payroll
Jefferson State CC,148249,Adams Taylor,10/30/2020,451.5,Unrestricted Shared Services,Payroll
Jefferson State CC,148250,Allen Felicia,10/30/2020,147,Unrestricted Shared Services,Payroll
Jefferson State CC,148251,Anderson Davida,10/30/2020,357,Unrestricted Shared Services,Payroll
Jefferson State CC,148252,Blankenship Jamie,10/30/2020,430.5,Unrestricted Shared Services,Payroll
Jefferson State CC,148253,Brown Carol,10/30/2020,446.25,Unrestricted Shared Services,Payroll
Jefferson State CC,148254,Carlee Jerrica,10/30/2020,570,Unrestricted Shared Services,Payroll
Jefferson State CC,148255,Carruba Lorrie,10/30/2020,472.5,Unrestricted Shared Services,Payroll
Jefferson State CC,148256,Castleberry James,10/30/2020,441,Unrestricted Shared Services,Payroll
Jefferson State CC,148257,Daniels Nautyca,10/30/2020,399,Unrestricted Shared Services,Payroll
Jefferson State CC,148258,Dunning William,10/30/2020,451.5,Unrestricted Shared Services,Payroll
Jefferson State CC,148259,Franklin Gillian,10/30/2020,399,Unrestricted Shared Services,Payroll
Jefferson State CC,148260,Gordon Mattie,10/30/2020,238.88,Unrestricted Shared Services,Payroll
Jefferson State CC,148261,Hairston Ella,10/30/2020,467.25,Unrestricted Shared Services,Payroll
Jefferson State CC,148262,Hicks Candace,10/30/2020,550,Unrestricted Shared Services,Payroll
Jefferson State CC,148263,Jones Meldryn,10/30/2020,399,Unrestricted Shared Services,Payroll
Jefferson State CC,148264,Kirkland Olivia,10/30/2020,570,Unrestricted Shared Services,Payroll
Jefferson State CC,148265,Marbury Patricia,10/30/2020,810,Unrestricted Shared Services,Payroll
Jefferson State CC,148266,McCoy Ovukeriena,10/30/2020,202.5,Unrestricted Shared Services,Payroll
Jefferson State CC,148267,Owens Jaycee,10/30/2020,378,Unrestricted Shared Services,Payroll
Jefferson State CC,148268,Rheaume Stephanie,10/30/2020,441,Unrestricted Shared Services,Payroll
Jefferson State CC,148269,Richardson Greene Greta,10/30/2020,189,Unrestricted Shared Services,Payroll
Jefferson State CC,148270,Saylor Cleanese,10/30/2020,162.75,Unrestricted Shared Services,Payroll
Jefferson State CC,148271,Smith Khalilah,10/30/2020,697.5,Unrestricted Shared Services,Payroll
Jefferson State CC,148272,Smith Laura,10/30/2020,112.5,Unrestricted Shared Services,Payroll
Jefferson State CC,148273,White Sandra,10/30/2020,399,Unrestricted Shared Services,Payroll
Jefferson State CC,148274,Williams Wanda,10/30/2020,540,Unrestricted Shared Services,Payroll
Jefferson State CC,148275,Wilson Courtney,10/30/2020,330.75,Unrestricted Shared Services,Payroll
Jefferson State CC,148276,Zandi Nader,10/30/2020,1216,Unrestricted Shared Services,Payroll
Jefferson State CC,148277,Adams Floyce,10/30/2020,555,Unrestricted Shared Services,Payroll
Jefferson State CC,148278,Ali Donna,10/30/2020,600,Unrestricted Shared Services,Payroll
Jefferson State CC,148279,Hampton Jacqueline,10/30/2020,225.75,Unrestricted Shared Services,Payroll
Jefferson State CC,148280,McRae Kenneth,10/30/2020,887.88,AE-Federal Regular 2XX0-2XX1,Payroll
Jefferson State CC,148281,Robinson Mattie,10/30/2020,645,Unrestricted Shared Services,Payroll
Jefferson State CC,148282,Brown-Ward Maurita,10/30/2020,336,Unrestricted Shared Services,Payroll
Jefferson State CC,148283,Crim Margaret,10/30/2020,665.6,Unrestricted Shared Services,Payroll
Jefferson State CC,148284,Kirk Willodean,10/30/2020,336,Unrestricted Shared Services,Payroll
Jefferson State CC,148285,Lewis Stephanie,10/30/2020,483,Unrestricted Shared Services,Payroll
Jefferson State CC,148286,Prevo Deborah,10/30/2020,480,Unrestricted Shared Services,Payroll
Jefferson State CC,148287,Gillham Martha,10/30/2020,475,Unrestricted Shared Services,Payroll
Jefferson State CC,148288,Allen Ryan,10/30/2020,120,Unrestricted Shared Services,Payroll
Jefferson State CC,148289,Balog Adam,10/30/2020,168,Unrestricted Shared Services,Payroll
Jefferson State CC,148290,Boggan Brenda,10/30/2020,168,Unrestricted Shared Services,Payroll
Jefferson State CC,148291,Burton Kenneth,10/30/2020,682.5,Unrestricted Shared Services,Payroll
Jefferson State CC,148292,Chandler James,10/30/2020,336,Unrestricted Shared Services,Payroll
Jefferson State CC,148293,Cornner Thaddeus,10/30/2020,570,Unrestricted Shared Services,Payroll
Jefferson State CC,148294,Crowe Jeffrey,10/30/2020,495,Unrestricted Shared Services,Payroll
Jefferson State CC,148295,Gibbs John,10/30/2020,637.5,Unrestricted Shared Services,Payroll
Jefferson State CC,148296,Harrell John,10/30/2020,205.8,Unrestricted Shared Services,Payroll
Jefferson State CC,148297,Hicks Alan,10/30/2020,570,Unrestricted Shared Services,Payroll
Jefferson State CC,148298,Johnson Polly,10/30/2020,600,Unrestricted Shared Services,Payroll
Jefferson State CC,148299,Lovelace Michael,10/30/2020,712.5,Unrestricted Shared Services,Payroll
Jefferson State CC,148300,Nelson James,10/30/2020,336,Unrestricted Shared Services,Payroll
Jefferson State CC,148301,Powrzanas Rodney,10/30/2020,412.5,Unrestricted Shared Services,Payroll
Jefferson State CC,148302,Shobe Phillip,10/30/2020,1155,Unrestricted Shared Services,Payroll
Jefferson State CC,148303,Turner Yolanda,10/30/2020,336,Unrestricted Shared Services,Payroll
Jefferson State CC,148304,Partain Mark,10/30/2020,760,Unrestricted Shelby Campus,Payroll
Jefferson State CC,148305,Steele Pamela,10/30/2020,475,Unrestricted Shared Services,Payroll
Jefferson State CC,148306,Crotwell Edward,10/30/2020,890.24,Unrestricted Shared Services,Payroll
Jefferson State CC,148307,Burge Kathy,10/30/2020,409.5,Unrestricted Shared Services,Payroll
Jefferson State CC,148308,Graves Austin,10/30/2020,451.5,Unrestricted Shared Services,Payroll
Jefferson State CC,148309,King Linda,10/30/2020,441,Unrestricted Shared Services,Payroll
Jefferson State CC,148310,Palmore Myra,10/30/2020,451.5,Unrestricted Shared Services,Payroll
Jefferson State CC,148311,Brown Keith,10/30/2020,18333.33,Unrestricted Shared Services,Payroll
Jefferson State CC,148312,Bonds Amanda,10/30/2020,6015.67,Unrestricted Chilton Campus,Payroll
Jefferson State CC,148313,Cabaniss Amanda,10/30/2020,6334.11,Unrestricted Shelby Campus,Payroll
Jefferson State CC,148314,Clifton Teresa,10/30/2020,6334.11,Unrestricted Shelby Campus,Payroll
Jefferson State CC,148315,Craven Kimberly,10/30/2020,8020.89,Unrestricted St. Clair Campus,Payroll
Jefferson State CC,148316,Cuevas Jennifer,10/30/2020,6242.54,Unrestricted Shared Services,Payroll
Jefferson State CC,148317,Daffron Cristy,10/30/2020,8420.89,Unrestricted St. Clair Campus,Payroll
Jefferson State CC,148318,Ferguson Ladeitris,10/30/2020,7363.44,Unrestricted Shelby Campus,Payroll
Jefferson State CC,148319,Forbes Christopher,10/30/2020,7927.78,Unrestricted Chilton Campus,Payroll
Jefferson State CC,148320,French Kimberly,10/30/2020,7527.78,Unrestricted Jefferson Campus,Payroll
Jefferson State CC,148321,Grimes Natasha,10/30/2020,6242.54,Unrestricted Shared Services,Payroll
Jefferson State CC,148322,Havard Patricia,10/30/2020,9171.44,Unrestricted Shelby Campus,Payroll
Jefferson State CC,148323,Haywood Patricia,10/30/2020,8020.89,Unrestricted Shelby Campus,Payroll
Jefferson State CC,148324,Hicks Stacy,10/30/2020,7527.78,Unrestricted Jefferson Campus,Payroll
Jefferson State CC,148325,Hill Cynthia,10/30/2020,6334.11,Unrestricted Jefferson Campus,Payroll
Jefferson State CC,148326,Jones Julie,10/30/2020,8020.89,Unrestricted Chilton Campus,Payroll
Jefferson State CC,148327,Keene Jeremy,10/30/2020,6005.33,Unrestricted Jefferson Campus,Payroll
Jefferson State CC,148328,Lee Donna,10/30/2020,8020.89,Unrestricted Shelby Campus,Payroll
Jefferson State CC,148329,Naramore Anita,10/30/2020,8420.89,Unrestricted Shelby Campus,Payroll
Jefferson State CC,148330,Nasworthy Sara,10/30/2020,8020.89,Unrestricted Shared Services,Payroll
Jefferson State CC,148331,O'Neal Brenda,10/30/2020,9755.42,Unrestricted Shared Services,Payroll
Jefferson State CC,148332,Parker Amber,10/30/2020,6870.33,Unrestricted Jefferson Campus,Payroll
Jefferson State CC,148333,Richardson Gena,10/30/2020,8020.89,Unrestricted Shelby Campus,Payroll
Jefferson State CC,148334,Rowe Tina,10/30/2020,7527.78,Unrestricted Chilton Campus,Payroll
Jefferson State CC,148335,Satterfield Jennifer,10/30/2020,7927.78,Unrestricted Shared Services,Payroll
Jefferson State CC,148336,Smith Jajuana,10/30/2020,6662.78,Unrestricted Shelby Campus,Payroll
Jefferson State CC,148337,Smith Veronica,10/30/2020,5841,Unrestricted Shared Services,Payroll
Jefferson State CC,148338,Turner Venius,10/30/2020,8514,Unrestricted Distance Ed,Payroll
Jefferson State CC,148339,Walker Melisa,10/30/2020,9571.44,Unrestricted Jefferson Campus,Payroll
Jefferson State CC,148340,Willis Rebecca,10/30/2020,5512.11,Unrestricted Shelby Campus,Payroll
Jefferson State CC,148341,Wilson Marjorie,10/30/2020,8020.89,Unrestricted Jefferson Campus,Payroll
Jefferson State CC,148342,Carwell Eric,10/30/2020,6334.11,Unrestricted Jefferson Campus,Payroll
Jefferson State CC,148343,Hill Candance,10/30/2020,7762.56,Unrestricted Jefferson Campus,Payroll
Jefferson State CC,148344,Sweatt Wendy,10/30/2020,8020.89,Unrestricted Jefferson Campus,Payroll
Jefferson State CC,148345,Chamberlain Cassandra,10/30/2020,6456.67,Unrestricted Shared Services,Payroll
Jefferson State CC,148346,Edwards Beverly,10/30/2020,5318.5,Unrestricted Shared Services,Payroll
Jefferson State CC,148347,Hill Mandel,10/30/2020,5554.22,Unrestricted Shelby Campus,Payroll
Jefferson State CC,148348,Norris James,10/30/2020,6732.15,Unrestricted Shelby Campus,Payroll
Jefferson State CC,148349,Arnold Erin,10/30/2020,2924.94,Unrestricted Distance Ed,Payroll
Jefferson State CC,148349,Arnold Erin,10/30/2020,5938.5,Unrestricted Jefferson Campus,Payroll
Jefferson State CC,148350,Baccus Steven,10/30/2020,1100,Unrestricted Shared Services,Payroll
Jefferson State CC,148351,Barnes Debra,10/30/2020,1100,Unrestricted Shared Services,Payroll
Jefferson State CC,148352,Bej Meena,10/30/2020,2389.28,Unrestricted Distance Ed,Payroll
Jefferson State CC,148352,Bej Meena,10/30/2020,7167.83,Unrestricted Shelby Campus,Payroll
Jefferson State CC,148353,Black Kelley,10/30/2020,8570.89,Unrestricted Chilton Campus,Payroll
Jefferson State CC,148354,Boitet Evan,10/30/2020,1100,Unrestricted Shared Services,Payroll
Jefferson State CC,148355,Dodwad-Khan Zareen,10/30/2020,6541.56,Unrestricted Shared Services,Payroll
Jefferson State CC,148356,Hunsinger Ronald,10/30/2020,1100,Unrestricted Shared Services,Payroll
Jefferson State CC,148357,Jackson William,10/30/2020,1100,Unrestricted Shared Services,Payroll
Jefferson State CC,148358,Kin Nicholas,10/30/2020,8141.92,Unrestricted Shared Services,Payroll
Jefferson State CC,148359,Maharrey Julie,10/30/2020,2142.72,Unrestricted Distance Ed,Payroll
Jefferson State CC,148359,Maharrey Julie,10/30/2020,6428.17,Unrestricted Shelby Campus,Payroll
Jefferson State CC,148360,Manners Bettie,10/30/2020,1100,Unrestricted Shared Services,Payroll
Jefferson State CC,148361,Miller Stephanie,10/30/2020,2098.19,Unrestricted Distance Ed,Payroll
Jefferson State CC,148361,Miller Stephanie,10/30/2020,6294.59,Unrestricted Shelby Campus,Payroll
Jefferson State CC,148362,Pettway Markia,10/30/2020,1100,Unrestricted Shared Services,Payroll
Jefferson State CC,148363,Petty Courtney,10/30/2020,2286.02,Unrestricted Distance Ed,Payroll
Jefferson State CC,148363,Petty Courtney,10/30/2020,4641.31,Unrestricted St. Clair Campus,Payroll
Jefferson State CC,148364,Pruitt Karl,10/30/2020,550,Unrestricted Shared Services,Payroll
Jefferson State CC,148365,Raymond Charles,10/30/2020,1100,Unrestricted Shared Services,Payroll
Jefferson State CC,148366,Ross Martha,10/30/2020,7607.11,Unrestricted Jefferson Campus,Payroll
Jefferson State CC,148367,Swindall Amanda,10/30/2020,7913.44,Unrestricted Shared Services,Payroll
Jefferson State CC,148368,Venglarik Charles,10/30/2020,9064,Unrestricted Jefferson Campus,Payroll
Jefferson State CC,148369,Wheeler Crystal,10/30/2020,550,Unrestricted Shared Services,Payroll
Jefferson State CC,148370,Elliott Cindy,10/30/2020,1621.44,Unrestricted Distance Ed,Payroll
Jefferson State CC,148370,Elliott Cindy,10/30/2020,4383.89,Unrestricted Shelby Campus,Payroll
Jefferson State CC,148371,Naugher Leslie,10/30/2020,6403.82,Unrestricted Shared Services,Payroll
Jefferson State CC,148372,Bolton Christie,10/30/2020,6662.78,Unrestricted Shelby Campus,Payroll
Jefferson State CC,148373,Ferguson Lydia,10/30/2020,6334.11,Unrestricted Shelby Campus,Payroll
Jefferson State CC,148374,Trott David,10/30/2020,6157.78,Unrestricted Shelby Campus,Payroll
Jefferson State CC,148375,Campbell Michelle,10/30/2020,6704.67,Unrestricted Distance Ed,Payroll
Jefferson State CC,148376,Healy Kristianna,10/30/2020,4658.67,Unrestricted Distance Ed,Payroll
Jefferson State CC,148377,Turner-Bloch Jodi,10/30/2020,7527.78,Unrestricted Distance Ed,Payroll
Jefferson State CC,148378,Blanton William,10/30/2020,6785.33,Unrestricted Jefferson Campus,Payroll
Jefferson State CC,148379,Bryson Jesse,10/30/2020,1932.67,Unrestricted Distance Ed,Payroll
Jefferson State CC,148379,Bryson Jesse,10/30/2020,4301.75,Unrestricted Jefferson Campus,Payroll
Jefferson State CC,148380,Calhoun James,10/30/2020,4380.75,Unrestricted Shelby Campus,Payroll
Jefferson State CC,148381,Cartwright Darrell,10/30/2020,412.5,Unrestricted Shared Services,Payroll
Jefferson State CC,148382,Cummings Frances,10/30/2020,1799.46,Unrestricted Distance Ed,Payroll
Jefferson State CC,148382,Cummings Frances,10/30/2020,5398.37,Unrestricted Shelby Campus,Payroll
Jefferson State CC,148383,Edge Mary,10/30/2020,1237.5,Unrestricted Shared Services,Payroll
Jefferson State CC,148384,Todd Tiffany,10/30/2020,2744.5,Unrestricted Distance Ed,Payroll
Jefferson State CC,148384,Todd Tiffany,10/30/2020,2744.5,Unrestricted Jefferson Campus,Payroll
Jefferson State CC,148385,Battles Thomas,10/30/2020,6417.83,Unrestricted Shelby Campus,Payroll
Jefferson State CC,148386,Blevins Anthony,10/30/2020,1152.08,Unrestricted Distance Ed,Payroll
Jefferson State CC,148386,Blevins Anthony,10/30/2020,4608.31,Unrestricted Shelby Campus,Payroll
Jefferson State CC,148387,Crawford Wade,10/30/2020,4460.46,Unrestricted Distance Ed,Payroll
Jefferson State CC,148387,Crawford Wade,10/30/2020,1115.12,Unrestricted Jefferson Campus,Payroll
Jefferson State CC,148388,Dobyns Linda,10/30/2020,6646.92,Unrestricted Distance Ed,Payroll
Jefferson State CC,148389,Fletcher La'Toya,10/30/2020,369.79,Unrestricted Shared Services,Payroll
Jefferson State CC,148390,Logan Sandra,10/30/2020,8010.95,Unrestricted Distance Ed,Payroll
Jefferson State CC,148391,Maddox Patricia,10/30/2020,1237.5,Unrestricted Shared Services,Payroll
Jefferson State CC,148392,McGhee Benjamin,10/30/2020,412.5,Unrestricted Shared Services,Payroll
Jefferson State CC,148393,Mitchell Peasant Denedra,10/30/2020,3300.9,Unrestricted Distance Ed,Payroll
Jefferson State CC,148393,Mitchell Peasant Denedra,10/30/2020,2200.6,Unrestricted Jefferson Campus,Payroll
Jefferson State CC,148394,Raza Syed,10/30/2020,5176.66,Unrestricted Distance Ed,Payroll
Jefferson State CC,148394,Raza Syed,10/30/2020,1294.17,Unrestricted Shelby Campus,Payroll
Jefferson State CC,148395,Wood John,10/30/2020,412.5,Unrestricted Shared Services,Payroll
Jefferson State CC,148396,Fisher Justin,10/30/2020,2830.11,Unrestricted Distance Ed,Payroll
Jefferson State CC,148396,Fisher Justin,10/30/2020,4245.17,Unrestricted Shelby Campus,Payroll
Jefferson State CC,148397,Tydlaska Michael,10/30/2020,4719.17,Unrestricted Shared Services,Payroll
Jefferson State CC,148398,Jackson Todd,10/30/2020,3107.43,Unrestricted Jefferson Campus,Payroll
Jefferson State CC,148398,Jackson Todd,10/30/2020,3504.13,Unrestricted Shelby Campus,Payroll
Jefferson State CC,148399,Mitchell Joseph,10/30/2020,1638.94,Unrestricted Jefferson Campus,Payroll
Jefferson State CC,148399,Mitchell Joseph,10/30/2020,6987.06,Unrestricted Shelby Campus,Payroll
Jefferson State CC,148400,Rinsky Glenn,10/30/2020,9007.11,Unrestricted Shelby Campus,Payroll
Jefferson State CC,148401,Avery Camilla,10/30/2020,2443.3,Unrestricted Distance Ed,Payroll
Jefferson State CC,148401,Avery Camilla,10/30/2020,4960.64,Unrestricted Jefferson Campus,Payroll
Jefferson State CC,148402,Crain Carol,10/30/2020,1237.5,Unrestricted Shared Services,Payroll
Jefferson State CC,148403,Griffen Tywain,10/30/2020,1237.5,Unrestricted Shared Services,Payroll
Jefferson State CC,148404,Johnson Ana-Sky,10/30/2020,1237.5,Unrestricted Shared Services,Payroll
Jefferson State CC,148405,Mayton Patrick,10/30/2020,5727.83,Unrestricted Shelby Campus,Payroll
Jefferson State CC,148406,Montgomery Margaret,10/30/2020,1237.5,Unrestricted Shared Services,Payroll
Jefferson State CC,148407,Morgan Melissa,10/30/2020,1237.5,Unrestricted Shared Services,Payroll
Jefferson State CC,148408,Patrick Frank,10/30/2020,825,Unrestricted Shared Services,Payroll
Jefferson State CC,148409,Puckett Christina,10/30/2020,825,Unrestricted Shared Services,Payroll
Jefferson State CC,148410,Richard Mary,10/30/2020,825,Unrestricted Shared Services,Payroll
Jefferson State CC,148411,Thompson Scott,10/30/2020,412.5,Unrestricted Shared Services,Payroll
Jefferson State CC,148412,Warren Germaine,10/30/2020,4053.5,Unrestricted Shared Services,Payroll
Jefferson State CC,148413,Wright Catherine,10/30/2020,1237.5,Unrestricted Shared Services,Payroll
Jefferson State CC,148414,Lanier Mildred,10/30/2020,5821.92,Unrestricted Shelby Campus,Payroll
Jefferson State CC,148415,Thomas Michael,10/30/2020,5002.8,Unrestricted Jefferson Campus,Payroll
Jefferson State CC,148415,Thomas Michael,10/30/2020,1250.7,Unrestricted Shelby Campus,Payroll
Jefferson State CC,148416,Scofield Douglas,10/30/2020,412.5,Unrestricted Shared Services,Payroll
Jefferson State CC,148417,Shepherd Leigh,10/30/2020,412.5,Unrestricted Shared Services,Payroll
Jefferson State CC,148418,Tubbs Cecilia,10/30/2020,7155.78,Unrestricted Distance Ed,Payroll
Jefferson State CC,148419,Boehm Matthew,10/30/2020,6456.67,Unrestricted Jefferson Campus,Payroll
Jefferson State CC,148420,Boyer Katherine,10/30/2020,6907.89,Unrestricted Jefferson Campus,Payroll
Jefferson State CC,148421,Brooks Michael,10/30/2020,1237.5,Unrestricted Shared Services,Payroll
Jefferson State CC,148422,Burke Eleanna,10/30/2020,1237.5,Unrestricted Shared Services,Payroll
Jefferson State CC,148423,Burns Syreeta,10/30/2020,7775.94,Unrestricted Shelby Campus,Payroll
Jefferson State CC,148424,Carr Bethany,10/30/2020,825,Unrestricted Shared Services,Payroll
Jefferson State CC,148425,Caskey Connie,10/30/2020,6221.92,Unrestricted Shelby Campus,Payroll
Jefferson State CC,148426,Conner Debra,10/30/2020,1237.5,Unrestricted Shared Services,Payroll
Jefferson State CC,148427,Cook Susan,10/30/2020,1237.5,Unrestricted Shared Services,Payroll
Jefferson State CC,148428,Cornelius Kindall,10/30/2020,1100,Unrestricted Shared Services,Payroll
Jefferson State CC,148429,Cotten Linda,10/30/2020,825,Unrestricted Shared Services,Payroll
Jefferson State CC,148430,Crumpton Eva,10/30/2020,1237.5,Unrestricted Shared Services,Payroll
Jefferson State CC,148431,Cuevas Eugene,10/30/2020,6417.83,Unrestricted Shelby Campus,Payroll
Jefferson State CC,148432,Forsythe Trisha,10/30/2020,412.5,Unrestricted Shared Services,Payroll
Jefferson State CC,148433,Ginas Gallow Elizabeth,10/30/2020,1237.5,Unrestricted Shared Services,Payroll
Jefferson State CC,148434,Henderson Kristin,10/30/2020,6314.72,Unrestricted Distance Ed,Payroll
Jefferson State CC,148434,Henderson Kristin,10/30/2020,2104.89,Unrestricted Jefferson Campus,Payroll
Jefferson State CC,148435,Hicks Jeremy,10/30/2020,1100,Unrestricted Shared Services,Payroll
Jefferson State CC,148436,Hyde Dianna,10/30/2020,7212.78,Unrestricted Shelby Campus,Payroll
Jefferson State CC,148437,Kaiser Mary,10/30/2020,9171.44,Unrestricted Shelby Campus,Payroll
Jefferson State CC,148438,Kendrick Haley,10/30/2020,4271.58,Unrestricted Shared Services,Payroll
Jefferson State CC,148439,King Jamie,10/30/2020,2756.06,Unrestricted Chilton Campus,Payroll
Jefferson State CC,148439,King Jamie,10/30/2020,2756.05,Unrestricted St. Clair Campus,Payroll
Jefferson State CC,148440,Kitchens Lauren,10/30/2020,7813.92,Unrestricted Shared Services,Payroll
Jefferson State CC,148441,Kosmus Amanda,10/30/2020,1237.5,Unrestricted Shared Services,Payroll
Jefferson State CC,148442,Lewis Erin,10/30/2020,2073.38,Unrestricted Shelby Campus,Payroll
Jefferson State CC,148442,Lewis Erin,10/30/2020,3110.06,Unrestricted St. Clair Campus,Payroll
Jefferson State CC,148443,Mathis Julie,10/30/2020,1237.5,Unrestricted Shared Services,Payroll
Jefferson State CC,148444,Melvin Jacob,10/30/2020,1250.7,Unrestricted Distance Ed,Payroll
Jefferson State CC,148444,Melvin Jacob,10/30/2020,5002.8,Unrestricted St. Clair Campus,Payroll
Jefferson State CC,148445,Merrill John,10/30/2020,5841,Unrestricted Shared Services,Payroll
Jefferson State CC,148446,Moreman Sarah,10/30/2020,962.5,Unrestricted Shared Services,Payroll
Jefferson State CC,148447,Pass Lynn,10/30/2020,825,Unrestricted Shared Services,Payroll
Jefferson State CC,148448,Pelliccio Priscilla,10/30/2020,1237.5,Unrestricted Shared Services,Payroll
Jefferson State CC,148449,Rismanchi-Dolatabadi Leila,10/30/2020,1100,Unrestricted Shared Services,Payroll
Jefferson State CC,148450,Rockett Brian,10/30/2020,6746.61,Unrestricted Shelby Campus,Payroll
Jefferson State CC,148451,Rudd Tammy,10/30/2020,1237.5,Unrestricted Shared Services,Payroll
Jefferson State CC,148452,Steed Thomas,10/30/2020,1237.5,Unrestricted Shared Services,Payroll
Jefferson State CC,148453,Taylor Mary,10/30/2020,825,Unrestricted Shared Services,Payroll
Jefferson State CC,148454,Tubbs Lauren,10/30/2020,1100,Unrestricted Shared Services,Payroll
Jefferson State CC,148455,Ward Christina,10/30/2020,412.5,Unrestricted Shared Services,Payroll
Jefferson State CC,148456,Wyatt Heather,10/30/2020,5676.56,Unrestricted Shared Services,Payroll
Jefferson State CC,148457,Youngblood Mark,10/30/2020,4750.58,Unrestricted Shelby Campus,Payroll
Jefferson State CC,148458,Bacani Tanja,10/30/2020,1237.5,Unrestricted Shared Services,Payroll
Jefferson State CC,148459,Irvin Joseph,10/30/2020,7855.28,Unrestricted Shelby Campus,Payroll
Jefferson State CC,148460,Kline David,10/30/2020,412.5,Unrestricted Shared Services,Payroll
Jefferson State CC,148461,McRae David,10/30/2020,2730.96,Unrestricted Chilton Campus,Payroll
Jefferson State CC,148461,McRae David,10/30/2020,4096.43,Unrestricted St. Clair Campus,Payroll
Jefferson State CC,148462,Parsons Rex,10/30/2020,825,Unrestricted Shared Services,Payroll
Jefferson State CC,148463,Shuffett Wendy,10/30/2020,6565.78,Unrestricted Shelby Campus,Payroll
Jefferson State CC,148464,West Pamela,10/30/2020,7442.78,Unrestricted Jefferson Campus,Payroll
Jefferson State CC,148465,Bonner Phaer,10/30/2020,6253.5,Unrestricted Jefferson Campus,Payroll
Jefferson State CC,148466,Ford Angela,10/30/2020,2065.23,Unrestricted Distance Ed,Payroll
Jefferson State CC,148466,Ford Angela,10/30/2020,3097.85,Unrestricted Jefferson Campus,Payroll
Jefferson State CC,148467,Gasper Sarah,10/30/2020,1349.32,Unrestricted Distance Ed,Payroll
Jefferson State CC,148467,Gasper Sarah,10/30/2020,5397.29,Unrestricted St. Clair Campus,Payroll
Jefferson State CC,148468,Jones Samuel,10/30/2020,3570.6,Unrestricted Distance Ed,Payroll
Jefferson State CC,148468,Jones Samuel,10/30/2020,5355.9,Unrestricted Jefferson Campus,Payroll
Jefferson State CC,148469,Triplett Stanley,10/30/2020,4540.16,Unrestricted Chilton Campus,Payroll
Jefferson State CC,148469,Triplett Stanley,10/30/2020,929.92,Unrestricted Distance Ed,Payroll
Jefferson State CC,148470,Lewis Lucy,10/30/2020,6131.29,Unrestricted Distance Ed,Payroll
Jefferson State CC,148470,Lewis Lucy,10/30/2020,2043.77,Unrestricted Jefferson Campus,Payroll
Jefferson State CC,148471,Aldrich Summer,10/30/2020,6334.11,Unrestricted Shelby Campus,Payroll
Jefferson State CC,148472,Dudchock Natalie,10/30/2020,7155.78,Unrestricted Shelby Campus,Payroll
Jefferson State CC,148473,Hamilton Marisa,10/30/2020,1017.8,Unrestricted Distance Ed,Payroll
Jefferson State CC,148473,Hamilton Marisa,10/30/2020,4071.2,Unrestricted Jefferson Campus,Payroll
Jefferson State CC,148474,Harrison Vernon,10/30/2020,8024.11,Unrestricted Shelby Campus,Payroll
Jefferson State CC,148475,McKinney David,10/30/2020,5103.71,Unrestricted Chilton Campus,Payroll
Jefferson State CC,148475,McKinney David,10/30/2020,1314.59,Unrestricted Distance Ed,Payroll
Jefferson State CC,148475,McKinney David,10/30/2020,1314.59,Unrestricted Shelby Campus,Payroll
Jefferson State CC,148476,Ralya Janice,10/30/2020,9171.44,Unrestricted Shelby Campus,Payroll
Jefferson State CC,148477,Lamb Kristen,10/30/2020,550,Unrestricted Shared Services,Payroll
Jefferson State CC,148478,Punjani Zeenia,10/30/2020,1100,Unrestricted Shared Services,Payroll
Jefferson State CC,148479,Smith Jessica,10/30/2020,1100,Unrestricted Shared Services,Payroll
Jefferson State CC,148480,Adams Vicki,10/30/2020,7980.78,Unrestricted Jefferson Campus,Payroll
Jefferson State CC,148481,Bates Susan,10/30/2020,1237.5,Unrestricted Shared Services,Payroll
Jefferson State CC,148482,Compton Leah,10/30/2020,962.5,Unrestricted Shared Services,Payroll
Jefferson State CC,148483,Cunningham Jarrod,10/30/2020,2257.66,Unrestricted Jefferson Campus,Payroll
Jefferson State CC,148483,Cunningham Jarrod,10/30/2020,2257.67,Unrestricted St. Clair Campus,Payroll
Jefferson State CC,148484,Darby Jeffrey,10/30/2020,7747.83,Unrestricted Shelby Campus,Payroll
Jefferson State CC,148485,Easterling Brittany,10/30/2020,1100,Unrestricted Shared Services,Payroll
Jefferson State CC,148486,Easterling Nanette,10/30/2020,6472.86,Unrestricted Chilton Campus,Payroll
Jefferson State CC,148486,Easterling Nanette,10/30/2020,1232.92,Unrestricted Distance Ed,Payroll
Jefferson State CC,148487,Fall Ethel,10/30/2020,8832.11,Unrestricted Jefferson Campus,Payroll
Jefferson State CC,148488,Gray Mark,10/30/2020,825,Unrestricted Shared Services,Payroll
Jefferson State CC,148489,Green-Douglas Terri,10/30/2020,412.5,Unrestricted Shared Services,Payroll
Jefferson State CC,148490,Hargett Yu-Ing,10/30/2020,4389.43,Unrestricted Distance Ed,Payroll
Jefferson State CC,148490,Hargett Yu-Ing,10/30/2020,3591.35,Unrestricted Shelby Campus,Payroll
Jefferson State CC,148491,Holley Jamie,10/30/2020,1881.83,Unrestricted Distance Ed,Payroll
Jefferson State CC,148491,Holley Jamie,10/30/2020,4607.23,Unrestricted Shelby Campus,Payroll
Jefferson State CC,148492,Moore Sabrina,10/30/2020,4930.75,Unrestricted Shared Services,Payroll
Jefferson State CC,148493,Nagy Lisa,10/30/2020,8570.89,Unrestricted Shelby Campus,Payroll
Jefferson State CC,148494,Shypil Olena,10/30/2020,1100,Unrestricted Shared Services,Payroll
Jefferson State CC,148495,Stricklin Sharon,10/30/2020,1237.5,Unrestricted Shared Services,Payroll
Jefferson State CC,148496,Theodorou Konstantinos,10/30/2020,7487.78,Unrestricted Shelby Campus,Payroll
Jefferson State CC,148497,Thrasher Margaret,10/30/2020,5366.83,Unrestricted Shelby Campus,Payroll
Jefferson State CC,148498,Wallace Robert,10/30/2020,5135.72,Unrestricted Distance Ed,Payroll
Jefferson State CC,148498,Wallace Robert,10/30/2020,5135.72,Unrestricted Jefferson Campus,Payroll
Jefferson State CC,148499,White Samuel,10/30/2020,6815.75,Unrestricted Jefferson Campus,Payroll
Jefferson State CC,148500,Williams Chad,10/30/2020,550,Unrestricted Shared Services,Payroll
Jefferson State CC,148501,Wills Nina,10/30/2020,825,Unrestricted Shared Services,Payroll
Jefferson State CC,148502,Yazdi Roya,10/30/2020,1237.5,Unrestricted Shared Services,Payroll
Jefferson State CC,148503,Gross Montez,10/30/2020,5838.3,AE-Federal Regular 2XX0-2XX1,Payroll
Jefferson State CC,148504,Jett Mary,10/30/2020,2679.22,AE-Federal Regular 2XX0-2XX1,Payroll
Jefferson State CC,148505,Rowland Adrienne,10/30/2020,4187.59,ACCS ARC Strong Initiative,Payroll
Jefferson State CC,148505,Rowland Adrienne,10/30/2020,2062.55,Unrestricted Shared Services,Payroll
Jefferson State CC,148506,Skelton Laurie,10/30/2020,3787.89,AE-Federal Regular 2XX0-2XX1,Payroll
Jefferson State CC,148507,Stanley Nathaniel,10/30/2020,3750,CAPTE-WIOA,Payroll
Jefferson State CC,148508,Wood Barbara,10/30/2020,5971.75,AE-Federal Regular 2XX0-2XX1,Payroll
Jefferson State CC,148509,Best Fred,10/30/2020,412.5,Unrestricted Shared Services,Payroll
Jefferson State CC,148510,Carlisle Steven,10/30/2020,5225.44,Unrestricted Shared Services,Payroll
Jefferson State CC,148511,Safavi Seyed,10/30/2020,6324.15,Unrestricted Chilton Campus,Payroll
Jefferson State CC,148512,Adams Iris,10/30/2020,2975.92,DHR Childcare 2XX0-2XX1,Payroll
Jefferson State CC,148513,Gallimore Charlette,10/30/2020,2903.33,DHR Childcare 2XX0-2XX1,Payroll
Jefferson State CC,148514,Lattimore Paula,10/30/2020,3109.17,DHR Childcare 2XX0-2XX1,Payroll
Jefferson State CC,148515,Seagle Heather,10/30/2020,5165.34,Unrestricted Distance Ed,Payroll
Jefferson State CC,148515,Seagle Heather,10/30/2020,1291.33,Unrestricted Jefferson Campus,Payroll
Jefferson State CC,148516,Shackelford Cindy,10/30/2020,1094.15,DHR Childcare 2XX0-2XX1,Payroll
Jefferson State CC,148516,Shackelford Cindy,10/30/2020,1459.03,Unrestricted Distance Ed,Payroll
Jefferson State CC,148516,Shackelford Cindy,10/30/2020,1458.47,Unrestricted Shelby Campus,Payroll
Jefferson State CC,148516,Shackelford Cindy,10/30/2020,1459.02,Unrestricted St. Clair Campus,Payroll
Jefferson State CC,148517,Stinson Sh'Nique,10/30/2020,2883.11,DHR Childcare 2XX0-2XX1,Payroll
Jefferson State CC,148518,Turner Shelita,10/30/2020,2975.92,DHR Childcare 2XX0-2XX1,Payroll
Jefferson State CC,148519,Williams Wanda,10/30/2020,4804.11,DHR Childcare 2XX0-2XX1,Payroll
Jefferson State CC,148520,Davidson Susan,10/30/2020,1100,Unrestricted Shared Services,Payroll
Jefferson State CC,148521,Ennis Jzyk,10/30/2020,3668.58,Unrestricted Distance Ed,Payroll
Jefferson State CC,148521,Ennis Jzyk,10/30/2020,5502.86,Unrestricted Jefferson Campus,Payroll
Jefferson State CC,148522,Smith Venus,10/30/2020,1778.53,Unrestricted Distance Ed,Payroll
Jefferson State CC,148522,Smith Venus,10/30/2020,5335.58,Unrestricted Jefferson Campus,Payroll
Jefferson State CC,148523,Carter Michael,10/30/2020,6785.33,Unrestricted Shelby Campus,Payroll
Jefferson State CC,148524,Wilcher Donald,10/30/2020,7452.17,Unrestricted Jefferson Campus,Payroll
Jefferson State CC,148525,Scott James,10/30/2020,4934.33,Unrestricted Shared Services,Payroll
Jefferson State CC,148526,Taylor Danny,10/30/2020,6005.33,Unrestricted Jefferson Campus,Payroll
Jefferson State CC,148527,Wiley Jeffrey,10/30/2020,4804.26,Unrestricted Jefferson Campus,Payroll
Jefferson State CC,148527,Wiley Jeffrey,10/30/2020,1201.07,Unrestricted St. Clair Campus,Payroll
Jefferson State CC,148528,Bigbee Leah,10/30/2020,7652.67,Unrestricted Shared Services,Payroll
Jefferson State CC,148529,Rainwater Scotty,10/30/2020,741.41,Unrestricted Shared Services,Payroll
Jefferson State CC,148530,LeBlanc Vanessa,10/30/2020,8141.92,Unrestricted Shared Services,Payroll
Jefferson State CC,148531,Hughes Kevin,10/30/2020,412.5,Unrestricted Shared Services,Payroll
Jefferson State CC,148532,Coburn Danielle,10/30/2020,10867.91,Unrestricted Shared Services,Payroll
Jefferson State CC,148533,Brown Catherine,10/30/2020,1415.06,Unrestricted Chilton Campus,Payroll
Jefferson State CC,148533,Brown Catherine,10/30/2020,5660.22,Unrestricted Shelby Campus,Payroll
Jefferson State CC,148534,Echols Danise,10/30/2020,1998.83,Unrestricted Distance Ed,Payroll
Jefferson State CC,148534,Echols Danise,10/30/2020,2998.25,Unrestricted Shelby Campus,Payroll
Jefferson State CC,148535,Hallmark Camille,10/30/2020,1398.29,Unrestricted Distance Ed,Payroll
Jefferson State CC,148535,Hallmark Camille,10/30/2020,5593.15,Unrestricted Jefferson Campus,Payroll
Jefferson State CC,148536,Harris Liesl,10/30/2020,9110,Unrestricted Shared Services,Payroll
Jefferson State CC,148537,Bell Norma,10/30/2020,10525.25,Unrestricted Shared Services,Payroll
Jefferson State CC,148538,Bierley Jason,10/30/2020,6573.16,Unrestricted Shared Services,Payroll
Jefferson State CC,148539,Moore Kenneth,10/30/2020,6367.4,Unrestricted Shared Services,Payroll
Jefferson State CC,148540,Sykes-Bennett Latosha,10/30/2020,4968.48,Unrestricted Shared Services,Payroll
Jefferson State CC,148541,Alexander Zachary,10/30/2020,6417.83,Unrestricted St. Clair Campus,Payroll
Jefferson State CC,148542,Culbertson Shay,10/30/2020,5163.08,Unrestricted Jefferson Campus,Payroll
Jefferson State CC,148542,Culbertson Shay,10/30/2020,1721.03,Unrestricted Shelby Campus,Payroll
Jefferson State CC,148543,Davis Alan,10/30/2020,8943.33,Unrestricted Shared Services,Payroll
Jefferson State CC,148544,Luna Wilmer,10/30/2020,8020.89,Unrestricted Shelby Campus,Payroll
Jefferson State CC,148545,Lyons Charlotte,10/30/2020,7212.78,Unrestricted Distance Ed,Payroll
Jefferson State CC,148546,Payne Michael,10/30/2020,5096.27,Unrestricted Shared Services,Payroll
Jefferson State CC,148547,Townes Kevin,10/30/2020,7887.78,Unrestricted Shelby Campus,Payroll
Jefferson State CC,148548,Folds Dusty,10/30/2020,6417.83,Unrestricted Jefferson Campus,Payroll
Jefferson State CC,148549,Goss Barbara,10/30/2020,7634.83,Unrestricted Shared Services,Payroll
Jefferson State CC,148550,King Clare,10/30/2020,5841,Unrestricted St. Clair Campus,Payroll
Jefferson State CC,148551,Lawley Heather,10/30/2020,6209.94,Unrestricted Shared Services,Payroll
Jefferson State CC,148552,Stewart Sharon,10/30/2020,6005.33,Unrestricted Shelby Campus,Payroll
Jefferson State CC,148553,Ginn Shannon,10/30/2020,6470.45,Unrestricted Shared Services,Payroll
Jefferson State CC,148554,Lane Tiffany,10/30/2020,5306.16,Unrestricted Shared Services,Payroll
Jefferson State CC,148555,Sherman Anne,10/30/2020,5916.14,Unrestricted Shared Services,Payroll
Jefferson State CC,148556,Armstrong Toneka,10/30/2020,5953.51,Unrestricted Shared Services,Payroll
Jefferson State CC,148557,Bobo Cynthia,10/30/2020,6995.79,Unrestricted Shared Services,Payroll
Jefferson State CC,148558,Call Jacob,10/30/2020,5100,Unrestricted Shared Services,Payroll
Jefferson State CC,148559,Creer Reina,10/30/2020,2833.33,Unrestricted Shared Services,Payroll
Jefferson State CC,148560,Emmerich Julie,10/30/2020,5942.9,Unrestricted Shared Services,Payroll
Jefferson State CC,148561,Goodman Adam,10/30/2020,6585.8,Unrestricted Shared Services,Payroll
Jefferson State CC,148562,Guinn Philip,10/30/2020,6898.01,Unrestricted Shared Services,Payroll
Jefferson State CC,148563,Hobbs Phillip,10/30/2020,11912.12,Unrestricted Shared Services,Payroll
Jefferson State CC,148564,Johnson Kathleen,10/30/2020,4738.5,Unrestricted Shared Services,Payroll
Jefferson State CC,148565,Lindell TyAnn,10/30/2020,5000,Unrestricted Shared Services,Payroll
Jefferson State CC,148566,Owens Lillian,10/30/2020,9110,Unrestricted Shared Services,Payroll
Jefferson State CC,148567,Rigg Kimberly,10/30/2020,4615.49,Unrestricted Shared Services,Payroll
Jefferson State CC,148568,Sanford Ollena,10/30/2020,5820.31,Unrestricted Shared Services,Payroll
Jefferson State CC,148569,Spence Tracy,10/30/2020,4287.4,Unrestricted Shared Services,Payroll
Jefferson State CC,148570,Thomas Brandy,10/30/2020,3846.24,Unrestricted Shared Services,Payroll
Jefferson State CC,148571,Thompson Rodney,10/30/2020,6467.17,Unrestricted Shared Services,Payroll
Jefferson State CC,148572,Campbell Tracy,10/30/2020,4250,Unrestricted Shared Services,Payroll
Jefferson State CC,148573,Evans Lynn,10/30/2020,5358.18,Unrestricted Shared Services,Payroll
Jefferson State CC,148574,Payne Tamara,10/30/2020,8626,Unrestricted Shared Services,Payroll
Jefferson State CC,148575,Wright Tierra,10/30/2020,6375,AE-State Regular 2XX0-2XX1,Payroll
Jefferson State CC,148576,Alzoubi Kasim,10/30/2020,6989.42,Unrestricted Shared Services,Payroll
Jefferson State CC,148577,Chandler Kimberly,10/30/2020,8505.91,Unrestricted Shared Services,Payroll
Jefferson State CC,148578,Harris Patricia,10/30/2020,7044.22,Unrestricted Shared Services,Payroll
Jefferson State CC,148579,Brown India,10/30/2020,3788.6,Unrestricted Shared Services,Payroll
Jefferson State CC,148580,Cole Ched,10/30/2020,5752.2,Unrestricted Shared Services,Payroll
Jefferson State CC,148581,Cook Paul,10/30/2020,7634.83,Unrestricted Shared Services,Payroll
Jefferson State CC,148582,Morris David,10/30/2020,12867.91,Unrestricted Shared Services,Payroll
Jefferson State CC,148583,Relihan Bruce,10/30/2020,6334.14,Unrestricted Shared Services,Payroll
Jefferson State CC,148584,White Pamela,10/30/2020,6228.28,Unrestricted Shared Services,Payroll
Jefferson State CC,148585,Holmes Elizabeth,10/30/2020,4997.08,Unrestricted Shelby Campus,Payroll
Jefferson State CC,148586,Kennedy Tonja,10/30/2020,5250.12,Unrestricted Shared Services,Payroll
Jefferson State CC,148587,Wilson Kenneth,10/30/2020,10959.33,Unrestricted Shared Services,Payroll
Jefferson State CC,148588,Kin Amanda,10/30/2020,8912,Unrestricted Shared Services,Payroll
Jefferson State CC,148589,Stephens Nareiko,10/30/2020,5722.33,Unrestricted Shared Services,Payroll
Jefferson State CC,148590,Bailey Mark,10/30/2020,8118.75,Unrestricted Shared Services,Payroll
Jefferson State CC,148591,Kennedy Ronphael,10/30/2020,4862,Unrestricted Shared Services,Payroll
Jefferson State CC,148592,Bobo David,10/30/2020,7452.17,Unrestricted Shared Services,Payroll
Jefferson State CC,148593,Creamer Kelli,10/30/2020,6757.13,Unrestricted Shared Services,Payroll
Jefferson State CC,148594,Dawkins Stephen,10/30/2020,4583.33,Unrestricted Shared Services,Payroll
Jefferson State CC,148595,Hill Damita,10/30/2020,7452.17,Unrestricted Shared Services,Payroll
Jefferson State CC,148596,Robinson Darryl,10/30/2020,9588.75,Unrestricted Shared Services,Payroll
Jefferson State CC,148597,Blair David,10/30/2020,5096.27,Unrestricted Shared Services,Payroll
Jefferson State CC,148598,Bowers Andrew,10/30/2020,4524.99,Unrestricted Shared Services,Payroll
Jefferson State CC,148599,Burton James,10/30/2020,6839.1,Unrestricted Shared Services,Payroll
Jefferson State CC,148600,Eubanks Colin,10/30/2020,9411.64,Unrestricted Shared Services,Payroll
Jefferson State CC,148601,McCallister Gregory,10/30/2020,6651.85,Unrestricted Shared Services,Payroll
Jefferson State CC,148602,McCombs Valerie,10/30/2020,6651.86,Unrestricted Shared Services,Payroll
Jefferson State CC,148603,McIntosh Linda,10/30/2020,6989.42,Unrestricted Shared Services,Payroll
Jefferson State CC,148604,Mitchell Michael,10/30/2020,4237.9,Unrestricted Shared Services,Payroll
Jefferson State CC,148605,Moore Stephen,10/30/2020,14888.48,Unrestricted Shared Services,Payroll
Jefferson State CC,148606,Pardazi Behnazsadat,10/30/2020,5656.24,Unrestricted Shared Services,Payroll
Jefferson State CC,148607,Stewart James,10/30/2020,5038.8,Unrestricted Shared Services,Payroll
Jefferson State CC,148608,Tindill-Rohr Elaine,10/30/2020,6651.85,Unrestricted Shared Services,Payroll
Jefferson State CC,148609,Wangle Jonathan,10/30/2020,3995,Unrestricted Shared Services,Payroll
Jefferson State CC,148610,Harris Perry,10/30/2020,6730.92,Unrestricted Shared Services,Payroll
Jefferson State CC,148611,Renshaw Teresa,10/30/2020,6228.28,Unrestricted Shared Services,Payroll
Jefferson State CC,148612,Young Reginald,10/30/2020,3871.61,Unrestricted Shared Services,Payroll
Jefferson State CC,148613,Fulmer Ann,10/30/2020,1437.36,Unrestricted Shared Services,Payroll
Jefferson State CC,148614,Yazdi Aliakbar,10/30/2020,9755.42,Unrestricted Shared Services,Payroll
Jefferson State CC,562532,Swann Christopher,10/30/2020,2037.38,Unrestricted Shared Services,Payroll
Jefferson State CC,562534,Liddle Christiana,10/30/2020,975.76,Unrestricted Shared Services,Payroll
Jefferson State CC,562535,Boland Keema,10/30/2020,267.04,Unrestricted Shared Services,Payroll
Jefferson State CC,562536,Broome Kristy,10/30/2020,267.04,Unrestricted Shared Services,Payroll
Jefferson State CC,562537,Johnson Robert,10/30/2020,950,Unrestricted Shared Services,Payroll
Jefferson State CC,562538,Roberts Barbara,10/30/2020,380.52,AE-State Regular 2XX0-2XX1,Payroll
Jefferson State CC,562539,Sweatt Helen,10/30/2020,549.64,AE-State Regular 2XX0-2XX1,Payroll
Jefferson State CC,562540,Young Katherine,10/30/2020,190.26,AE-State Regular 2XX0-2XX1,Payroll
Jefferson State CC,562541,Begnaud Phillip,10/30/2020,1216,Unrestricted Shared Services,Payroll
Jefferson State CC,562542,O'Hern David,10/30/2020,630,Unrestricted Shared Services,Payroll
Jefferson State CC,562543,Morgan Rickey,10/30/2020,420,Unrestricted Shared Services,Payroll
Jefferson State CC,562544,Channel Raymond,10/30/2020,525,Unrestricted Shared Services,Payroll
Jefferson State CC,562545,Johnson Marvin,10/30/2020,540,Unrestricted Shared Services,Payroll
Jefferson State CC,562546,Karluk Dakota,10/30/2020,441,Unrestricted Shared Services,Payroll
Jefferson State CC,562547,Cresswell Richard,10/30/2020,7114.11,Unrestricted Shelby Campus,Payroll
Jefferson State CC,562548,Culpepper Michael,10/30/2020,550,Unrestricted Shared Services,Payroll
Jefferson State CC,562549,Therrien Corie,10/30/2020,1100,Unrestricted Shared Services,Payroll
Jefferson State CC,562550,Cooper Diamond Tadashia,10/30/2020,5833.33,Unrestricted Shared Services,Payroll
Jefferson State CC,562551,Looney Yvonne,10/30/2020,825,Unrestricted Shared Services,Payroll
Jefferson State CC,562552,Waldron Edward,10/30/2020,1237.5,Unrestricted Shared Services,Payroll
Jefferson State CC,562553,Goss Christine,10/30/2020,412.5,Unrestricted Shared Services,Payroll
Jefferson State CC,562554,Rezek Thomas,10/30/2020,1237.5,Unrestricted Shared Services,Payroll
Jefferson State CC,562555,Smitherman April,10/30/2020,550,Unrestricted Shared Services,Payroll
Jefferson State CC,562556,Dice James,10/30/2020,1100,Unrestricted Shared Services,Payroll
Jefferson State CC,562557,Jones Tonya,10/30/2020,825,Unrestricted Shared Services,Payroll
Jefferson State CC,562558,Hall Melissa,10/30/2020,825,Unrestricted Shared Services,Payroll
Jefferson State CC,A00602913,Barranger Lauren,10/30/2020,1171.33,Unrestricted Shared Services,Payroll
Jefferson State CC,421173,Alabama Power Company ,11/4/2020,447.6,Unrestricted Chilton Campus,Electricity - UC
Jefferson State CC,421173,Alabama Power Company ,11/4/2020,1039.68,Unrestricted Jefferson Campus,Electricity - UC
Jefferson State CC,421173,Alabama Power Company ,11/4/2020,935.25,Unrestricted Shelby Campus,Electricity - UC
Jefferson State CC,421173,Alabama Power Company ,11/4/2020,195,Unrestricted St. Clair Campus,Electricity - UC
Jefferson State CC,421174,Aramark Uniform & Career Apparel Group Inc. ,11/4/2020,141.92,Unrestricted Shelby Campus,Materials and Supplies - MS
Jefferson State CC,421175,AT&T ,11/4/2020,266.99,Unrestricted Shelby Campus,Landline Phones - UC
Jefferson State CC,421176,Brannon Electric Motor ,11/4/2020,518.35,R&R Jefferson Campus ,Maintenance & Repairs  - OOS
Jefferson State CC,421177,Capitol Materials Inc ,11/4/2020,213.89,R&R Jefferson Campus ,Maintenance & Repairs  - OOS
Jefferson State CC,421178,CDW-Government Inc ,11/4/2020,37736.75,Building Science Technology,Equipment - non capitalized - MS
Jefferson State CC,421178,CDW-Government Inc ,11/4/2020,1713.82,Unrestricted Shelby Campus,Technology - non capitalized - MS
Jefferson State CC,421179,Central Paper Co Inc ,11/4/2020,893.22,Unrestricted Shelby Campus,Materials and Supplies - MS
Jefferson State CC,421180,CenturyTel of Alabama ,11/4/2020,209.43,Unrestricted St. Clair Campus,Landline Phones - UC
Jefferson State CC,421181,City of Cullman ,11/4/2020,400,Unrestricted Shared Services,Registration Fees- IS
Jefferson State CC,421182,City of Pell City ,11/4/2020,437.05,Unrestricted St. Clair Campus,Water & Sewer - UC
Jefferson State CC,421183,Diamedical Usa Equipment Company ,11/4/2020,556.9,Unrestricted Jefferson Campus,Maintenance & Repairs  - OOS
Jefferson State CC,421184,ECOLAB ,11/4/2020,119.52,Unrestricted Shelby Campus,Materials and Supplies - MS
Jefferson State CC,421185,ECOLAB ,11/4/2020,250.95,Unrestricted Shelby Campus,Materials and Supplies - MS
Jefferson State CC,421186,Evans Meats Inc ,11/4/2020,705.13,Unrestricted Shelby Campus,Culinary Consumables
Jefferson State CC,421187,Hodge Mechanical Services LLC ,11/4/2020,13918.82,R&R Shelby Campus ,Maintenance & Repairs  - OOS
Jefferson State CC,421188,Imperial Bag & Paper Co. LLC ,11/4/2020,1958,Unrestricted Jefferson Campus,Materials and Supplies - MS
Jefferson State CC,421188,Imperial Bag & Paper Co. LLC ,11/4/2020,1958,Unrestricted Shelby Campus,Materials and Supplies - MS
Jefferson State CC,421189,Inline Electric Supply Co. Inc ,11/4/2020,588,R&R Jefferson Campus ,Maintenance & Repairs  - OOS
Jefferson State CC,421190,Hobart Service ,11/4/2020,281.25,Unrestricted Shelby Campus,Maintenance & Repairs  - OOS
Jefferson State CC,421191,LeBlanc Vanessa,11/4/2020,540,Unrestricted Shelby Campus,Accreditation Expense - PS
Jefferson State CC,421192,Manufacturing Skill Standards Council ,11/4/2020,20556,ACCS ARC Strong Initiative,Materials and Supplies - MS
Jefferson State CC,421193,Marcus Service & Solutions LLC ,11/4/2020,6930.14,R&R Jefferson Campus ,Maintenance & Repairs  - OOS
Jefferson State CC,421194,Landscape Workshop Parent LLC ,11/4/2020,990,Unrestricted St. Clair Campus,Maintenance & Repairs  - OOS
Jefferson State CC,421195,Office Depot ,11/4/2020,506.24,DHR Childcare 2XX9-2XX0,Materials and Supplies - MS
Jefferson State CC,421195,Office Depot ,11/4/2020,203.64,Unrestricted Shared Services,Materials and Supplies - MS
Jefferson State CC,421195,Office Depot ,11/4/2020,87.74,Unrestricted Shelby Campus,Materials and Supplies - MS
Jefferson State CC,421196,Plumb-Tech Inc. ,11/4/2020,299.68,R&R Shelby Campus ,Maintenance & Repairs  - OOS
Jefferson State CC,421197,Publix Super Markets Inc ,11/4/2020,294.44,Unrestricted Shelby Campus,Culinary Consumables
Jefferson State CC,421198,Regional Produce Distributors LLC ,11/4/2020,465,Unrestricted Shelby Campus,Culinary Consumables
Jefferson State CC,421199,Southern Cleaning Service Inc. / SCSI ,11/4/2020,8500,Unrestricted Shelby Campus,Maintenance & Repairs  - OOS
Jefferson State CC,421200,Spire ,11/4/2020,10893.35,Unrestricted Chilton Campus,Gas & Heating Fuel - UC
Jefferson State CC,421200,Spire ,11/4/2020,20142.69,Unrestricted Jefferson Campus,Gas & Heating Fuel - UC
Jefferson State CC,421200,Spire ,11/4/2020,6846.44,Unrestricted Shelby Campus,Gas & Heating Fuel - UC
Jefferson State CC,421200,Spire ,11/4/2020,31.27,Unrestricted St. Clair Campus,Gas & Heating Fuel - UC
Jefferson State CC,421201,Steven Watkins ,11/4/2020,2369.42,R&R Jefferson Campus ,Maintenance & Repairs  - OOS
Jefferson State CC,421202,Two Roads Inc. ,11/4/2020,5310,Vocational Ed/CTE X9-X0,Institutional Use - OOS
Jefferson State CC,421203,US Foods Inc. ,11/4/2020,944.3,Unrestricted Shelby Campus,Culinary Consumables
Jefferson State CC,421204,W W Grainger Inc ,11/4/2020,96.2,Unrestricted Shared Services,Materials and Supplies - MS
Jefferson State CC,421205,Water Works & Sewer Board ,11/4/2020,56.6,Unrestricted Shelby Campus,Water & Sewer - UC
Jefferson State CC,421239,Lathan Associates Architects P.C. ,11/6/2020,1973.05,R&R Jefferson Campus ,Buildings - CE
Jefferson State CC,421240,Lathan Associates Architects P.C. ,11/6/2020,1319.84,R&R Jefferson Campus ,Buildings - CE
Jefferson State CC,421273,Williford Orman Construction LLC ,11/6/2020,8311.3,Renewal & Replacement Shared Svcs,Accounts Payable-Accrual
Jefferson State CC,421273,Williford Orman Construction LLC ,11/6/2020,6104.6,R&R Jefferson Campus ,Buildings - CE
Jefferson State CC,421279,AHEAD ,11/9/2020,325,Unrestricted Shared Services,Memberships - PS
Jefferson State CC,421280,Alabama Assoc of Collegiate Registrars & Admissions Officer ,11/9/2020,300,Unrestricted Shared Services,Advertising & Promotions - OOS
Jefferson State CC,421283,Alabama Community College System ,11/9/2020,148533,Unrestricted Shared Services,Accounts Payable-Accrual
Jefferson State CC,421284,Alabama Department of Labor ,11/9/2020,1200,Unrestricted Shared Services,Other Professional Fees - PS
Jefferson State CC,421285,Alabama Funeral Directors Association ,11/9/2020,255,Unrestricted Shared Services,Memberships - PS
Jefferson State CC,421286,Albert Uster Imports Inc. ,11/9/2020,116.98,Unrestricted Shelby Campus,Culinary Consumables
Jefferson State CC,421287,Alzoubi Kasim,11/9/2020,27.6,Unrestricted Shared Services,Mileage - IS
Jefferson State CC,421289,Aramark Uniform & Career Apparel Group Inc. ,11/9/2020,34.98,Unrestricted Shelby Campus,Materials and Supplies - MS
Jefferson State CC,421290,AT&T Mobility National Accounts LLC ,11/9/2020,41.24,Unrestricted Shelby Campus,Other Contractual Services - PS
Jefferson State CC,421291,Bank of America ,11/9/2020,602.19,CARES Act - GEERF Public Health,Technology - non capitalized - MS
Jefferson State CC,421291,Bank of America ,11/9/2020,169.75,Unrestricted Shared Services,Technology - non capitalized - MS
Jefferson State CC,421292,Bonds Amanda,11/9/2020,539,Unrestricted St. Clair Campus,Professional Development - PS
Jefferson State CC,421294,City of Pell City ,11/9/2020,69.07,Unrestricted St. Clair Campus,Water & Sewer - UC
Jefferson State CC,421295,Council for Professional Recognition ,11/9/2020,150,DHR Childcare 2XX0-2XX1,Other Professional Fees - PS
Jefferson State CC,421296,Deason Vicki,11/9/2020,367.43,Unrestricted Shared Services,Mileage - IS
Jefferson State CC,421297,Ennis Jzyk,11/9/2020,37.38,Unrestricted Shared Services,Mileage - IS
Jefferson State CC,421297,Ennis Jzyk,11/9/2020,728.52,Unrestricted Shared Services,Mileage - OS
Jefferson State CC,421298,Ezell Laura,11/9/2020,59.92,Unrestricted Shared Services,Mileage - IS
Jefferson State CC,421299,Ferguson Lydia,11/9/2020,48.88,Unrestricted Shelby Campus,Mileage - IS
Jefferson State CC,421300,Harris Perry,11/9/2020,56.23,Unrestricted Jefferson Campus,Engineering & Architectural Svc -PS
Jefferson State CC,421301,Johnson Gerald,11/9/2020,666.67,Unrestricted Shared Services,Other Contractual Services - PS
Jefferson State CC,421302,Kitchens Lauren,11/9/2020,1259.75,Sigma Kappa Delta,Deposit Liabilities - AP
Jefferson State CC,421309,Office Depot ,11/9/2020,190.77,Unrestricted Shelby Campus,Materials and Supplies - MS
Jefferson State CC,421310,Opportunity Systems Incorporating Independence LLC ,11/9/2020,619.2,Unrestricted Shared Services,Other Contractual Services - PS
Jefferson State CC,421311,PEEHIP ,11/9/2020,1600,Unrestricted Shared Services,Instructional Salaries - SW
Jefferson State CC,421311,PEEHIP ,11/9/2020,800,DHR Childcare 2XX0-2XX1,Support Salaries - SW
Jefferson State CC,421311,PEEHIP ,11/9/2020,800,Unrestricted Shared Services,Support Salaries - SW
Jefferson State CC,421312,Pocket Nurse Enterprises Inc. ,11/9/2020,6047.44,ICI Equipment 2XX9-2XX0,Equipment - non capitalized - MS
Jefferson State CC,421313,Ralya Janice,11/9/2020,95.37,Unrestricted Shared Services,Materials and Supplies - MS
Jefferson State CC,421315,Seale Michael,11/9/2020,100,Sigma Chi Eta,Deposit Liabilities - AP
Jefferson State CC,421317,State of Alabama ,11/9/2020,288,Miscellaneous Scholarship,Deposit Liabilities - AP
Jefferson State CC,421319,Sutton Edreama,11/9/2020,34.5,Unrestricted Shared Services,Mileage - IS
Jefferson State CC,421320,Triple Point Industries LLC ,11/9/2020,1775,Unrestricted Shelby Campus,Maintenance & Repairs  - OOS
Jefferson State CC,421322,United Parcel Service Inc ,11/9/2020,62.63,Unrestricted Shared Services,Freight - OOS
Jefferson State CC,421324,University of Alabama at Birmingham ,11/9/2020,500,Dual Enrollment  Sch. 2XX9-2XX0,Materials and Supplies - MS
Jefferson State CC,421325,Varsity Brands Holding Co. Inc. ,11/9/2020,4273.7,Unrestricted Shared Services,Materials and Supplies - MS
Jefferson State CC,421326,Water Works & Sewer Board ,11/9/2020,88.24,Unrestricted Jefferson Campus,Water & Sewer - UC
Jefferson State CC,421327,WEX Bank ,11/9/2020,282.51,Unrestricted Shared Services,Gasoline & Oil - Motor Veh - OOS
Jefferson State CC,421327,WEX Bank ,11/9/2020,66.15,Unrestricted Shelby Campus,Gasoline & Oil - Motor Veh - OOS
Jefferson State CC,148615,Starnes Jane,11/13/2020,2449.63,Unrestricted Shared Services,Payroll
Jefferson State CC,148616,Self Bonnie,11/13/2020,2408.58,Unrestricted Shared Services,Payroll
Jefferson State CC,148617,Harris Seena,11/13/2020,2119.92,Unrestricted Shared Services,Payroll
Jefferson State CC,148618,Wallace Preston,11/13/2020,2586,Unrestricted Shared Services,Payroll
Jefferson State CC,148619,Ray Beth,11/13/2020,1831.04,Unrestricted Shared Services,Payroll
Jefferson State CC,148620,Poe Ami,11/13/2020,1298.46,Unrestricted Shared Services,Payroll
Jefferson State CC,148621,Deason Vicki,11/13/2020,1402.29,Unrestricted Distance Ed,Payroll
Jefferson State CC,148622,McLendon Rita,11/13/2020,2037.38,Unrestricted Shared Services,Payroll
Jefferson State CC,148623,Cox Melanie,11/13/2020,2037.38,Unrestricted Shared Services,Payroll
Jefferson State CC,148624,DeLoach Merissa,11/13/2020,1542.54,Unrestricted Shared Services,Payroll
Jefferson State CC,148625,Jackson Debra,11/13/2020,2037.38,Unrestricted Shared Services,Payroll
Jefferson State CC,148626,Lewis Cara,11/13/2020,1129.92,Unrestricted Shared Services,Payroll
Jefferson State CC,148627,Braswell Gail,11/13/2020,1666.13,Unrestricted Shared Services,Payroll
Jefferson State CC,148628,Archer Teresa,11/13/2020,2202.46,Unrestricted Shared Services,Payroll
Jefferson State CC,148629,Hopkins Seantel,11/13/2020,1748.46,Unrestricted Shared Services,Payroll
Jefferson State CC,148630,Cheeks Tammara,11/13/2020,1294.88,CAPTE OSY Occupation Skills,Payroll
Jefferson State CC,148631,Geralds Jacqueline,11/13/2020,2202.46,AE-State Regular 2XX0-2XX1,Payroll
Jefferson State CC,148632,Hawkins Chelsie,11/13/2020,1088.71,DHR Childcare 2XX0-2XX1,Payroll
Jefferson State CC,148633,Finch Tamara,11/13/2020,1336.33,Unrestricted Shared Services,Payroll
Jefferson State CC,148634,Carr Kathi,11/13/2020,1954.83,Unrestricted Shared Services,Payroll
Jefferson State CC,148635,Coker Pamela,11/13/2020,1418.71,Unrestricted Shared Services,Payroll
Jefferson State CC,148636,Keenum Lisa,11/13/2020,2408.58,Unrestricted Shared Services,Payroll
Jefferson State CC,148637,Cruso Lisa,11/13/2020,2037.38,Unrestricted Shared Services,Payroll
Jefferson State CC,148638,Stockley Ginger,11/13/2020,2037.38,Unrestricted Shared Services,Payroll
Jefferson State CC,148639,Cooper Ginger,11/13/2020,2037.38,Unrestricted Shared Services,Payroll
Jefferson State CC,148640,Grady Octavia,11/13/2020,1501.25,Unrestricted Shared Services,Payroll
Jefferson State CC,148641,Naramore Anna,11/13/2020,1707.58,Unrestricted Shared Services,Payroll
Jefferson State CC,148642,Pugh Sandra,11/13/2020,2491.08,Unrestricted Shared Services,Payroll
Jefferson State CC,148643,Pickens Elizabeth,11/13/2020,2119.92,Unrestricted Shared Services,Payroll
Jefferson State CC,148644,Hughes Tina,11/13/2020,2202.46,Unrestricted Shared Services,Payroll
Jefferson State CC,148645,Turner Jeanie,11/13/2020,2202.46,Unrestricted Shared Services,Payroll
Jefferson State CC,148646,Thomas Donna,11/13/2020,2119.92,Unrestricted Shared Services,Payroll
Jefferson State CC,148647,Boackle Emil,11/13/2020,1707.58,Unrestricted Shared Services,Payroll
Jefferson State CC,148648,Burney Roscelia,11/13/2020,2119.92,Unrestricted Shared Services,Payroll
Jefferson State CC,148649,Carpenter Valencia,11/13/2020,1707.58,Unrestricted Shared Services,Payroll
Jefferson State CC,148650,Collins Angela,11/13/2020,2119.92,Unrestricted Shared Services,Payroll
Jefferson State CC,148651,Duncan Leconyea,11/13/2020,1707.58,Unrestricted Shared Services,Payroll
Jefferson State CC,148652,Fennell Tapeka,11/13/2020,1995.83,Unrestricted Shared Services,Payroll
Jefferson State CC,148653,Foster Deborah,11/13/2020,1294.88,Unrestricted Shared Services,Payroll
Jefferson State CC,148654,Fraser Thompson Stacye,11/13/2020,2408.58,Unrestricted Shared Services,Payroll
Jefferson State CC,148655,Howard Amber,11/13/2020,1171.21,Unrestricted Shared Services,Payroll
Jefferson State CC,148656,Jones Juanita,11/13/2020,1707.58,Unrestricted Shared Services,Payroll
Jefferson State CC,148657,Kelley Pamela,11/13/2020,1336.13,Unrestricted Shared Services,Payroll
Jefferson State CC,148658,Minter Shondrika,11/13/2020,1171.21,Unrestricted Shared Services,Payroll
Jefferson State CC,148659,Pippens Amberetta,11/13/2020,1831.17,Unrestricted Shared Services,Payroll
Jefferson State CC,148660,Silor Virginia,11/13/2020,2532.38,Unrestricted Shared Services,Payroll
Jefferson State CC,148661,Sipe James,11/13/2020,1460,Unrestricted Shared Services,Payroll
Jefferson State CC,148662,Smith Heather,11/13/2020,2037.38,Unrestricted Shared Services,Payroll
Jefferson State CC,148663,Stevens Qianna,11/13/2020,1975.6,Unrestricted Shared Services,Payroll
Jefferson State CC,148664,Urbahns Laura,11/13/2020,2119.92,Unrestricted Shared Services,Payroll
Jefferson State CC,148665,Williams Sonja,11/13/2020,1954.83,Unrestricted Shared Services,Payroll
Jefferson State CC,148666,Chambers Lynn,11/13/2020,1831.04,AE-Federal Regular 2XX0-2XX1,Payroll
Jefferson State CC,148667,Anderson Laurel,11/13/2020,1336.13,Unrestricted Shared Services,Payroll
Jefferson State CC,148668,Clark Natalya,11/13/2020,1831.17,Unrestricted Shared Services,Payroll
Jefferson State CC,148669,Cobb Rose,11/13/2020,2037.13,Unrestricted Shared Services,Payroll
Jefferson State CC,148670,Dunning Freddie,11/13/2020,2408.58,Unrestricted Shared Services,Payroll
Jefferson State CC,148671,Ezell Laura,11/13/2020,1666.13,Unrestricted Shared Services,Payroll
Jefferson State CC,148672,McAdory Tracy,11/13/2020,1996.29,Unrestricted Shared Services,Payroll
Jefferson State CC,148673,Reach Brett,11/13/2020,2449.63,Unrestricted Shared Services,Payroll
Jefferson State CC,148674,Smith Lareatha,11/13/2020,2326,Unrestricted Shared Services,Payroll
Jefferson State CC,148675,Barranger Lauren,11/13/2020,1171.33,Unrestricted Shared Services,Payroll
Jefferson State CC,148676,Cimalore Beverly,11/13/2020,2437.64,Unrestricted Shared Services,Payroll
Jefferson State CC,148677,Crotwell David,11/13/2020,1625.04,Unrestricted Shared Services,Payroll
Jefferson State CC,148678,Culver Cynthia,11/13/2020,2686.48,Unrestricted Shared Services,Payroll
Jefferson State CC,148679,Fisher Debra,11/13/2020,1954.83,Unrestricted Shared Services,Payroll
Jefferson State CC,148680,Guizar Hector,11/13/2020,1418.71,Unrestricted Shared Services,Payroll
Jefferson State CC,148681,Hagood Anita,11/13/2020,1294.88,Unrestricted Shared Services,Payroll
Jefferson State CC,148682,Holman Beatrice,11/13/2020,1294.88,Unrestricted Shared Services,Payroll
Jefferson State CC,148683,Miller Stephanie,11/13/2020,1984.64,Unrestricted Shared Services,Payroll
Jefferson State CC,148684,Patterson William,11/13/2020,1583.75,Unrestricted Shared Services,Payroll
Jefferson State CC,148685,Pollard Deborah,11/13/2020,2257.51,Unrestricted Shared Services,Payroll
Jefferson State CC,148686,Richey Marty,11/13/2020,2243.5,Unrestricted Shared Services,Payroll
Jefferson State CC,148687,Stewart Aaron,11/13/2020,1047.58,Unrestricted Shared Services,Payroll
Jefferson State CC,148688,Wilson Colton,11/13/2020,1831.04,Unrestricted Shared Services,Payroll
Jefferson State CC,148689,Chamblin Juanita,11/13/2020,2243.5,Unrestricted Shared Services,Payroll
Jefferson State CC,148690,Key Karen,11/13/2020,2408.58,Unrestricted Shared Services,Payroll
Jefferson State CC,148691,Sutton Edreama,11/13/2020,2787.09,Unrestricted Shared Services,Payroll
Jefferson State CC,148692,Hamilton-Williams Margaret,11/13/2020,1625.04,Unrestricted Shared Services,Payroll
Jefferson State CC,148693,Kimble Lisa,11/13/2020,2202.25,Unrestricted Shared Services,Payroll
Jefferson State CC,148694,Cooper Jay,11/13/2020,1129.92,Unrestricted Shared Services,Payroll
Jefferson State CC,148695,Barnett C,11/13/2020,2037.38,Unrestricted Shared Services,Payroll
Jefferson State CC,148696,Borden Leslie,11/13/2020,1171.33,Unrestricted Shared Services,Payroll
Jefferson State CC,148697,Carson William,11/13/2020,1707.58,Unrestricted Shared Services,Payroll
Jefferson State CC,148698,Green Vincent,11/13/2020,1666.13,Unrestricted Shared Services,Payroll
Jefferson State CC,148699,Harris Michael,11/13/2020,1789.88,Unrestricted Shared Services,Payroll
Jefferson State CC,148700,James Selena,11/13/2020,1501.25,Unrestricted Shared Services,Payroll
Jefferson State CC,148701,McDonald Thomas,11/13/2020,2037.38,Unrestricted Shared Services,Payroll
Jefferson State CC,148702,Nathan Charlie,11/13/2020,1418.88,Unrestricted Shared Services,Payroll
Jefferson State CC,148703,Rogers Rodney,11/13/2020,1625.04,Unrestricted Shared Services,Payroll
Jefferson State CC,148704,Solomon R,11/13/2020,1996.13,Unrestricted Shared Services,Payroll
Jefferson State CC,148705,Tidmore Cecil,11/13/2020,1790.13,Unrestricted Shared Services,Payroll
Jefferson State CC,148706,Toney Clifford,11/13/2020,2285,Unrestricted Shared Services,Payroll
Jefferson State CC,148707,Sullivan Terri,11/13/2020,2119.92,Unrestricted Shared Services,Payroll
Jefferson State CC,148708,Brown Kenneth,11/13/2020,1137.63,Unrestricted Shared Services,Payroll
Jefferson State CC,148709,Cunningham Velma,11/13/2020,1583.96,Unrestricted Shared Services,Payroll
Jefferson State CC,148710,Martin Jerry,11/13/2020,1501.38,Unrestricted Shared Services,Payroll
Jefferson State CC,148711,Payne Russell,11/13/2020,2326,Unrestricted Shared Services,Payroll
Jefferson State CC,148712,Pendleton Carolyn,11/13/2020,973.08,Unrestricted Shared Services,Payroll
Jefferson State CC,148713,Purvis Larose,11/13/2020,1583.96,Unrestricted Shared Services,Payroll
Jefferson State CC,148714,Sanders Bernard,11/13/2020,1913.96,Unrestricted Shared Services,Payroll
Jefferson State CC,148715,Steele Kelvin,11/13/2020,1501.38,Unrestricted Shared Services,Payroll
Jefferson State CC,148716,Wilson Dave,11/13/2020,2202.46,Unrestricted Shared Services,Payroll
Jefferson State CC,148717,Brown Mavis,11/13/2020,1130.08,Unrestricted Shared Services,Payroll
Jefferson State CC,148718,Cooper-Cox Robbie,11/13/2020,1295,Unrestricted Shared Services,Payroll
Jefferson State CC,148719,Duchock Anita,11/13/2020,1336.33,Unrestricted Shared Services,Payroll
Jefferson State CC,148720,Johnson Gayle,11/13/2020,802.63,Unrestricted Shared Services,Payroll
Jefferson State CC,148721,Lattimore Rosetta,11/13/2020,1088.83,Unrestricted Shared Services,Payroll
Jefferson State CC,148722,Mathis Brenda,11/13/2020,1501.38,Unrestricted Shared Services,Payroll
Jefferson State CC,148723,Vann Rowella,11/13/2020,1047.58,Unrestricted Shared Services,Payroll
Jefferson State CC,148724,Washington Destin,11/13/2020,1501.38,Unrestricted Shared Services,Payroll
Jefferson State CC,148725,Ellison Jonathan,11/13/2020,1088.83,Unrestricted Shared Services,Payroll
Jefferson State CC,148726,Freeman Robine,11/13/2020,1790.13,Unrestricted Shared Services,Payroll
Jefferson State CC,148727,Kimbrell Skyler,11/13/2020,1088.83,Unrestricted Shared Services,Payroll
Jefferson State CC,148728,Wynn Michael,11/13/2020,1336.33,Unrestricted Shared Services,Payroll
Jefferson State CC,148729,Pettry Sherry,11/13/2020,2202.46,Unrestricted Shared Services,Payroll
Jefferson State CC,148730,Abad Fortunato,11/13/2020,801.12,Unrestricted Shared Services,Payroll
Jefferson State CC,148731,Akers Amber,11/13/2020,600.84,Unrestricted Shared Services,Payroll
Jefferson State CC,148732,Allison Shari,11/13/2020,567.46,Unrestricted Shared Services,Payroll
Jefferson State CC,148733,Barnes Charlette,11/13/2020,300.42,Unrestricted Shared Services,Payroll
Jefferson State CC,148734,Broome Kristen,11/13/2020,400.56,Unrestricted Shared Services,Payroll
Jefferson State CC,148735,Bynum Christopher,11/13/2020,300.42,Unrestricted Shared Services,Payroll
Jefferson State CC,148736,Campbell Mae,11/13/2020,1301.82,Unrestricted Shared Services,Payroll
Jefferson State CC,148737,Chapman Chloe,11/13/2020,267.04,Unrestricted Shared Services,Payroll
Jefferson State CC,148738,Chen Ja Lin,11/13/2020,734.36,Unrestricted Shared Services,Payroll
Jefferson State CC,148739,Cook Ladedrice,11/13/2020,1034.78,Unrestricted Shared Services,Payroll
Jefferson State CC,148740,Cummings Te'Ree,11/13/2020,166.9,Unrestricted Shared Services,Payroll
Jefferson State CC,148741,Cunningham Dana,11/13/2020,1268.44,Unrestricted Shared Services,Payroll
Jefferson State CC,148742,Duke Juanita,11/13/2020,867.88,Unrestricted Shared Services,Payroll
Jefferson State CC,148743,Dykes Betty,11/13/2020,570,Unrestricted Shared Services,Payroll
Jefferson State CC,148744,Farris Lisa,11/13/2020,267.04,Unrestricted Shared Services,Payroll
Jefferson State CC,148745,Floyd Natalie,11/13/2020,83.45,Unrestricted Shared Services,Payroll
Jefferson State CC,148746,Fricker Heather,11/13/2020,667.6,Unrestricted Shared Services,Payroll
Jefferson State CC,148747,Gomez Joseph,11/13/2020,1168.3,Unrestricted Shared Services,Payroll
Jefferson State CC,148748,Gonzalez Samantha,11/13/2020,801.12,Unrestricted Shared Services,Payroll
Jefferson State CC,148749,Hallmark Brenda,11/13/2020,1268.44,Unrestricted Shared Services,Payroll
Jefferson State CC,148750,Harper Charman,11/13/2020,300.42,Unrestricted Shared Services,Payroll
Jefferson State CC,148751,Harris Ebony,11/13/2020,717.67,Unrestricted Shared Services,Payroll
Jefferson State CC,148752,Hart Melody,11/13/2020,1001.4,Unrestricted Shared Services,Payroll
Jefferson State CC,148753,Liddle Anna,11/13/2020,166.9,Unrestricted Shared Services,Payroll
Jefferson State CC,148754,Mahaffey Alexis,11/13/2020,801.12,Unrestricted Shared Services,Payroll
Jefferson State CC,148755,McEntire Ann,11/13/2020,317.11,Unrestricted Shared Services,Payroll
Jefferson State CC,148756,Milam Toshia,11/13/2020,1268.44,Unrestricted Shared Services,Payroll
Jefferson State CC,148757,Morgan Zachary,11/13/2020,1835.9,Unrestricted Shared Services,Payroll
Jefferson State CC,148758,Odom Donna,11/13/2020,801.12,Unrestricted Shared Services,Payroll
Jefferson State CC,148759,Pair Edward,11/13/2020,1134.92,Unrestricted Shared Services,Payroll
Jefferson State CC,148760,Price Kelsey,11/13/2020,1902.66,Unrestricted Shared Services,Payroll
Jefferson State CC,148761,Ramsey Casey,11/13/2020,1268.44,Unrestricted Shared Services,Payroll
Jefferson State CC,148762,Saemaldaher Melanie,11/13/2020,667.6,Unrestricted Shared Services,Payroll
Jefferson State CC,148763,Sasser Carol,11/13/2020,1268.44,Unrestricted Shared Services,Payroll
Jefferson State CC,148764,Seckinger Kyle,11/13/2020,667.6,Unrestricted Shared Services,Payroll
Jefferson State CC,148765,Self Allison,11/13/2020,2536.88,Unrestricted Shared Services,Payroll
Jefferson State CC,148766,Sledge Sherman,11/13/2020,333.8,Unrestricted Shared Services,Payroll
Jefferson State CC,148767,Smith Kandice,11/13/2020,570,Unrestricted Shared Services,Payroll
Jefferson State CC,148768,Snipes Britney,11/13/2020,1001.4,Unrestricted Shared Services,Payroll
Jefferson State CC,148769,Stapleton Emily,11/13/2020,600.84,Unrestricted Shared Services,Payroll
Jefferson State CC,148770,Tilt Alex,11/13/2020,467.32,Unrestricted Shared Services,Payroll
Jefferson State CC,148771,Tisdale Kristi,11/13/2020,467.32,Unrestricted Shared Services,Payroll
Jefferson State CC,148772,Trawick Brandi,11/13/2020,1268.44,Unrestricted Shared Services,Payroll
Jefferson State CC,148773,Tubbs Carrie,11/13/2020,600.84,Unrestricted Shared Services,Payroll
Jefferson State CC,148774,Weeks Laura,11/13/2020,867.88,Unrestricted Shared Services,Payroll
Jefferson State CC,148775,York Morgan,11/13/2020,300.42,Unrestricted Shared Services,Payroll
Jefferson State CC,148776,Hyde Natalie,11/13/2020,1122,Unrestricted Shared Services,Payroll
Jefferson State CC,148777,Yates Lanette,11/13/2020,231,Unrestricted Shared Services,Payroll
Jefferson State CC,148778,Fach Colin,11/13/2020,1034.36,Unrestricted Shared Services,Payroll
Jefferson State CC,148779,Harvey Richard,11/13/2020,1347.86,Unrestricted Shared Services,Payroll
Jefferson State CC,148780,Haywood James,11/13/2020,898.26,Unrestricted Shared Services,Payroll
Jefferson State CC,148781,Johnson Trenton,11/13/2020,1116.02,Unrestricted Jefferson Campus,Payroll
Jefferson State CC,148782,Kendrick Gary,11/13/2020,544.4,Unrestricted Shared Services,Payroll
Jefferson State CC,148783,McDonnell Kyle,11/13/2020,1347.86,Unrestricted Shared Services,Payroll
Jefferson State CC,148784,Nabors Stephen,11/13/2020,517.18,Unrestricted Shared Services,Payroll
Jefferson State CC,148785,Panepento Matthew,11/13/2020,1034.36,Unrestricted Shared Services,Payroll
Jefferson State CC,148786,Brantley Karlie,11/13/2020,1109.89,Unrestricted Shared Services,Payroll
Jefferson State CC,148787,Chesser Jennifer,11/13/2020,950,Unrestricted Shared Services,Payroll
Jefferson State CC,148788,Johnson-King Sharina,11/13/2020,950,Unrestricted Shared Services,Payroll
Jefferson State CC,148789,Smith Lisa,11/13/2020,950,Unrestricted Shared Services,Payroll
Jefferson State CC,148790,Stephens Sheila,11/13/2020,1027.52,Unrestricted Shared Services,Payroll
Jefferson State CC,148791,Agee Teisha,11/13/2020,950,CAPTE OSY Occupation Skills,Payroll
Jefferson State CC,148792,Anderson LaToya,11/13/2020,528.5,AE-State Regular 2XX0-2XX1,Payroll
Jefferson State CC,148793,Arrowsmith Janice,11/13/2020,803.32,AE-Federal Regular 2XX0-2XX1,Payroll
Jefferson State CC,148794,Badio Jessical,11/13/2020,665.91,AE-Federal Regular 2XX0-2XX1,Payroll
Jefferson State CC,148795,Barnett Laura,11/13/2020,443.94,AE-State Regular 2XX0-2XX1,Payroll
Jefferson State CC,148796,Blackmon Archie,11/13/2020,803.32,AE-Federal Regular 2XX0-2XX1,Payroll
Jefferson State CC,148797,Brown Edith,11/13/2020,581.35,AE - State Inst'l 2XX0-2XX1,Payroll
Jefferson State CC,148798,Callins Lillian,11/13/2020,412.23,AE-Federal Regular 2XX0-2XX1,Payroll
Jefferson State CC,148799,Coleman Henry,11/13/2020,803.32,AE-Federal Regular 2XX0-2XX1,Payroll
Jefferson State CC,148800,Cook Kimberly,11/13/2020,803.32,AE-State Regular 2XX0-2XX1,Payroll
Jefferson State CC,148801,Davis Jeffrey,11/13/2020,880.32,AE-State Regular 2XX0-2XX1,Payroll
Jefferson State CC,148802,Derrick Mona,11/13/2020,782.18,AE-Federal IEL/CE 2XX0-2XX1,Payroll
Jefferson State CC,148803,Eichhorn Rhonda,11/13/2020,634.2,AE-State Regular 2XX0-2XX1,Payroll
Jefferson State CC,148804,Hawkins Felita,11/13/2020,684,AE-State Regular 2XX0-2XX1,Payroll
Jefferson State CC,148805,Jones Desamane,11/13/2020,513,CAPTE OSY Occupation Skills,Payroll
Jefferson State CC,148806,Latham Shane,11/13/2020,803.32,AE-Federal Regular 2XX0-2XX1,Payroll
Jefferson State CC,148807,Markovitz Yevonne,11/13/2020,676.48,AE-State Regular 2XX0-2XX1,Payroll
Jefferson State CC,148808,Merritt Adrienne,11/13/2020,592.8,AE-Federal Regular 2XX0-2XX1,Payroll
Jefferson State CC,148809,Miner Rebecca,11/13/2020,713.48,AE-State Regular 2XX0-2XX1,Payroll
Jefferson State CC,148810,Montgomery Helen,11/13/2020,200.83,AE-State Regular 2XX0-2XX1,Payroll
Jefferson State CC,148811,Moore Cynthia,11/13/2020,211.4,AE-State Regular 2XX0-2XX1,Payroll
Jefferson State CC,148812,Morgan Mary,11/13/2020,499.2,AE - State Inst'l 2XX0-2XX1,Payroll
Jefferson State CC,148813,Oberneder Connie,11/13/2020,774,AE-State Regular 2XX0-2XX1,Payroll
Jefferson State CC,148814,Parris Cathrine,11/13/2020,697.62,AE-Federal Regular 2XX0-2XX1,Payroll
Jefferson State CC,148815,Pearson Regina,11/13/2020,592.8,AE-State Regular 2XX0-2XX1,Payroll
Jefferson State CC,148816,Rea Patricia,11/13/2020,676.48,AE - State Inst'l 2XX0-2XX1,Payroll
Jefferson State CC,148817,Riggins Resha,11/13/2020,401.66,AE-State Regular 2XX0-2XX1,Payroll
Jefferson State CC,148818,Rudd Julia,11/13/2020,560.21,AE-State Regular 2XX0-2XX1,Payroll
Jefferson State CC,148819,Sanders Anthony Michael,11/13/2020,739.9,AE-Federal Regular 2XX0-2XX1,Payroll
Jefferson State CC,148820,Scott Angela,11/13/2020,380.52,AE-Federal Regular 2XX0-2XX1,Payroll
Jefferson State CC,148821,Sheikh Linda,11/13/2020,528.5,AE-State Regular 2XX0-2XX1,Payroll
Jefferson State CC,148822,Skalac Robyn,11/13/2020,401.66,AE-State Regular 2XX0-2XX1,Payroll
Jefferson State CC,148823,Snider Charles,11/13/2020,647.19,AE-State Regular 2XX0-2XX1,Payroll
Jefferson State CC,148824,Spraberry Mollie,11/13/2020,687.75,AE-State Regular 2XX0-2XX1,Payroll
Jefferson State CC,148825,Tucker Savannah,11/13/2020,452.25,CAPTE OSY Occupation Skills,Payroll
Jefferson State CC,148826,Tucker Selesta,11/13/2020,792.75,AE-State Regular 2XX0-2XX1,Payroll
Jefferson State CC,148827,Vinson John,11/13/2020,665.91,AE-State Regular 2XX0-2XX1,Payroll
Jefferson State CC,148828,Vinson Phyllis,11/13/2020,750.47,AE-State Regular 2XX0-2XX1,Payroll
Jefferson State CC,148829,Wiginton Beverly,11/13/2020,803.32,AE-State Regular 2XX0-2XX1,Payroll
Jefferson State CC,148830,Wood Gayle,11/13/2020,560.21,AE-State Regular 2XX0-2XX1,Payroll
Jefferson State CC,148831,Breaux Carolyn,11/13/2020,592.04,Unrestricted Shared Services,Payroll
Jefferson State CC,148832,Foster Richard,11/13/2020,553.28,Unrestricted Shared Services,Payroll
Jefferson State CC,148833,Frank Theresa,11/13/2020,596.96,Unrestricted Shared Services,Payroll
Jefferson State CC,148834,Lee Felicia,11/13/2020,444.08,Unrestricted Shared Services,Payroll
Jefferson State CC,148835,Smith Victoria,11/13/2020,592.04,Unrestricted Shared Services,Payroll
Jefferson State CC,148836,Charping Ronda,11/13/2020,1135.68,Unrestricted Shared Services,Payroll
Jefferson State CC,148837,Armstrong Adell,11/13/2020,570,Unrestricted Shared Services,Payroll
Jefferson State CC,148838,Addington Jennifer,11/13/2020,1580.8,Unrestricted Shared Services,Payroll
Jefferson State CC,148839,Barnwell Jordan,11/13/2020,374.4,Unrestricted Shared Services,Payroll
Jefferson State CC,148840,Bishop Patrick,11/13/2020,499.2,Unrestricted Shared Services,Payroll
Jefferson State CC,148841,Chappel Delena,11/13/2020,582.4,Unrestricted Shared Services,Payroll
Jefferson State CC,148842,Cobb Jonathan,11/13/2020,624,Unrestricted Shared Services,Payroll
Jefferson State CC,148843,Crump Kimberly,11/13/2020,1248,Unrestricted Shared Services,Payroll
Jefferson State CC,148844,Flanagan Soneaqua,11/13/2020,436.8,Unrestricted Shared Services,Payroll
Jefferson State CC,148845,Gillespie Steven,11/13/2020,166.4,Unrestricted Shared Services,Payroll
Jefferson State CC,148846,Grace Tonya,11/13/2020,374.4,Unrestricted Shared Services,Payroll
Jefferson State CC,148847,Graves Candise,11/13/2020,249.6,Unrestricted Shared Services,Payroll
Jefferson State CC,148848,Gray Lisa,11/13/2020,332.8,Unrestricted Shared Services,Payroll
Jefferson State CC,148849,Hollingsworth Donna,11/13/2020,83.2,Unrestricted Shared Services,Payroll
Jefferson State CC,148850,Kamp Linda,11/13/2020,624,Unrestricted Shared Services,Payroll
Jefferson State CC,148851,Lewis Mynina,11/13/2020,499.2,Unrestricted Shared Services,Payroll
Jefferson State CC,148852,McLain Christine,11/13/2020,1092,Women's Fund Opport in Healthcare,Payroll
Jefferson State CC,148853,Mills Justin,11/13/2020,499.2,Unrestricted Shared Services,Payroll
Jefferson State CC,148854,Moore Caitlin,11/13/2020,332.8,Unrestricted Shared Services,Payroll
Jefferson State CC,148855,Parker Lakisha,11/13/2020,728,Unrestricted Shared Services,Payroll
Jefferson State CC,148856,Parsons Charles,11/13/2020,561.6,Unrestricted Shared Services,Payroll
Jefferson State CC,148857,Payne Angela,11/13/2020,1330,Unrestricted Shared Services,Payroll
Jefferson State CC,148858,Pleasant Nikesha,11/13/2020,998.4,Unrestricted Shared Services,Payroll
Jefferson State CC,148859,Purdy Zane,11/13/2020,332.8,Unrestricted Shared Services,Payroll
Jefferson State CC,148860,Roan Carl,11/13/2020,291.2,Field Engineering Training 2020-068,Payroll
Jefferson State CC,148861,Russell Stephanie,11/13/2020,665.6,Unrestricted Shared Services,Payroll
Jefferson State CC,148862,Smith Janine,11/13/2020,540.8,Unrestricted Shared Services,Payroll
Jefferson State CC,148863,Suttle Debra,11/13/2020,998.4,Unrestricted Shared Services,Payroll
Jefferson State CC,148864,Swift Mitzi,11/13/2020,208,Unrestricted Shared Services,Payroll
Jefferson State CC,148865,Taylor Pandra,11/13/2020,210,City of Bham Bold Program 19-20,Payroll
Jefferson State CC,148866,Washington Ellise,11/13/2020,499.2,Unrestricted Shared Services,Payroll
Jefferson State CC,148867,Willis Erica,11/13/2020,624,Unrestricted Shared Services,Payroll
Jefferson State CC,148868,Winborn Jennifer,11/13/2020,790.4,Unrestricted Shared Services,Payroll
Jefferson State CC,148869,Busby Yvette,11/13/2020,767,Unrestricted Shared Services,Payroll
Jefferson State CC,148870,Jones Lesia,11/13/2020,570,Unrestricted Shared Services,Payroll
Jefferson State CC,148871,Glover Anita,11/13/2020,873.12,Unrestricted Shared Services,Payroll
Jefferson State CC,148872,Moore Kimberly,11/13/2020,718.96,Unrestricted Shared Services,Payroll
Jefferson State CC,148873,Stewart Janice,11/13/2020,690.58,Unrestricted Shared Services,Payroll
Jefferson State CC,148874,Amerson-Dobbs Jessica,11/13/2020,430.5,Unrestricted Shared Services,Payroll
Jefferson State CC,148875,Cannon Kimberly,11/13/2020,399,Unrestricted Shared Services,Payroll
Jefferson State CC,148876,Grayson Shirley,11/13/2020,430.5,Unrestricted Shared Services,Payroll
Jefferson State CC,148877,Moore Shanine,11/13/2020,592.04,Unrestricted Shared Services,Payroll
Jefferson State CC,148878,Niswander Carly,11/13/2020,273,Unrestricted Shared Services,Payroll
Jefferson State CC,148879,Payne Adrian,11/13/2020,430.5,Unrestricted Shared Services,Payroll
Jefferson State CC,148880,Wood Kelly,11/13/2020,483,Unrestricted Shared Services,Payroll
Jefferson State CC,148881,Liddle Elizabeth,11/13/2020,690,Unrestricted Shared Services,Payroll
Jefferson State CC,148882,Wilson Candace,11/13/2020,399,Unrestricted Shared Services,Payroll
Jefferson State CC,148883,Adams Taylor,11/13/2020,399,Unrestricted Shared Services,Payroll
Jefferson State CC,148884,Allen Felicia,11/13/2020,451.5,Unrestricted Shared Services,Payroll
Jefferson State CC,148885,Anderson Davida,11/13/2020,399,Unrestricted Shared Services,Payroll
Jefferson State CC,148886,Blankenship Jamie,11/13/2020,462,Unrestricted Shared Services,Payroll
Jefferson State CC,148887,Brown Carol,11/13/2020,351.75,Unrestricted Shared Services,Payroll
Jefferson State CC,148888,Carlee Jerrica,11/13/2020,570,Unrestricted Shared Services,Payroll
Jefferson State CC,148889,Carruba Lorrie,11/13/2020,399,Unrestricted Shared Services,Payroll
Jefferson State CC,148890,Castleberry James,11/13/2020,441,Unrestricted Shared Services,Payroll
Jefferson State CC,148891,Daniels Nautyca,11/13/2020,399,Unrestricted Shared Services,Payroll
Jefferson State CC,148892,Dunning William,11/13/2020,441,Unrestricted Shared Services,Payroll
Jefferson State CC,148893,Franklin Gillian,11/13/2020,399,Unrestricted Shared Services,Payroll
Jefferson State CC,148894,Gordon Mattie,11/13/2020,443.63,Unrestricted Shared Services,Payroll
Jefferson State CC,148895,Hairston Ella,11/13/2020,399,Unrestricted Shared Services,Payroll
Jefferson State CC,148896,Hicks Candace,11/13/2020,475,Unrestricted Shared Services,Payroll
Jefferson State CC,148897,Jones Meldryn,11/13/2020,483,Unrestricted Shared Services,Payroll
Jefferson State CC,148898,Kirkland Olivia,11/13/2020,570,Unrestricted Shared Services,Payroll
Jefferson State CC,148899,Marbury Patricia,11/13/2020,570,Unrestricted Shared Services,Payroll
Jefferson State CC,148900,McCoy Ovukeriena,11/13/2020,318.75,Unrestricted Shared Services,Payroll
Jefferson State CC,148901,Owens Jaycee,11/13/2020,388.5,Unrestricted Shared Services,Payroll
Jefferson State CC,148902,Putnam Patricia,11/13/2020,1216,Unrestricted Shared Services,Payroll
Jefferson State CC,148903,Rheaume Stephanie,11/13/2020,399,Unrestricted Shared Services,Payroll
Jefferson State CC,148904,Richardson Greene Greta,11/13/2020,367.5,Unrestricted Shared Services,Payroll
Jefferson State CC,148905,Saylor Cleanese,11/13/2020,488.25,Unrestricted Shared Services,Payroll
Jefferson State CC,148906,Smith Khalilah,11/13/2020,570,Unrestricted Shared Services,Payroll
Jefferson State CC,148907,Smith Laura,11/13/2020,395.27,Unrestricted Shared Services,Payroll
Jefferson State CC,148908,White Sandra,11/13/2020,399,Unrestricted Shared Services,Payroll
Jefferson State CC,148909,Williams Wanda,11/13/2020,592.5,Unrestricted Shared Services,Payroll
Jefferson State CC,148910,Wilson Courtney,11/13/2020,488.25,Unrestricted Shared Services,Payroll
Jefferson State CC,148911,Zandi Nader,11/13/2020,1216,Unrestricted Shared Services,Payroll
Jefferson State CC,148912,Adams Floyce,11/13/2020,570,Unrestricted Shared Services,Payroll
Jefferson State CC,148913,Ali Donna,11/13/2020,645,Unrestricted Shared Services,Payroll
Jefferson State CC,148914,Hampton Jacqueline,11/13/2020,273,Unrestricted Shared Services,Payroll
Jefferson State CC,148915,McRae Kenneth,11/13/2020,803.32,AE-Federal Regular 2XX0-2XX1,Payroll
Jefferson State CC,148916,Robinson Mattie,11/13/2020,615,Unrestricted Shared Services,Payroll
Jefferson State CC,148917,Brown-Ward Maurita,11/13/2020,336,Unrestricted Shared Services,Payroll
Jefferson State CC,148918,Crim Margaret,11/13/2020,499.2,Unrestricted Shared Services,Payroll
Jefferson State CC,148919,Kirk Willodean,11/13/2020,336,Unrestricted Shared Services,Payroll
Jefferson State CC,148920,Lewis Stephanie,11/13/2020,430.5,Unrestricted Shared Services,Payroll
Jefferson State CC,148921,Prevo Deborah,11/13/2020,480,Unrestricted Shared Services,Payroll
Jefferson State CC,148922,Gillham Martha,11/13/2020,512.5,Unrestricted Shared Services,Payroll
Jefferson State CC,148923,Balog Adam,11/13/2020,336,Unrestricted Shared Services,Payroll
Jefferson State CC,148924,Boggan Brenda,11/13/2020,252,Unrestricted Shared Services,Payroll
Jefferson State CC,148925,Burton Kenneth,11/13/2020,540,Unrestricted Shared Services,Payroll
Jefferson State CC,148926,Chandler James,11/13/2020,262.5,Unrestricted Shared Services,Payroll
Jefferson State CC,148927,Cornner Thaddeus,11/13/2020,570,Unrestricted Shared Services,Payroll
Jefferson State CC,148928,Crowe Jeffrey,11/13/2020,210,Unrestricted Shared Services,Payroll
Jefferson State CC,148929,Gibbs John,11/13/2020,630,Unrestricted Shared Services,Payroll
Jefferson State CC,148930,Harrell John,11/13/2020,157.5,Unrestricted Shared Services,Payroll
Jefferson State CC,148931,Hicks Alan,11/13/2020,540,Unrestricted Shared Services,Payroll
Jefferson State CC,148932,Johnson Polly,11/13/2020,405,Unrestricted Shared Services,Payroll
Jefferson State CC,148933,Lovelace Michael,11/13/2020,712.5,Unrestricted Shared Services,Payroll
Jefferson State CC,148934,Nelson James,11/13/2020,525,Unrestricted Shared Services,Payroll
Jefferson State CC,148935,Powrzanas Rodney,11/13/2020,450,Unrestricted Shared Services,Payroll
Jefferson State CC,148936,Shobe Phillip,11/13/2020,870,Unrestricted Shared Services,Payroll
Jefferson State CC,148937,Turner Yolanda,11/13/2020,336,Unrestricted Shared Services,Payroll
Jefferson State CC,148938,Partain Mark,11/13/2020,760,Unrestricted Shelby Campus,Payroll
Jefferson State CC,148939,Steele Pamela,11/13/2020,475,Unrestricted Shared Services,Payroll
Jefferson State CC,148940,Crotwell Edward,11/13/2020,890.24,Unrestricted Shared Services,Payroll
Jefferson State CC,148941,Burge Kathy,11/13/2020,315,Unrestricted Shared Services,Payroll
Jefferson State CC,148942,Graves Austin,11/13/2020,399,Unrestricted Shared Services,Payroll
Jefferson State CC,148943,King Linda,11/13/2020,388.5,Unrestricted Shared Services,Payroll
Jefferson State CC,148944,Palmore Myra,11/13/2020,399,Unrestricted Shared Services,Payroll
Jefferson State CC,562561,Swann Christopher,11/13/2020,2037.38,Unrestricted Shared Services,Payroll
Jefferson State CC,562563,Liddle Christiana,11/13/2020,1088.83,Unrestricted Shared Services,Payroll
Jefferson State CC,562564,Broome Kristy,11/13/2020,534.08,Unrestricted Shared Services,Payroll
Jefferson State CC,562565,Johnson Robert,11/13/2020,950,Unrestricted Shared Services,Payroll
Jefferson State CC,562566,Roberts Barbara,11/13/2020,412.23,AE-State Regular 2XX0-2XX1,Payroll
Jefferson State CC,562567,Sweatt Helen,11/13/2020,581.35,AE-State Regular 2XX0-2XX1,Payroll
Jefferson State CC,562568,Young Katherine,11/13/2020,264.25,AE-State Regular 2XX0-2XX1,Payroll
Jefferson State CC,562569,Begnaud Phillip,11/13/2020,1216,Unrestricted Shared Services,Payroll
Jefferson State CC,562570,O'Hern David,11/13/2020,570,Unrestricted Shared Services,Payroll
Jefferson State CC,562571,Terrell-Waller Regina,11/13/2020,1123.2,Unrestricted Shared Services,Payroll
Jefferson State CC,562572,Morgan Rickey,11/13/2020,378,Unrestricted Shared Services,Payroll
Jefferson State CC,562573,Channel Raymond,11/13/2020,750,Unrestricted Shared Services,Payroll
Jefferson State CC,562575,Karluk Dakota,11/13/2020,430.5,Unrestricted Shared Services,Payroll
Jefferson State CC,562596,Johnson Marvin,11/13/2020,810,Unrestricted Shared Services,Payroll
Jefferson State CC,421339,All-South Subcontractors Inc. ,11/16/2020,227.72,R&R Jefferson Campus ,Maintenance & Repairs  - OOS
Jefferson State CC,421340,American Academy Holdings LLC ,11/16/2020,7500,Unrestricted Shared Services,Technology - non capitalized - MS
Jefferson State CC,421341,Aramark Uniform & Career Apparel Group Inc. ,11/16/2020,36.98,Unrestricted Shelby Campus,Materials and Supplies - MS
Jefferson State CC,421342,AT&T Mobility National Accounts LLC ,11/16/2020,226.56,DHR Childcare 2XX0-2XX1,Wireless Phones - UC
Jefferson State CC,421342,AT&T Mobility National Accounts LLC ,11/16/2020,186.3,Unrestricted Shared Services,Wireless Phones - UC
Jefferson State CC,421343,Avery III Edgar,11/16/2020,640,Unrestricted Jefferson Campus,Other Professional Fees - PS
Jefferson State CC,421344,Bank of America ,11/16/2020,218.9,Unrestricted Shared Services,Other Travel Expenses - IS
Jefferson State CC,421345,Blevins Chris,11/16/2020,300,Unrestricted Shelby Campus,Other Professional Fees - PS
Jefferson State CC,421346,Bone Darrell,11/16/2020,306,Unrestricted Chilton Campus,Other Professional Fees - PS
Jefferson State CC,421347,CDW-Government Inc ,11/16/2020,192.5,Unrestricted Jefferson Campus,Improvements - Other - CE
Jefferson State CC,421347,CDW-Government Inc ,11/16/2020,621.13,Unrestricted Shelby Campus,Technology - non capitalized - MS
Jefferson State CC,421348,Clackley David,11/16/2020,468,Unrestricted Chilton Campus,Other Professional Fees - PS
Jefferson State CC,421349,Deason Vicki,11/16/2020,988.42,Unrestricted Shared Services,Mileage - IS
Jefferson State CC,421350,Essential Education ,11/16/2020,896.75,AE - GED 2XX8-2XX9,Institutional Use - OOS
Jefferson State CC,421351,Evans Meats Inc ,11/16/2020,251.33,Unrestricted Shelby Campus,Culinary Consumables
Jefferson State CC,421352,Florence Jeffrey,11/16/2020,520,Unrestricted Shelby Campus,Other Professional Fees - PS
Jefferson State CC,421353,Harris Jason,11/16/2020,342,Unrestricted Chilton Campus,Other Professional Fees - PS
Jefferson State CC,421354,Healthcare Providers Srv. Org. (Affinity Ins. Srv. Inc.) ,11/16/2020,19752,Nursing Student Insurance,Deposit Liabilities - AP
Jefferson State CC,421355,Hodge Mechanical Services LLC ,11/16/2020,1585.21,R&R Chilton Campus ,Maintenance & Repairs  - OOS
Jefferson State CC,421355,Hodge Mechanical Services LLC ,11/16/2020,5662.08,R&R Shelby Campus ,Maintenance & Repairs  - OOS
Jefferson State CC,421356,Hurst Hunter,11/16/2020,279,Unrestricted Chilton Campus,Other Professional Fees - PS
Jefferson State CC,421357,Janousek Mel,11/16/2020,640,Unrestricted Shelby Campus,Other Professional Fees - PS
Jefferson State CC,421358,Marcus Service & Solutions LLC ,11/16/2020,205,R&R Jefferson Campus ,Maintenance & Repairs  - OOS
Jefferson State CC,421358,Marcus Service & Solutions LLC ,11/16/2020,5204.53,R&R Shelby Campus ,Maintenance & Repairs  - OOS
Jefferson State CC,421359,Means Advertising Inc ,11/16/2020,9910,Unrestricted Shared Services,Advertising & Promotions - OOS
Jefferson State CC,421360,Mullins William,11/16/2020,200,Unrestricted Shelby Campus,Other Professional Fees - PS
Jefferson State CC,421361,O'Henry's Coffee Roasting Co. ,11/16/2020,97.5,Unrestricted Shelby Campus,Culinary Consumables
Jefferson State CC,421362,Office Depot ,11/16/2020,-240,CARES Act - GEERF Public Health,Materials and Supplies - MS
Jefferson State CC,421362,Office Depot ,11/16/2020,25.9,Unrestricted Jefferson Campus,Materials and Supplies - MS
Jefferson State CC,421362,Office Depot ,11/16/2020,1399.7,Unrestricted Shared Services,Materials and Supplies - MS
Jefferson State CC,421362,Office Depot ,11/16/2020,396.39,Unrestricted Shelby Campus,Materials and Supplies - MS
Jefferson State CC,421363,Opportunity Systems Incorporating Independence LLC ,11/16/2020,1083.6,Unrestricted Shared Services,Other Contractual Services - PS
Jefferson State CC,421364,Pocket Nurse Enterprises Inc. ,11/16/2020,92.6,Unrestricted Shelby Campus,Materials and Supplies - MS
Jefferson State CC,421365,Publix Super Markets Inc ,11/16/2020,146.58,Unrestricted Shelby Campus,Culinary Consumables
Jefferson State CC,421366,Regional Produce Distributors LLC ,11/16/2020,705.55,Unrestricted Shelby Campus,Culinary Consumables
Jefferson State CC,421367,BFI Waste Services LLC ,11/16/2020,1202.07,Unrestricted Jefferson Campus,Waste Disposal - UC
Jefferson State CC,421367,BFI Waste Services LLC ,11/16/2020,604.93,Unrestricted Shelby Campus,Waste Disposal - UC
Jefferson State CC,421368,BFI Waste Services LLC ,11/16/2020,79.23,Unrestricted St. Clair Campus,Waste Disposal - UC
Jefferson State CC,421369,Scarbrough William,11/16/2020,297,Unrestricted Chilton Campus,Other Professional Fees - PS
Jefferson State CC,421370,Servicewear Apparel Inc. ,11/16/2020,136.37,Unrestricted Shared Services,Materials and Supplies - MS
Jefferson State CC,421371,Smitherman Daniel,11/16/2020,324,Unrestricted Chilton Campus,Other Professional Fees - PS
Jefferson State CC,421372,Smitherman Joseph,11/16/2020,45,Unrestricted Chilton Campus,Other Professional Fees - PS
Jefferson State CC,421373,Summit Waterproofing Inc. ,11/16/2020,26000,R&R Jefferson Campus ,Maintenance & Repairs  - OOS
Jefferson State CC,421374,Union State Insurance Inc. ,11/16/2020,3624,Unrestricted Shared Services,Insurance and Bonding - PS
Jefferson State CC,421375,US Foods Inc. ,11/16/2020,1408.72,Unrestricted Shelby Campus,Culinary Consumables
Jefferson State CC,421376,W W Grainger Inc ,11/16/2020,162.32,R&R Jefferson Campus ,Maintenance & Repairs  - OOS
Jefferson State CC,421377,Water Works & Sewer Board ,11/16/2020,11462.59,Unrestricted Jefferson Campus,Water & Sewer - UC
Jefferson State CC,421377,Water Works & Sewer Board ,11/16/2020,1425.24,Unrestricted Shelby Campus,Water & Sewer - UC
Jefferson State CC,421378,Wheeler Christopher,11/16/2020,445,Unrestricted Shelby Campus,Other Professional Fees - PS
Jefferson State CC,421379,White James,11/16/2020,320,Unrestricted Jefferson Campus,Other Professional Fees - PS
Jefferson State CC,421380,Whittle Christopher,11/16/2020,99,Unrestricted Chilton Campus,Other Professional Fees - PS
Jefferson State CC,421381,ACT Inc ,11/19/2020,520,AE-State Regular 2XX0-2XX1,Materials and Supplies - MS
Jefferson State CC,421381,ACT Inc ,11/19/2020,100,Spcl Pops Ind Training 2XX0-2XX1,Materials and Supplies - MS
Jefferson State CC,421381,ACT Inc ,11/19/2020,1162,Unrestricted Shared Services,Materials and Supplies - MS
Jefferson State CC,421382,Alabama Community College System ,11/19/2020,300,Unrestricted Shared Services,Memberships - PS
Jefferson State CC,421383,Alabama Power Company ,11/19/2020,883.91,Unrestricted St. Clair Campus,Electricity - UC
Jefferson State CC,421384,Alabama Power Company ,11/19/2020,3132.99,Unrestricted Chilton Campus,Electricity - UC
Jefferson State CC,421385,Alabama Power Company ,11/19/2020,34224.53,Unrestricted Jefferson Campus,Electricity - UC
Jefferson State CC,421386,Alabama Power Company ,11/19/2020,62.31,Unrestricted Chilton Campus,Electricity - UC
Jefferson State CC,421387,Alabama Power Company ,11/19/2020,14304.42,Unrestricted Chilton Campus,Electricity - UC
Jefferson State CC,421388,American Culinary Federation ,11/19/2020,250,Unrestricted Shelby Campus,Other Professional Fees - PS
Jefferson State CC,421389,American Physical Therapy Association ,11/19/2020,7200,Unrestricted Shelby Campus,Accreditation Expense - PS
Jefferson State CC,421390,Anderson Laurel,11/19/2020,59.28,Unrestricted Jefferson Campus,Mileage - IS
Jefferson State CC,421391,AT&T Mobility National Accounts LLC ,11/19/2020,19.99,Unrestricted Shelby Campus,Other Contractual Services - PS
Jefferson State CC,421391,AT&T Mobility National Accounts LLC ,11/19/2020,25.19,Unrestricted Shared Services,Wireless Phones - UC
Jefferson State CC,421392,Award Concepts Inc. ,11/19/2020,780,Sigma Chi Eta,Deposit Liabilities - AP
Jefferson State CC,421393,B & D Electric Motors Inc ,11/19/2020,783.6,R&R Jefferson Campus ,Maintenance & Repairs  - OOS
Jefferson State CC,421394,Berney Office Solutions LLC ,11/19/2020,4311.5,Unrestricted Shared Services,Printing and Binding - OOS
Jefferson State CC,421395,Berry Archie,11/19/2020,4926.57,Payroll Clearing Fund,Payroll Clearing
Jefferson State CC,421396,Bobo David,11/19/2020,32.43,Unrestricted Shared Services,Mileage - IS
Jefferson State CC,421397,CDW-Government Inc ,11/19/2020,357.12,Unrestricted Shared Services,Technology - non capitalized - MS
Jefferson State CC,421398,Central Paper Co Inc ,11/19/2020,491.3,Unrestricted Shelby Campus,Materials and Supplies - MS
Jefferson State CC,421399,Chambers Lynn,11/19/2020,79.35,AE-Federal Regular 2XX0-2XX1,Other Travel Expenses - IS
Jefferson State CC,421400,Dawkins Stephen,11/19/2020,52.67,Unrestricted Shared Services,Mileage - IS
Jefferson State CC,421401,ECOLAB ,11/19/2020,1089.12,Unrestricted Shelby Campus,Materials and Supplies - MS
Jefferson State CC,421402,Evans Meats Inc ,11/19/2020,181.85,Unrestricted Shelby Campus,Culinary Consumables
Jefferson State CC,421403,Friday Kevin,11/19/2020,50.32,Payroll Clearing Fund,Payroll Clearing
Jefferson State CC,421404,Goss Christine,11/19/2020,360.17,Payroll Clearing Fund,Payroll Clearing
Jefferson State CC,421405,Hill Candance,11/19/2020,58.65,Unrestricted Jefferson Campus,Mileage - IS
Jefferson State CC,421405,Hill Candance,11/19/2020,2,Unrestricted Jefferson Campus,Other Travel Expenses - IS
Jefferson State CC,421406,Hultgren Leisha,11/19/2020,261.62,Payroll Clearing Fund,Payroll Clearing
Jefferson State CC,421407,Inline Electric Supply Co. Inc ,11/19/2020,181.55,R&R Jefferson Campus ,Maintenance & Repairs  - OOS
Jefferson State CC,421408,Jones Tegaisha,11/19/2020,88.03,Payroll Clearing Fund,Payroll Clearing
Jefferson State CC,421409,McClellan Christina,11/19/2020,358.74,Payroll Clearing Fund,Payroll Clearing
Jefferson State CC,421410,Milam Jerry,11/19/2020,284.63,Payroll Clearing Fund,Payroll Clearing
Jefferson State CC,421411,NC-SARA ,11/19/2020,4000,Unrestricted Distance Ed,Memberships - PS
Jefferson State CC,421412,Office Depot ,11/19/2020,150.35,Unrestricted Shelby Campus,Materials and Supplies - MS
Jefferson State CC,421413,Owens Nicholas,11/19/2020,233.97,Payroll Clearing Fund,Payroll Clearing
Jefferson State CC,421414,Plumb-Tech Inc. ,11/19/2020,1910.05,R&R Jefferson Campus ,Maintenance & Repairs  - OOS
Jefferson State CC,421415,Scott James,11/19/2020,621,Unrestricted Shared Services,Mileage - IS
Jefferson State CC,421416,Sherman Anne,11/19/2020,40,Unrestricted Shared Services,Memberships - PS
Jefferson State CC,421416,Sherman Anne,11/19/2020,165,Unrestricted Shared Services,Registration Fees- IS
Jefferson State CC,421417,Smith Lareatha,11/19/2020,29.9,Unrestricted Jefferson Campus,Mileage - IS
Jefferson State CC,421419,Stanley Nathaniel,11/19/2020,94.88,Unrestricted Shared Services,Mileage - IS
Jefferson State CC,421420,State of Alabama ,11/19/2020,1164,Unrestricted Shared Services,Insurance and Bonding - PS
Jefferson State CC,421421,Sutton Edreama,11/19/2020,34.5,Unrestricted Shared Services,Mileage - IS
Jefferson State CC,421422,Sweatt Wendy,11/19/2020,116.15,Unrestricted Jefferson Campus,Mileage - IS
Jefferson State CC,421423,Terry Damsky ,11/19/2020,830.15,Unrestricted Shared Services,Materials and Supplies - MS
Jefferson State CC,421424,U.S. Bank ,11/19/2020,1100,Unrestricted Shared Services,Other Professional Fees - PS
Jefferson State CC,421425,United Parcel Service Inc ,11/19/2020,61.56,Unrestricted Shared Services,Freight - OOS
Jefferson State CC,421426,Verified Credentials Inc ,11/19/2020,174,Unrestricted Shared Services,Other Professional Fees - PS
Jefferson State CC,421427,Wangle Jonathan,11/19/2020,80.5,Unrestricted Shared Services,Mileage - IS
Jefferson State CC,421428,Wiley Jeffrey,11/19/2020,362.25,Unrestricted Jefferson Campus,Mileage - IS
Jefferson State CC,421429,Alabama Power Company ,11/20/2020,1619.82,Unrestricted Chilton Campus,Electricity - UC
Jefferson State CC,421430,Alabama Power Company ,11/20/2020,17951.64,Unrestricted Shelby Campus,Water & Sewer - UC
Jefferson State CC,421431,Alabama Power Company ,11/20/2020,3283.31,Unrestricted Jefferson Campus,Electricity - UC
Jefferson State CC,421432,Argo Power Equipment ,11/20/2020,21.02,Unrestricted Jefferson Campus,Maintenance & Repairs  - OOS
Jefferson State CC,421434,Darnell Clay Estate of,11/20/2020,446.91,Payroll Clearing Fund,Payroll Clearing
Jefferson State CC,421436,Harris Liesl,11/20/2020,40,PTK Honor Society Grant,Materials and Supplies - MS
Jefferson State CC,421438,Hurt Jack,11/20/2020,272.97,Payroll Clearing Fund,Payroll Clearing
Jefferson State CC,421439,Office Depot ,11/20/2020,70.36,Unrestricted Jefferson Campus,Materials and Supplies - MS
Jefferson State CC,421440,Office Depot ,11/20/2020,31.46,Unrestricted Shared Services,Materials and Supplies - MS
Jefferson State CC,421440,Office Depot ,11/20/2020,476.12,Unrestricted Shared Services,Memberships - PS
Jefferson State CC,421440,Office Depot ,11/20/2020,31.46,Unrestricted Jefferson Campus,Printing and Binding - OOS
Jefferson State CC,421440,Office Depot ,11/20/2020,2080.36,Unrestricted Shared Services,Printing and Binding - OOS
Jefferson State CC,421440,Office Depot ,11/20/2020,31.46,Unrestricted Shelby Campus,Printing and Binding - OOS
Jefferson State CC,421441,Phan Huy,11/20/2020,962.03,Payroll Clearing Fund,Payroll Clearing
Jefferson State CC,421442,Pocket Nurse Enterprises Inc. ,11/20/2020,457.04,Unrestricted Shelby Campus,Materials and Supplies - MS
Jefferson State CC,421443,Publix Super Markets Inc ,11/20/2020,18.98,Unrestricted Shelby Campus,Culinary Consumables
Jefferson State CC,421444,Regional Produce Distributors LLC ,11/20/2020,203.5,Unrestricted Shelby Campus,Culinary Consumables
Jefferson State CC,421445,Reynolds Reginald,11/20/2020,651.83,Payroll Clearing Fund,Payroll Clearing
Jefferson State CC,421447,Sherwin Williams Company ,11/20/2020,247.35,R&R Shelby Campus ,Materials and Supplies - MS
Jefferson State CC,421448,Sherwin Williams Company ,11/20/2020,96.41,R&R Jefferson Campus ,Materials and Supplies - MS
Jefferson State CC,421449,Simmons Sporting Goods Co. Inc ,11/20/2020,563.76,Unrestricted Shared Services,Materials and Supplies - MS
Jefferson State CC,421450,Springer Equipment Company ,11/20/2020,201.21,R&R Shelby Campus ,Maintenance & Repairs  - OOS
Jefferson State CC,421451,TriGreen Equipment LLC ,11/20/2020,4.84,Unrestricted Jefferson Campus,Maintenance & Repairs  - OOS
Jefferson State CC,421452,Triple Point Industries LLC ,11/20/2020,1775,Unrestricted Shelby Campus,Maintenance & Repairs  - OOS
Jefferson State CC,421453,Verizon Wireless ,11/20/2020,2926.1,CARES Act - College Relief,Wireless Phones - UC
Jefferson State CC,421454,Verizon Wireless ,11/20/2020,2792,CARES Act - College Relief,Wireless Phones - UC
Jefferson State CC,421455,Vest Michael,11/20/2020,237.51,Payroll Clearing Fund,Payroll Clearing
Jefferson State CC,421456,Water Works & Sewer Board ,11/20/2020,85.36,Unrestricted Jefferson Campus,Water & Sewer - UC
Jefferson State CC,421456,Water Works & Sewer Board ,11/20/2020,2229.75,Unrestricted Shelby Campus,Water & Sewer - UC
Jefferson State CC,421457,Wittichen Supply Company Inc. ,11/20/2020,285.71,R&R Jefferson Campus ,Maintenance & Repairs  - OOS
Jefferson State CC,421458,Alabama Power Company ,11/24/2020,7455.83,Unrestricted Chilton Campus,Electricity - UC
Jefferson State CC,421458,Alabama Power Company ,11/24/2020,9273.28,Unrestricted Jefferson Campus,Electricity - UC
Jefferson State CC,421458,Alabama Power Company ,11/24/2020,13485.61,Unrestricted Shelby Campus,Electricity - UC
Jefferson State CC,421459,Alabama Power Company ,11/24/2020,1624.97,Unrestricted Shelby Campus,Electricity - UC
Jefferson State CC,421460,Alabama Power Company ,11/24/2020,639.59,Unrestricted Shelby Campus,Electricity - UC
Jefferson State CC,421463,Aramark Uniform & Career Apparel Group Inc. ,11/24/2020,34.98,Unrestricted Shelby Campus,Materials and Supplies - MS
Jefferson State CC,421464,AT&T ,11/24/2020,53.15,Unrestricted Shelby Campus,Water & Sewer - UC
Jefferson State CC,421465,AT&T ,11/24/2020,68.22,Unrestricted Shelby Campus,Landline Phones - UC
Jefferson State CC,421466,AT&T ,11/24/2020,4489.26,Unrestricted Jefferson Campus,Wireless Phones - UC
Jefferson State CC,421467,AT&T Mobility National Accounts LLC ,11/24/2020,21.99,Unrestricted Shelby Campus,Wireless Phones - UC
Jefferson State CC,421468,Atlas Welding Supply Co. Inc. ,11/24/2020,4131.56,The Comm Found of Greater Bham,Materials and Supplies - MS
Jefferson State CC,421469,AutoZone ,11/24/2020,184.54,R&R Jefferson Campus ,Materials and Supplies - MS
Jefferson State CC,421470,Avery III Edgar,11/24/2020,640,Unrestricted Jefferson Campus,Other Professional Fees - PS
Jefferson State CC,421471,Blair David,11/24/2020,296.7,Unrestricted Shared Services,Mileage - IS
Jefferson State CC,421473,Blevins Chris,11/24/2020,260,Unrestricted Shelby Campus,Other Professional Fees - PS
Jefferson State CC,421474,Bone Darrell,11/24/2020,288,Unrestricted Chilton Campus,Other Professional Fees - PS
Jefferson State CC,421475,Boyer Katherine,11/24/2020,231,Sigma Kappa Delta,Deposit Liabilities - AP
Jefferson State CC,421476,Bracken Michael,11/24/2020,833.33,Unrestricted Shared Services,Other Contractual Services - PS
Jefferson State CC,421477,CDW-Government Inc ,11/24/2020,2076,Unrestricted Shelby Campus,Technology - non capitalized - MS
Jefferson State CC,421478,Central Paper Co Inc ,11/24/2020,131.58,Unrestricted Shelby Campus,Materials and Supplies - MS
Jefferson State CC,421479,Chamberlain Cassandra,11/24/2020,74.12,Unrestricted Shelby Campus,Mileage - IS
Jefferson State CC,421480,Clackley David,11/24/2020,360,Unrestricted Chilton Campus,Other Professional Fees - PS
Jefferson State CC,421481,Daffron Cristy,11/24/2020,75,Unrestricted St. Clair Campus,Registration Fees- IS
Jefferson State CC,421483,Dehart Michael,11/24/2020,160,Unrestricted Shelby Campus,Other Professional Fees - PS
Jefferson State CC,421484,Ebsco Subscription Services ,11/24/2020,1500.71,Unrestricted Chilton Campus,Subscriptions - OOS
Jefferson State CC,421484,Ebsco Subscription Services ,11/24/2020,2328.3,Unrestricted Jefferson Campus,Subscriptions - OOS
Jefferson State CC,421484,Ebsco Subscription Services ,11/24/2020,2801.49,Unrestricted Shelby Campus,Subscriptions - OOS
Jefferson State CC,421484,Ebsco Subscription Services ,11/24/2020,1687.4,Unrestricted St. Clair Campus,Subscriptions - OOS
Jefferson State CC,421484,Ebsco Subscription Services ,11/24/2020,1853,Unrestricted Shared Services,Technology - non capitalized - MS
Jefferson State CC,421485,Ennis Jzyk,11/24/2020,497.95,Unrestricted Shared Services,Mileage - IS
Jefferson State CC,421486,Ferguson Lydia,11/24/2020,44.28,Unrestricted Shelby Campus,Mileage - IS
Jefferson State CC,421487,Florence Jeffrey,11/24/2020,380,Unrestricted Shelby Campus,Other Professional Fees - PS
Jefferson State CC,421489,Harris Jason,11/24/2020,270,Unrestricted Chilton Campus,Other Professional Fees - PS
Jefferson State CC,421490,Hodge Mechanical Services LLC ,11/24/2020,5807.61,R&R Chilton Campus ,Maintenance & Repairs  - OOS
Jefferson State CC,421491,Home Depot U.S.A. Inc ,11/24/2020,957.6,R&R Jefferson Campus ,Maintenance & Repairs  - OOS
Jefferson State CC,421492,Hurst Hunter,11/24/2020,423,Unrestricted Chilton Campus,Other Professional Fees - PS
Jefferson State CC,421493,Janousek Mel,11/24/2020,360,Unrestricted Shelby Campus,Other Professional Fees - PS
Jefferson State CC,421496,Marcus Service & Solutions LLC ,11/24/2020,6960,R&R Jefferson Campus ,Maintenance & Repairs  - OOS
Jefferson State CC,421499,Office Depot ,11/24/2020,234.02,Unrestricted Jefferson Campus,Materials and Supplies - MS
Jefferson State CC,421499,Office Depot ,11/24/2020,741.19,Unrestricted Shared Services,Materials and Supplies - MS
Jefferson State CC,421499,Office Depot ,11/24/2020,386.7,Unrestricted Shelby Campus,Materials and Supplies - MS
Jefferson State CC,421499,Office Depot ,11/24/2020,300.39,Unrestricted Shared Services,Technology - non capitalized - MS
Jefferson State CC,421500,Office Depot ,11/24/2020,377.06,Unrestricted Shared Services,Printing and Binding - OOS
Jefferson State CC,421501,Owens Landscape Group LLC ,11/24/2020,2000,Unrestricted Chilton Campus,Maintenance & Repairs  - OOS
Jefferson State CC,421502,Partners by Design Inc ,11/24/2020,634.5,Unrestricted Shared Services,Advertising & Promotions - OOS
Jefferson State CC,421503,Patterson Veterinary Supply Inc ,11/24/2020,4070,Vocational Ed/CTE X9-X0,Equipment - non capitalized - MS
Jefferson State CC,421504,PODS Enterprises Inc ,11/24/2020,294.98,Unrestricted Shelby Campus,Short-Term Equipment Rentals - OOS
Jefferson State CC,421505,Publix Super Markets Inc ,11/24/2020,19.43,Unrestricted Shelby Campus,Culinary Consumables
Jefferson State CC,421506,Regional Produce Distributors LLC ,11/24/2020,203.6,Unrestricted Shelby Campus,Culinary Consumables
Jefferson State CC,421508,Scarbrough William,11/24/2020,198,Unrestricted Chilton Campus,Other Professional Fees - PS
Jefferson State CC,421510,Shuffett Wendy,11/24/2020,291.87,Unrestricted Shared Services,Mileage - IS
Jefferson State CC,421511,Shuffett Wendy,11/24/2020,63.25,Unrestricted Shared Services,Mileage - IS
Jefferson State CC,421512,Spence Tracy,11/24/2020,27.6,Unrestricted Shelby Campus,Mileage - IS
Jefferson State CC,421513,Stevens Qianna,11/24/2020,32.37,Unrestricted Shared Services,Mileage - IS
Jefferson State CC,421514,Sutton Edreama,11/24/2020,34.5,Unrestricted Shared Services,Mileage - IS
Jefferson State CC,421515,Thompson Jeffrey,11/24/2020,500,PTK Honor Society Grant,Materials and Supplies - MS
